Service Area,Service Area Categorisation,Service Division Categorisation,Responsible Unit,Expenses Types,Detailed Expenses Type,Expense Code,Narrative,Invoice Date,Payment Date,Amount,Capital/Revenue,Supplier Name
Adult Services,ADULT DISABILITY SERVICES,Social Care and Health,CLDT,0,I&E,Personal Care.,,20/05/2024,22/05/2024,4981.63,,Green Valley Care
Adult Services,ADULT DISABILITY SERVICES,Social Care and Health,CLDT,0,I&E,Personal Care.,,20/05/2024,22/05/2024,5175.31,,Green Valley Care
Adult Services,ADULT DISABILITY SERVICES,Social Care and Health,CLDT,0,I&E,Personal Care.,,20/05/2024,22/05/2024,6918.46,,Green Valley Care
Adult Services,Community Care Team,Social Care and Health,Mental Health Care Team,0,I&E,Personal Care.,,13/05/2024,22/05/2024,78.77,,Abicare CareMatch Services Ltd
Adult Services,ADULT DISABILITY SERVICES,Social Care and Health,CLDT,0,I&E,Personal Care.,,24/05/2024,03/06/2024,3350.4,,The Home Farm Trust
Adult Services,ADULT DISABILITY SERVICES,Social Care and Health,CLDT,0,I&E,Personal Care.,,31/05/2024,03/06/2024,6402.56,,St Helen's Domicilary Care Agency
Adult Services,ADULT DISABILITY SERVICES,Social Care and Health,CLDT,0,I&E,Personal Care.,,31/05/2024,03/06/2024,7399.4,,St Helen's Domicilary Care Agency
Adult Services,ADULT DISABILITY SERVICES,Social Care and Health,CLDT,0,I&E,Personal Care.,,31/05/2024,03/06/2024,9280.91,,Crwban Care & Support
Adult Services,Community Care Team,Social Care and Health,Mental Health Care Team,0,I&E,Personal Care.,,21/05/2024,22/05/2024,2868.4,,REDACTED PERSONAL DATA
Adult Services,Community Care Team,Social Care and Health,Mental Health Care Team,0,I&E,Personal Care.,,21/05/2024,22/05/2024,1406.56,,REDACTED PERSONAL DATA
Adult Services,ADULT DISABILITY SERVICES,Social Care and Health,CLDT,0,I&E,Personal Care.,,21/05/2024,22/05/2024,649.16,,REDACTED PERSONAL DATA
Adult Services,ADULT DISABILITY SERVICES,Social Care and Health,CLDT,0,I&E,Personal Care.,,21/05/2024,22/05/2024,649.16,,REDACTED PERSONAL DATA
Adult Services,ADULT DISABILITY SERVICES,Social Care and Health,CLDT,0,I&E,Personal Care.,,21/05/2024,22/05/2024,690.08,,REDACTED PERSONAL DATA
Adult Services,ADULT DISABILITY SERVICES,Social Care and Health,CLDT,0,I&E,Personal Care.,,02/05/2024,22/05/2024,8392.24,,Cariad Domiciliary Support Services Ltd
Adult Services,ADULT DISABILITY SERVICES,Social Care and Health,CLDT,0,I&E,Personal Care.,,02/05/2024,22/05/2024,6049.72,,Cariad Domiciliary Support Services Ltd
Adult Services,ADULT DISABILITY SERVICES,Social Care and Health,CLDT,0,I&E,Personal Care.,,02/05/2024,22/05/2024,6478.4,,Cariad Domiciliary Support Services Ltd
Adult Services,Community Care Team,Social Care and Health,Mental Health Care Team,0,I&E,Personal Care.,,13/05/2024,22/05/2024,173.99,,Abicare CareMatch Services Ltd
Adult Services,ADULT DISABILITY SERVICES,Social Care and Health,CLDT,0,I&E,Personal Care.,,21/05/2024,22/05/2024,592.96,,REDACTED PERSONAL DATA
Adult Services,ADULT DISABILITY SERVICES,Social Care and Health,CLDT,0,I&E,Personal Care.,,21/05/2024,22/05/2024,728.92,,REDACTED PERSONAL DATA
Adult Services,Community Care Team,Social Care and Health,Mental Health Care Team,0,I&E,Personal Care.,,21/05/2024,22/05/2024,614.88,,REDACTED PERSONAL DATA
Adult Services,Community Care Team,Social Care and Health,Mental Health Care Team,0,I&E,Personal Care.,,21/05/2024,22/05/2024,1791.4,,REDACTED PERSONAL DATA
Adult Services,Community Care Team,Social Care and Health,Mental Health Care Team,0,I&E,Personal Care.,,21/05/2024,22/05/2024,1213,,REDACTED PERSONAL DATA
Adult Services,ADULT DISABILITY SERVICES,Social Care and Health,CLDT,0,I&E,Personal Care.,,21/05/2024,22/05/2024,633.52,,REDACTED PERSONAL DATA
Adult Services,ADULT DISABILITY SERVICES,Social Care and Health,CLDT,0,I&E,Personal Care.,,21/05/2024,22/05/2024,566.88,,REDACTED PERSONAL DATA
Adult Services,ADULT DISABILITY SERVICES,Social Care and Health,CLDT,0,I&E,Personal Care.,,21/05/2024,22/05/2024,846.08,,REDACTED PERSONAL DATA
Adult Services,Community Care Team,Social Care and Health,Mental Health Care Team,0,I&E,Personal Care.,,08/05/2024,15/05/2024,168,,Helping Hands
Adult Services,Community Care Team,Social Care and Health,Mental Health Care Team,0,I&E,Personal Care.,,03/05/2024,20/05/2024,789.66,,The National Autistic Society
Adult Services,Community Care Team,Social Care and Health,Mental Health Care Team,0,I&E,Personal Care.,,03/05/2024,20/05/2024,781.83,,The National Autistic Society
Adult Services,Community Care Team,Social Care and Health,Mental Health Care Team,0,I&E,Personal Care.,,03/05/2024,20/05/2024,686.88,,The National Autistic Society
Adult Services,Community Care Team,Social Care and Health,Mental Health Care Team,0,I&E,Personal Care.,,21/05/2024,22/05/2024,195,,REDACTED PERSONAL DATA
Adult Services,Community Care Team,Social Care and Health,Mental Health Care Team,0,I&E,Personal Care.,,21/05/2024,22/05/2024,2328.92,,REDACTED PERSONAL DATA
Adult Services,ADULT DISABILITY SERVICES,Social Care and Health,CLDT,0,I&E,Personal Care.,,21/05/2024,22/05/2024,826.84,,REDACTED PERSONAL DATA
Adult Services,ADULT DISABILITY SERVICES,Social Care and Health,CLDT,0,I&E,Personal Care.,,21/05/2024,22/05/2024,345.88,,REDACTED PERSONAL DATA
Adult Services,ADULT DISABILITY SERVICES,Social Care and Health,CLDT,0,I&E,Personal Care.,,13/05/2024,20/05/2024,2585.27,,The National Autistic Society
Adult Services,ADULT DISABILITY SERVICES,Social Care and Health,CLDT,0,I&E,Personal Care.,,13/05/2024,20/05/2024,5648.48,,The National Autistic Society
Adult Services,ADULT DISABILITY SERVICES,Social Care and Health,CLDT,0,I&E,Personal Care.,,13/05/2024,20/05/2024,2348.1,,The National Autistic Society
Adult Services,Community Care Team,Social Care and Health,Mental Health Care Team,0,I&E,Personal Care.,,03/05/2024,20/05/2024,766.5,,The National Autistic Society
Adult Services,ADULT DISABILITY SERVICES,Social Care and Health,CLDT,0,I&E,Personal Care.,,21/05/2024,22/05/2024,187.96,,REDACTED PERSONAL DATA
Adult Services,ADULT DISABILITY SERVICES,Social Care and Health,CLDT,0,I&E,Personal Care.,,21/05/2024,22/05/2024,754.56,,REDACTED PERSONAL DATA
Adult Services,Community Care Team,Social Care and Health,Mental Health Care Team,0,I&E,Personal Care.,,21/05/2024,22/05/2024,501.04,,REDACTED PERSONAL DATA
"Commercial, Corporate & landlord Services",Property Services & Facilities Management,Resources,Reactive Maintenance,0,I&E,Building Improvements / Maintenance,,08/05/2024,14/05/2024,50,,Ambassador Fire & Security LTD
Adult Services,ADULT DISABILITY SERVICES,Social Care and Health,CLDT,0,I&E,Personal Care.,,03/05/2024,20/05/2024,56,,The National Autistic Society
Adult Services,ADULT DISABILITY SERVICES,Social Care and Health,CLDT,0,I&E,Personal Care.,,13/05/2024,20/05/2024,9841.84,,The National Autistic Society
Adult Services,ADULT DISABILITY SERVICES,Social Care and Health,CLDT,0,I&E,Personal Care.,,13/05/2024,20/05/2024,8733.38,,The National Autistic Society
Adult Services,Community Care Team,Social Care and Health,Mental Health Care Team,0,I&E,Personal Care.,,08/05/2024,14/05/2024,604.8,,Helping Hands
Adult Services,Community Care Team,Social Care and Health,Mental Health Care Team,0,I&E,Personal Care.,,26/05/2024,03/06/2024,2990.64,,ExpandingHorizons Ltd
Adult Services,ADULT DISABILITY SERVICES,Social Care and Health,CLDT,0,I&E,Personal Care.,,27/05/2024,03/06/2024,7418.96,,Encompass Care
Adult Services,Community Care Team,Social Care and Health,Mental Health Care Team,0,I&E,Personal Care.,,13/05/2024,15/05/2024,3500.9,,Lougher Home Care Ltd
Adult Services,Community Care Team,Social Care and Health,Mental Health Care Team,0,I&E,Personal Care.,,14/05/2024,20/05/2024,2304,,Community Care Services
Adult Services,ADULT DISABILITY SERVICES,Social Care and Health,CLDT,0,I&E,Personal Care.,,21/05/2024,22/05/2024,146.68,,REDACTED PERSONAL DATA
Adult Services,Community Care Team,Social Care and Health,Mental Health Care Team,0,I&E,Personal Care.,,21/05/2024,22/05/2024,1369.72,,REDACTED PERSONAL DATA
Adult Services,Community Care Team,Social Care and Health,Mental Health Care Team,0,I&E,Personal Care.,,21/05/2024,22/05/2024,240,,REDACTED PERSONAL DATA
Adult Services,Community Care Team,Social Care and Health,Mental Health Care Team,0,I&E,Personal Care.,,21/05/2024,22/05/2024,608.92,,REDACTED PERSONAL DATA
Adult Services,Community Care Team,Social Care and Health,Mental Health Care Team,0,I&E,Personal Care.,,21/05/2024,22/05/2024,2868.4,,REDACTED PERSONAL DATA
Adult Services,Community Care Team,Social Care and Health,Mental Health Care Team,0,I&E,Personal Care.,,26/04/2024,02/05/2024,124.91,,Allied Healthcare Services Limited
Adult Services,ADULT DISABILITY SERVICES,Social Care and Health,CLDT,0,I&E,Personal Care.,,26/04/2024,02/05/2024,147.39,,Allied Healthcare Services Limited
Children Services,Children Services Other,Social Care and Health,External Placements - CLA,0,I&E,Residential.,,30/04/2024,02/05/2024,17025.9,,Stepping Stones Care Services (South Wales) Ltd.
Adult Services,ADULT DISABILITY SERVICES,Social Care and Health,CLDT,0,I&E,Personal Care.,,21/05/2024,22/05/2024,295.28,,REDACTED PERSONAL DATA
Adult Services,ADULT DISABILITY SERVICES,Social Care and Health,CLDT,0,I&E,Personal Care.,,21/05/2024,22/05/2024,408.04,,REDACTED PERSONAL DATA
Adult Services,ADULT DISABILITY SERVICES,Social Care and Health,CLDT,0,I&E,Personal Care.,,21/05/2024,22/05/2024,721.4,,REDACTED PERSONAL DATA
Adult Services,ADULT DISABILITY SERVICES,Social Care and Health,CLDT,0,I&E,Personal Care.,,21/05/2024,22/05/2024,1256.96,,REDACTED PERSONAL DATA
Adult Services,ADULT DISABILITY SERVICES,Social Care and Health,CLDT,0,I&E,Personal Care.,,21/05/2024,22/05/2024,589.44,,REDACTED PERSONAL DATA
Adult Services,Community Care Team,Social Care and Health,Mental Health Care Team,0,I&E,Personal Care.,,21/05/2024,22/05/2024,393.24,,REDACTED PERSONAL DATA
Adult Services,Community Care Team,Social Care and Health,Mental Health Care Team,0,I&E,Personal Care.,,21/05/2024,22/05/2024,123.2,,REDACTED PERSONAL DATA
Adult Services,ADULT DISABILITY SERVICES,Social Care and Health,CLDT,0,I&E,Personal Care.,,21/05/2024,22/05/2024,346.4,,REDACTED PERSONAL DATA
"Commercial, Corporate & landlord Services",Property Services & Facilities Management,Resources,Reactive Maintenance,0,I&E,Building Improvements / Maintenance,,30/04/2024,28/05/2024,41,,EFS Systems (UK) Ltd
"Commercial, Corporate & landlord Services",Property Services & Facilities Management,Resources,Reactive Maintenance,0,I&E,Building Improvements / Maintenance,,21/03/2024,28/05/2024,281.27,,EFS Systems (UK) Ltd
"Commercial, Corporate & landlord Services",Property Services & Facilities Management,Resources,Reactive Maintenance,0,I&E,Building Improvements / Maintenance,,21/03/2024,28/05/2024,163.45,,EFS Systems (UK) Ltd
"Commercial, Corporate & landlord Services",Property Services & Facilities Management,Resources,Usk Accommodation,0,I&E,Building Improvements / Maintenance,,30/05/2024,03/06/2024,184.16,,MORGAN ENVIRONMENTAL LTD
"Commercial, Corporate & landlord Services",Property Services & Facilities Management,Resources,Magor Accommodation,0,I&E,Building Improvements / Maintenance,,30/05/2024,03/06/2024,198.75,,MORGAN ENVIRONMENTAL LTD
"Commercial, Corporate & landlord Services",Property Services & Facilities Management,Resources,External Clients,0,I&E,Building Improvements / Maintenance,,24/05/2024,03/06/2024,1995,,HSL Compliance Ltd
Children Services,Children Services Other,Social Care and Health,External Placements - CLA,0,I&E,Residential.,,01/04/2024,10/05/2024,1860,,D2 ProproLtd
Adult Services,Community Care Team,Social Care and Health,Mental Health Care Team,0,I&E,Personal Care.,,08/05/2024,15/05/2024,2822.4,,Helping Hands
Adult Services,Community Care Team,Social Care and Health,Mental Health Care Team,0,I&E,Personal Care.,,21/05/2024,22/05/2024,3220,,REDACTED PERSONAL DATA
Adult Services,Community Care Team,Social Care and Health,Mental Health Care Team,0,I&E,Personal Care.,,21/05/2024,22/05/2024,2358.72,,REDACTED PERSONAL DATA
Children Services,Children Services Teams,Social Care and Health,Long Term Support Team,0,I&E,Residential.,,24/04/2024,08/05/2024,296.96,,Midway Transitional Solutions Ltd
Children Services,Children Services Teams,Social Care and Health,Long Term Support Team,0,I&E,Residential.,,24/04/2024,08/05/2024,-28.96,,Midway Transitional Solutions Ltd
"Commercial, Corporate & landlord Services",Property Services & Facilities Management,Resources,Reactive Maintenance,0,I&E,Building Improvements / Maintenance,,21/03/2024,24/05/2024,49,,EFS Systems (UK) Ltd
"Commercial, Corporate & landlord Services",Property Services & Facilities Management,Resources,Reactive Maintenance,0,I&E,Building Improvements / Maintenance,,21/03/2024,24/05/2024,84.3,,EFS Systems (UK) Ltd
Adult Services,Community Care Team,Social Care and Health,Mental Health Care Team,0,I&E,Personal Care.,,22/05/2024,24/05/2024,39.96,,Q Care Ltd
"Commercial, Corporate & landlord Services",Property Services & Facilities Management,Resources,External Clients,0,I&E,Building Improvements / Maintenance,,10/05/2024,15/05/2024,2062.5,,Ambassador Fire & Security LTD
Adult Services,Community Care Team,Social Care and Health,Mental Health Care Team,0,I&E,Personal Care.,,13/05/2024,15/05/2024,624.21,,Lougher Home Care Ltd
Adult Services,Community Care Team,Social Care and Health,Mental Health Care Team,0,I&E,Personal Care.,,21/05/2024,24/05/2024,541.94,,Abicare CareMatch Services Ltd
Adult Services,Community Care Team,Social Care and Health,Mental Health Care Team,0,I&E,Personal Care.,,21/05/2024,24/05/2024,387.1,,Abicare CareMatch Services Ltd
"Commercial, Corporate & landlord Services",Property Services & Facilities Management,Resources,Reactive Maintenance,0,I&E,Building Improvements / Maintenance,,13/05/2024,15/05/2024,75,,Gemini Blinds Gwent
"Commercial, Corporate & landlord Services",Property Services & Facilities Management,Resources,Reactive Maintenance,0,I&E,Building Improvements / Maintenance,,10/05/2024,15/05/2024,50,,Ambassador Fire & Security LTD
"Commercial, Corporate & landlord Services",Property Services & Facilities Management,Resources,Reactive Maintenance,0,I&E,Building Improvements / Maintenance,,10/05/2024,15/05/2024,50,,Ambassador Fire & Security LTD
"Commercial, Corporate & landlord Services",Property Services & Facilities Management,Resources,Reactive Maintenance,0,I&E,Building Improvements / Maintenance,,10/05/2024,15/05/2024,595.13,,Ambassador Fire & Security LTD
"Commercial, Corporate & landlord Services",Property Services & Facilities Management,Resources,Reactive Maintenance,0,I&E,Building Improvements / Maintenance,,10/05/2024,15/05/2024,154.5,,Ambassador Fire & Security LTD
Adult Services,ADULT DISABILITY SERVICES,Social Care and Health,CLDT,0,I&E,Personal Care.,,30/05/2024,31/05/2024,35794.5,,The National Star College
Adult Services,Community Care Team,Social Care and Health,Mental Health Care Team,0,I&E,Personal Care.,,17/05/2024,31/05/2024,2231.2,,Abicare Services Ltd
Adult Services,Community Care Team,Social Care and Health,Mental Health Care Team,0,I&E,Personal Care.,,17/05/2024,31/05/2024,2186.24,,Abicare Services Ltd
Adult Services,Community Care Team,Social Care and Health,Mental Health Care Team,0,I&E,Personal Care.,,07/05/2024,20/05/2024,833,,Cambrian Care Consortium
Children Services,Children Services Other,Social Care and Health,External Placements - CLA,0,I&E,Residential.,,22/04/2024,02/05/2024,6000,,Graig Farm Ltd
"Commercial, Corporate & landlord Services",Property Services & Facilities Management,Resources,Reactive Maintenance,0,I&E,Building Improvements / Maintenance,,08/05/2024,14/05/2024,50,,Ambassador Fire & Security LTD
Adult Services,Community Care Team,Social Care and Health,Mental Health Care Team,0,I&E,Personal Care.,,08/05/2024,20/05/2024,450,,Penpergwm House Ltd
Adult Services,Community Care Team,Social Care and Health,Mental Health Care Team,0,I&E,Personal Care.,,07/05/2024,20/05/2024,5854.52,,Liberty Care Ltd
Adult Services,Community Care Team,Social Care and Health,Mental Health Care Team,0,I&E,Personal Care.,,07/05/2024,20/05/2024,8677.4,,Liberty Care Ltd
Adult Services,Community Care Team,Social Care and Health,Mental Health Care Team,0,I&E,Personal Care.,,17/05/2024,20/05/2024,4415.32,,Craegmoor SYI South Wales
Adult Services,ADULT DISABILITY SERVICES,Social Care and Health,CLDT,0,I&E,Personal Care.,,02/05/2024,20/05/2024,1097,,The Drive
Adult Services,ADULT DISABILITY SERVICES,Social Care and Health,CLDT,0,I&E,Personal Care.,,17/05/2024,20/05/2024,3805.46,,Craegmoor SYI South Wales
Adult Services,ADULT DISABILITY SERVICES,Social Care and Health,CLDT,0,I&E,Personal Care.,,03/05/2024,20/05/2024,296.04,,The National Autistic Society
Adult Services,Community Care Team,Social Care and Health,Mental Health Care Team,0,I&E,Personal Care.,,19/04/2024,07/05/2024,1.8,,My Care My Home Ltd
Adult Services,Community Care Team,Social Care and Health,Mental Health Care Team,0,I&E,Personal Care.,,19/04/2024,07/05/2024,3.15,,My Care My Home Ltd
Adult Services,Community Care Team,Social Care and Health,Mental Health Care Team,0,I&E,Personal Care.,,19/04/2024,07/05/2024,3.6,,My Care My Home Ltd
Adult Services,Community Care Team,Social Care and Health,Mental Health Care Team,0,I&E,Personal Care.,,19/04/2024,07/05/2024,1.59,,My Care My Home Ltd
Adult Services,Community Care Team,Social Care and Health,Mental Health Care Team,0,I&E,Personal Care.,,19/04/2024,07/05/2024,5.3,,My Care My Home Ltd
Adult Services,Community Care Team,Social Care and Health,Mental Health Care Team,0,I&E,Personal Care.,,19/04/2024,07/05/2024,1.42,,My Care My Home Ltd
Adult Services,Community Care Team,Social Care and Health,Mental Health Care Team,0,I&E,Personal Care.,,19/04/2024,07/05/2024,6.48,,My Care My Home Ltd
Adult Services,Community Care Team,Social Care and Health,Mental Health Care Team,0,I&E,Personal Care.,,19/04/2024,07/05/2024,8.9,,My Care My Home Ltd
Adult Services,Community Care Team,Social Care and Health,Mental Health Care Team,0,I&E,Personal Care.,,13/05/2024,15/05/2024,1320.2,,Lougher Home Care Ltd
Children Services,Children Services Teams,Social Care and Health,Long Term Support Team,0,I&E,Residential.,,24/04/2024,08/05/2024,28.96,,Midway Transitional Solutions Ltd
Adult Services,Community Care Team,Social Care and Health,Mental Health Care Team,0,I&E,Personal Care.,,22/04/2024,10/05/2024,211.5,,Castle Care Supported Living
Adult Services,Community Care Team,Social Care and Health,Mental Health Care Team,0,I&E,Personal Care.,,22/04/2024,10/05/2024,789.6,,Castle Care Supported Living
Adult Services,Community Care Team,Social Care and Health,Mental Health Care Team,0,I&E,Personal Care.,,22/04/2024,10/05/2024,1381.8,,Castle Care Supported Living
Adult Services,Community Care Team,Social Care and Health,Mental Health Care Team,0,I&E,Personal Care.,,22/04/2024,10/05/2024,296.1,,Castle Care Supported Living
Adult Services,Community Care Team,Social Care and Health,Mental Health Care Team,0,I&E,Personal Care.,,22/04/2024,10/05/2024,564,,Castle Care Supported Living
Adult Services,Community Care Team,Social Care and Health,Mental Health Care Team,0,I&E,Personal Care.,,22/04/2024,10/05/2024,1480.5,,Castle Care Supported Living
"Commercial, Corporate & landlord Services",Property Services & Facilities Management,Resources,Reactive Maintenance,0,I&E,Building Improvements / Maintenance,,14/05/2024,21/05/2024,400.46,,Industrial Door Services
"Commercial, Corporate & landlord Services",Property Services & Facilities Management,Resources,External Clients,0,I&E,Building Improvements / Maintenance,,15/05/2024,23/05/2024,100,,Saldo Pipe & Construction
Adult Services,ADULT DISABILITY SERVICES,Social Care and Health,CLDT,0,I&E,Personal Care.,,01/05/2024,23/05/2024,1359.97,,3 Circles Care Limited
Children Services,Children Services Teams,Social Care and Health,Long Term Support Team,0,I&E,Residential.,,24/04/2024,08/05/2024,95,,Midway Transitional Solutions Ltd
"Commercial, Corporate & landlord Services",Property Services & Facilities Management,Resources,Reactive Maintenance,0,I&E,Building Improvements / Maintenance,,14/05/2024,21/05/2024,289,,Industrial Door Services
"Commercial, Corporate & landlord Services",Property Services & Facilities Management,Resources,Reactive Maintenance,0,I&E,Building Improvements / Maintenance,,14/05/2024,21/05/2024,445,,Industrial Door Services
Adult Services,Community Care Team,Social Care and Health,Mental Health Care Team,0,I&E,Personal Care.,,22/05/2024,24/05/2024,2378.04,,Q Care Ltd
Adult Services,Community Care Team,Social Care and Health,Mental Health Care Team,0,I&E,Personal Care.,,22/05/2024,24/05/2024,419.72,,Q Care Ltd
Adult Services,Community Care Team,Social Care and Health,Mental Health Care Team,0,I&E,Personal Care.,,22/05/2024,24/05/2024,1758.8,,Q Care Ltd
Adult Services,Community Care Team,Social Care and Health,Mental Health Care Team,0,I&E,Personal Care.,,22/04/2024,10/05/2024,1974,,Castle Care Supported Living
Adult Services,Community Care Team,Social Care and Health,Mental Health Care Team,0,I&E,Personal Care.,,22/04/2024,10/05/2024,916.5,,Castle Care Supported Living
"Commercial, Corporate & landlord Services",Property Services & Facilities Management,Resources,Reactive Maintenance,0,I&E,Building Improvements / Maintenance,,30/04/2024,14/05/2024,23,,A.J Quinn Building Contractors Ltd
Children Services,Children Services Other,Social Care and Health,External Placements - CLA,0,I&E,Residential.,,24/05/2024,31/05/2024,22206.1,,Keys PCE Ltd
"Commercial, Corporate & landlord Services",Property Services & Facilities Management,Resources,Reactive Maintenance,0,I&E,Building Improvements / Maintenance,,30/04/2024,10/05/2024,437.69,,Dale Sauna Ltd
Adult Services,Community Care Team,Social Care and Health,Mental Health Care Team,0,I&E,Personal Care.,,08/05/2024,10/05/2024,84,,Helping Hands
Adult Services,Community Care Team,Social Care and Health,Mental Health Care Team,0,I&E,Personal Care.,,08/05/2024,10/05/2024,784,,Helping Hands
Adult Services,Community Care Team,Social Care and Health,Mental Health Care Team,0,I&E,Personal Care.,,22/04/2024,10/05/2024,2636.7,,Castle Care Supported Living
Adult Services,Community Care Team,Social Care and Health,Mental Health Care Team,0,I&E,Personal Care.,,22/04/2024,10/05/2024,1128,,Castle Care Supported Living
Adult Services,Community Care Team,Social Care and Health,Mental Health Care Team,0,I&E,Personal Care.,,22/04/2024,10/05/2024,916.5,,Castle Care Supported Living
Adult Services,ADULT DISABILITY SERVICES,Social Care and Health,CLDT,0,I&E,Personal Care.,,21/05/2024,22/05/2024,1336.28,,REDACTED PERSONAL DATA
"Commercial, Corporate & landlord Services",Property Services & Facilities Management,Resources,Reactive Maintenance,0,I&E,Building Improvements / Maintenance,,30/04/2024,21/05/2024,171.96,,A.J Quinn Building Contractors Ltd
"Commercial, Corporate & landlord Services",Property Services & Facilities Management,Resources,Reactive Maintenance,0,I&E,Building Improvements / Maintenance,,30/04/2024,21/05/2024,396.88,,A.J Quinn Building Contractors Ltd
Adult Services,ADULT DISABILITY SERVICES,Social Care and Health,CLDT,0,I&E,Personal Care.,,30/05/2024,31/05/2024,4900.46,,The National Star College
Adult Services,ADULT DISABILITY SERVICES,Social Care and Health,CLDT,0,I&E,Personal Care.,,03/05/2024,09/05/2024,1440,,The Friendly Trust
Adult Services,ADULT DISABILITY SERVICES,Social Care and Health,CLDT,0,I&E,Personal Care.,,03/05/2024,09/05/2024,1440,,The Friendly Trust
Adult Services,Community Care Team,Social Care and Health,Mental Health Care Team,0,I&E,Personal Care.,,07/05/2024,09/05/2024,964.32,,My Care My Home Ltd
Adult Services,Community Care Team,Social Care and Health,Mental Health Care Team,0,I&E,Personal Care.,,07/05/2024,09/05/2024,1533.84,,My Care My Home Ltd
Adult Services,Community Care Team,Social Care and Health,Mental Health Care Team,0,I&E,Personal Care.,,21/05/2024,24/05/2024,4057.04,,New Directions Care & Support
"Commercial, Corporate & landlord Services",Property Services & Facilities Management,Resources,Reactive Maintenance,0,I&E,Building Improvements / Maintenance,,08/05/2024,15/05/2024,291.6,,Ambassador Fire & Security LTD
"Commercial, Corporate & landlord Services",Property Services & Facilities Management,Resources,Reactive Maintenance,0,I&E,Building Improvements / Maintenance,,08/05/2024,15/05/2024,50,,Ambassador Fire & Security LTD
Children Services,Children Services Other,Social Care and Health,External Placements - CLA,0,I&E,Residential.,,01/04/2024,02/05/2024,26774.77,,Oakmont Services Group
Children Services,Children Services Other,Social Care and Health,External Placements - CLA,0,I&E,Residential.,,12/03/2024,02/05/2024,40302,,Action For Children
Adult Services,Community Care Team,Social Care and Health,Mental Health Care Team,0,I&E,Personal Care.,,07/05/2024,09/05/2024,306.88,,My Care My Home Ltd
Children Services,Children Services Other,Social Care and Health,External Placements - CLA,0,I&E,Residential.,,30/04/2024,09/05/2024,17025.9,,Stepping Stones Care Services (South Wales) Ltd.
Children Services,Children Services Other,Social Care and Health,External Placements - CLA,0,I&E,Residential.,,30/04/2024,09/05/2024,17025.9,,Stepping Stones Care Services (South Wales) Ltd.
"Commercial, Corporate & landlord Services",Property Services & Facilities Management,Resources,Reactive Maintenance,0,I&E,Building Improvements / Maintenance,,03/05/2024,09/05/2024,59.92,,REDACTED PERSONAL DATA
Adult Services,Community Care Team,Social Care and Health,Mental Health Care Team,0,I&E,Personal Care.,,17/05/2024,31/05/2024,903.42,,Abicare Services Ltd
Adult Services,Community Care Team,Social Care and Health,Mental Health Care Team,0,I&E,Personal Care.,,17/05/2024,31/05/2024,256.68,,Abicare Services Ltd
Adult Services,Community Care Team,Social Care and Health,Mental Health Care Team,0,I&E,Personal Care.,,17/05/2024,31/05/2024,2035.59,,Abicare Services Ltd
Adult Services,ADULT DISABILITY SERVICES,Social Care and Health,CLDT,0,I&E,Personal Care.,,17/05/2024,31/05/2024,317.88,,Abicare Services Ltd
"Commercial, Corporate & landlord Services",Property Services & Facilities Management,Resources,Reactive Maintenance,0,I&E,Building Improvements / Maintenance,,01/05/2024,14/05/2024,-269.88,,A.J Quinn Building Contractors Ltd
Children Services,Children Services Other,Social Care and Health,External Placements - CLA,0,I&E,Residential.,,01/05/2024,02/05/2024,21489.77,,Keys PCE Ltd
Children Services,Children Services Other,Social Care and Health,External Placements - CLA,0,I&E,Residential.,,30/04/2024,02/05/2024,22671.43,,SICS Gofal Cymru CYF
Children Services,Children Services Other,Social Care and Health,External Placements - CLA,0,I&E,Residential.,,01/05/2024,02/05/2024,21489.77,,Keys PCE Ltd
Children Services,Children Services Other,Social Care and Health,External Placements - CLA,0,I&E,Residential.,,01/04/2024,02/05/2024,14827.81,,Orbis Education and Care
Children Services,Children Services Other,Social Care and Health,External Placements - CLA,0,I&E,Residential.,,01/04/2024,02/05/2024,6313.92,,Orbis Education and Care
Children Services,Children Services Other,Social Care and Health,External Placements - CLA,0,I&E,Residential.,,23/04/2024,02/05/2024,6000,,Graig Farm Ltd
Adult Services,ADULT DISABILITY SERVICES,Social Care and Health,CLDT,0,I&E,Personal Care.,,01/05/2024,07/05/2024,447.6,,Able Radio
Children Services,Children Services Other,Social Care and Health,External Placements - CLA,0,I&E,Residential.,,26/04/2024,07/05/2024,26350,,Cambian Childcare Limited
Adult Services,Community Care Team,Social Care and Health,Mental Health Care Team,0,I&E,Personal Care.,,19/04/2024,07/05/2024,3.55,,My Care My Home Ltd
Adult Services,Community Care Team,Social Care and Health,Mental Health Care Team,0,I&E,Personal Care.,,19/04/2024,07/05/2024,1.06,,My Care My Home Ltd
Adult Services,Community Care Team,Social Care and Health,Mental Health Care Team,0,I&E,Personal Care.,,09/05/2024,10/05/2024,129.58,,Lougher Home Care Ltd
"Commercial, Corporate & landlord Services",Property Services & Facilities Management,Resources,Reactive Maintenance,0,I&E,Building Improvements / Maintenance,,19/04/2024,10/05/2024,985.77,,Dale Sauna Ltd
Adult Services,Community Care Team,Social Care and Health,Mental Health Care Team,0,I&E,Personal Care.,,21/05/2024,22/05/2024,2968.12,,REDACTED PERSONAL DATA
"Commercial, Corporate & landlord Services",Property Services & Facilities Management,Resources,Reactive Maintenance,0,I&E,Building Improvements / Maintenance,,01/05/2024,21/05/2024,310,,Shield Security
Children Services,Children Services Other,Social Care and Health,External Placements - CLA,0,I&E,Residential.,,26/03/2024,02/05/2024,25500,,Cambian Childcare Limited
Children Services,Children Services Other,Social Care and Health,External Placements - CLA,0,I&E,Residential.,,26/03/2024,02/05/2024,25500,,Cambian Childcare Limited
Adult Services,ADULT DISABILITY SERVICES,Social Care and Health,CLDT,0,I&E,Personal Care.,,07/05/2024,21/05/2024,8700.79,,Liberty Care Ltd
Adult Services,ADULT DISABILITY SERVICES,Social Care and Health,CLDT,0,I&E,Personal Care.,,20/05/2024,21/05/2024,2210.35,,Craegmoor SYI South Wales
Adult Services,Community Care Team,Social Care and Health,Mental Health Care Team,0,I&E,Personal Care.,,20/05/2024,21/05/2024,-144,,Community Care Services
Adult Services,Community Care Team,Social Care and Health,Mental Health Care Team,0,I&E,Personal Care.,,14/05/2024,21/05/2024,192,,Community Care Services
Democratic Services,Democratic Services,Law & Governance,Parliamentary Election,0,I&E,Stationery,,30/05/2024,03/06/2024,65,,Shaw & Sons Ltd
Adult Services,Community Care Team,Social Care and Health,Chepstow Adult Team,0,I&E,Personal Care.,,21/05/2024,22/05/2024,576.4,,REDACTED PERSONAL DATA
Adult Services,Community Care Team,Social Care and Health,Chepstow Adult Team,0,I&E,Personal Care.,,21/05/2024,22/05/2024,182.52,,REDACTED PERSONAL DATA
Adult Services,Community Care Team,Social Care and Health,Chepstow Adult Team,0,I&E,Personal Care.,,13/05/2024,22/05/2024,77.43,,Abicare CareMatch Services Ltd
Adult Services,Community Care Team,Social Care and Health,Chepstow Adult Team,0,I&E,Personal Care.,,13/05/2024,22/05/2024,184.9,,Abicare CareMatch Services Ltd
Adult Services,Community Care Team,Social Care and Health,Chepstow Adult Team,0,I&E,Personal Care.,,13/05/2024,22/05/2024,77.45,,Abicare CareMatch Services Ltd
Adult Services,Community Care Team,Social Care and Health,Chepstow Adult Team,0,I&E,Personal Care.,,13/05/2024,22/05/2024,139.58,,Abicare CareMatch Services Ltd
Adult Services,Community Care Team,Social Care and Health,Chepstow Adult Team,0,I&E,Personal Care.,,13/05/2024,22/05/2024,193.42,,Abicare CareMatch Services Ltd
Adult Services,Community Care Team,Social Care and Health,Chepstow Adult Team,0,I&E,Personal Care.,,13/05/2024,22/05/2024,33.15,,Abicare CareMatch Services Ltd
Adult Services,Community Care Team,Social Care and Health,Chepstow Adult Team,0,I&E,Personal Care.,,13/05/2024,22/05/2024,135.44,,Abicare CareMatch Services Ltd
Adult Services,Community Care Team,Social Care and Health,Chepstow Adult Team,0,I&E,Personal Care.,,21/05/2024,22/05/2024,1153.4,,REDACTED PERSONAL DATA
Adult Services,Community Care Team,Social Care and Health,Chepstow Adult Team,0,I&E,Personal Care.,,21/05/2024,22/05/2024,2820,,REDACTED PERSONAL DATA
Adult Services,Community Care Team,Social Care and Health,Chepstow Adult Team,0,I&E,Personal Care.,,21/05/2024,22/05/2024,637.04,,REDACTED PERSONAL DATA
Adult Services,Community Care Team,Social Care and Health,Chepstow Adult Team,0,I&E,Personal Care.,,21/05/2024,22/05/2024,320.44,,REDACTED PERSONAL DATA
Adult Services,Community Care Team,Social Care and Health,Chepstow Adult Team,0,I&E,Personal Care.,,21/05/2024,22/05/2024,3016.52,,REDACTED PERSONAL DATA
Adult Services,Community Care Team,Social Care and Health,Chepstow Adult Team,0,I&E,Personal Care.,,21/05/2024,22/05/2024,905.44,,REDACTED PERSONAL DATA
Finance & Business Devlopment,Attractions,MonLife Directorate,Caldicot Castle & Country Park,0,I&E,Electricity.,,16/04/2024,23/05/2024,228.03,,EDF Energy
Public Protection,Public Protection,Social Care and Health,Public Health,0,I&E,Electricity.,,15/04/2024,23/05/2024,1412.7,,EDF Energy
Public Protection,Public Protection,Social Care and Health,Public Health,0,I&E,Electricity.,,15/04/2024,23/05/2024,7.26,,EDF Energy
"Facilities, Fleet & Decarbonisation",Property Services -  Cleaning,Communities & Place,Public Conveniences,0,I&E,Electricity.,,15/04/2024,23/05/2024,896.17,,EDF Energy
Neighbourhood Services,Highways,Communities & Place,Street Lighting,0,I&E,Electricity.,,24/04/2024,23/05/2024,46157.52,,EDF Energy
Neighbourhood Services,Highways,Communities & Place,Street Lighting,0,I&E,Electricity.,,24/04/2024,23/05/2024,-17.85,,EDF Energy
"Enterprise, Housing & Community Animation",General Fund Housing,Communities & Place,Sewerage Treatment Plants,0,I&E,Electricity.,,22/04/2024,23/05/2024,818.33,,EDF Energy
Finance & Business Devlopment,Attractions,MonLife Directorate,Caldicot Castle & Country Park,0,I&E,Electricity.,,16/04/2024,23/05/2024,209.32,,EDF Energy
Finance & Business Devlopment,Attractions,MonLife Directorate,Caldicot Castle & Country Park,0,I&E,Electricity.,,16/04/2024,23/05/2024,-2.17,,EDF Energy
"Commercial, Corporate & landlord Services",Asset Management,Resources,Industrial Units,0,I&E,Electricity.,,09/05/2024,23/05/2024,78.05,,EDF Energy
Neighbourhood Services,Highways,Communities & Place,Street Lighting,0,I&E,Electricity.,,24/04/2024,23/05/2024,57550.23,,EDF Energy
Finance & Business Devlopment,Community Hubs,MonLife Directorate,Strategic Management,0,I&E,Publications,,14/05/2024,20/05/2024,11.78,,Amazon Payments UK Limited
Adult Services,Community Care Team,Social Care and Health,Chepstow Adult Team,0,I&E,Personal Care.,,13/05/2024,15/05/2024,2168.92,,Lougher Home Care Ltd
Neighbourhood Services,Highways,Communities & Place,Potholing,0,I&E,Materials & Consumables.,,09/05/2024,03/06/2024,1325.28,,Tarmac Ltd
Neighbourhood Services,Highways,Communities & Place,Potholing,0,I&E,Materials & Consumables.,,09/05/2024,03/06/2024,199.2,,Tarmac Ltd
Neighbourhood Services,Highways,Communities & Place,Internal others,0,I&E,Materials & Consumables.,,15/02/2024,03/06/2024,240,,Tarmac Ltd
Neighbourhood Services,Highways,Communities & Place,Overhead - Mon Highways,0,I&E,Materials & Consumables.,,07/12/2023,03/06/2024,295.57,,Tarmac Ltd
Adult Services,Community Care Team,Social Care and Health,Monmouth Adult Team,0,I&E,Domestic Care,,21/05/2024,22/05/2024,596.44,,REDACTED PERSONAL DATA
Neighbourhood Services,Waste and Street Services,Communities & Place,Fitting Shop Grounds,0,I&E,Materials & Consumables.,,09/05/2024,22/05/2024,69.9,,Mon & Border Motor Factors Ltd
Neighbourhood Services,Waste and Street Services,Communities & Place,Fitting Shop Grounds,0,I&E,Materials & Consumables.,,12/05/2024,22/05/2024,198,,Mon & Border Motor Factors Ltd
Neighbourhood Services,Waste and Street Services,Communities & Place,Fitting Shop Grounds,0,I&E,Materials & Consumables.,,07/03/2024,22/05/2024,803.78,,Ted Hopkins Ltd
"Leisure, Youth & Outdoor Adventure",Youth & Education,MonLife Directorate,Duke of Edinburgh Award,0,I&E,Building Improvements / Maintenance,,15/05/2024,22/05/2024,1050,,Boels Rental
Neighbourhood Services,Waste and Street Services,Communities & Place,Fitting Shop Grounds,0,I&E,Materials & Consumables.,,26/03/2024,22/05/2024,1724.87,,Ted Hopkins Ltd
Neighbourhood Services,Waste and Street Services,Communities & Place,Fitting Shop Grounds,0,I&E,Materials & Consumables.,,17/05/2024,22/05/2024,976,,REDACTED PERSONAL DATA
Neighbourhood Services,Waste and Street Services,Communities & Place,Fitting Shop Grounds,0,I&E,Materials & Consumables.,,20/05/2024,22/05/2024,1227.1,,Riverlea
Neighbourhood Services,Waste and Street Services,Communities & Place,Fitting Shop Grounds,0,I&E,Materials & Consumables.,,20/05/2024,22/05/2024,789.77,,Riverlea
Neighbourhood Services,Waste and Street Services,Communities & Place,Fitting Shop Grounds,0,I&E,Materials & Consumables.,,17/04/2024,22/05/2024,282.8,,Mon & Border Motor Factors Ltd
Neighbourhood Services,Waste and Street Services,Communities & Place,Fitting Shop Grounds,0,I&E,Materials & Consumables.,,17/05/2024,22/05/2024,318.85,,Cambrian Group UK
Neighbourhood Services,Waste and Street Services,Communities & Place,Fitting Shop Grounds,0,I&E,Materials & Consumables.,,17/05/2024,22/05/2024,742.44,,Cambrian Group UK
Neighbourhood Services,Waste and Street Services,Communities & Place,Fitting Shop Grounds,0,I&E,Materials & Consumables.,,14/05/2024,22/05/2024,589,,David Evans Agricultural Ltd
Appropriations,Appropriations,Appropriations,Attributable Costs - Fixed Asset Disposal,0,I&E,Building Improvements / Maintenance,,30/04/2024,22/05/2024,900,,Asbri Planning Ltd
Adult Services,Community Care Team,Social Care and Health,Chepstow Adult Team,0,I&E,Residential.,,09/05/2024,14/05/2024,3880,,St Annes Nursing Home
Adult Services,ADULT DISABILITY SERVICES,Social Care and Health,CLDT,0,I&E,Residential.,,01/05/2024,14/05/2024,6401.48,,Achieve Together Limited
Adult Services,ADULT DISABILITY SERVICES,Social Care and Health,Resettlement,0,I&E,Residential.,,01/05/2024,14/05/2024,7403.76,,Achieve Together Limited
Adult Services,Community Care Team,Social Care and Health,Mental Health Care Team,0,I&E,FNC Social Care Nursing Tasks,,09/05/2024,14/05/2024,34.48,,St Annes Nursing Home
Adult Services,Community Care Team,Social Care and Health,Mental Health Care Team,0,I&E,Residential.,,09/05/2024,14/05/2024,3880,,St Annes Nursing Home
Adult Services,Community Care Team,Social Care and Health,Mental Health Care Team,0,I&E,Nursing.,,09/05/2024,14/05/2024,3788,,St Annes Nursing Home
Adult Services,Community Care Team,Social Care and Health,Mental Health Care Team,0,I&E,Nursing.,,09/05/2024,14/05/2024,3788,,St Annes Nursing Home
Adult Services,ADULT DISABILITY SERVICES,Social Care and Health,Resettlement,0,I&E,Residential.,,24/05/2024,03/06/2024,5308.04,,The Home Farm Trust
Neighbourhood Services,Highways,Communities & Place,Internal others,0,I&E,Materials & Consumables.,,19/03/2024,15/05/2024,380,,Dragon Asphalt Ltd
Neighbourhood Services,Highways,Communities & Place,Internal others,0,I&E,Materials & Consumables.,,20/03/2024,15/05/2024,476.9,,Dragon Asphalt Ltd
Neighbourhood Services,Highways,Communities & Place,Internal others,0,I&E,Materials & Consumables.,,13/01/2024,15/05/2024,590.9,,Dragon Asphalt Ltd
Neighbourhood Services,Highways,Communities & Place,Internal others,0,I&E,Materials & Consumables.,,23/03/2024,15/05/2024,391.4,,Dragon Asphalt Ltd
Neighbourhood Services,Highways,Communities & Place,Internal others,0,I&E,Materials & Consumables.,,31/01/2024,15/05/2024,193.8,,Dragon Asphalt Ltd
Neighbourhood Services,Highways,Communities & Place,Internal others,0,I&E,Materials & Consumables.,,21/03/2024,15/05/2024,380,,Dragon Asphalt Ltd
Schools Total,Schools,MCC Schools,Pupil Referral Unit,0,I&E,Agency Staff,,15/05/2024,22/05/2024,2553.36,,Axcis Education Recruitment
Schools Total,Schools,MCC Schools,Pupil Referral Unit,0,I&E,Agency Staff,,08/05/2024,22/05/2024,738.75,,Back Office Support Services Ltd (Education Supply Pool)
Standards,Additional Learning Needs,Children & Young People,Additional Learning Needs Administration Service,0,I&E,Agency Staff,,15/05/2024,20/05/2024,660,,Precision Resource Group Ltd
Schools Total,Schools,MCC Schools,Pupil Referral Unit,0,I&E,Agency Staff,,07/05/2024,28/05/2024,2390.85,,Apollo Teaching Services LTD
Schools Total,School Group 7 � Pupil Capacity 501-1800,MCC Schools,Monmouth Comprehensive,0,I&E,Agency Staff,,07/05/2024,15/05/2024,1040.85,,Apollo Teaching Services LTD
Schools Total,School Group 7 � Pupil Capacity 501-1800,MCC Schools,Monmouth Comprehensive,0,I&E,Agency Staff,,07/05/2024,15/05/2024,832.68,,Apollo Teaching Services LTD
Schools Total,School Group 7 � Pupil Capacity 501-1800,MCC Schools,Monmouth Comprehensive,0,I&E,Agency Staff,,07/05/2024,15/05/2024,1962.42,,TeacherActive
Schools Total,School Group 7 � Pupil Capacity 501-1800,MCC Schools,Monmouth Comprehensive,0,I&E,Agency Staff,,08/05/2024,15/05/2024,690.85,,Teaching Personnel
Schools Total,School Group 7 � Pupil Capacity 501-1800,MCC Schools,Monmouth Comprehensive,0,I&E,Agency Staff,,05/05/2024,15/05/2024,646.05,,New Directions Education Ltd
Schools Total,School Group 7 � Pupil Capacity 501-1800,MCC Schools,Monmouth Comprehensive,0,I&E,Agency Staff,,13/05/2024,15/05/2024,444,,Highgrade Recruitment Ltd
Schools Total,School Group 7 � Pupil Capacity 501-1800,MCC Schools,Monmouth Comprehensive,0,I&E,Agency Staff,,10/05/2024,15/05/2024,444,,Highgrade Recruitment Ltd
Schools Total,School Group 2 � Pupil Capacity 144-314,MCC Schools,Castle Park Primary School,0,I&E,Agency Staff,,14/05/2024,20/05/2024,1697.9,,Teaching 4 Wales Ltd
Schools Total,School Group 7 � Pupil Capacity 501-1800,MCC Schools,King Henry 3-19 School,0,I&E,Agency Staff,,28/04/2024,15/05/2024,126.96,,New Directions Education Ltd
Schools Total,School Group 7 � Pupil Capacity 501-1800,MCC Schools,King Henry 3-19 School,0,I&E,Agency Staff,,28/04/2024,15/05/2024,143.97,,New Directions Education Ltd
Schools Total,School Group 7 � Pupil Capacity 501-1800,MCC Schools,King Henry 3-19 School,0,I&E,Agency Staff,,28/04/2024,15/05/2024,14.66,,New Directions Education Ltd
Schools Total,School Group 7 � Pupil Capacity 501-1800,MCC Schools,King Henry 3-19 School,0,I&E,Agency Staff,,28/04/2024,15/05/2024,14.66,,New Directions Education Ltd
Schools Total,School Group 7 � Pupil Capacity 501-1800,MCC Schools,King Henry 3-19 School,0,I&E,Agency Staff,,28/04/2024,15/05/2024,217,,New Directions Education Ltd
Schools Total,School Group 7 � Pupil Capacity 501-1800,MCC Schools,King Henry 3-19 School,0,I&E,Agency Staff,,28/04/2024,15/05/2024,-2.23,,New Directions Education Ltd
Schools Total,School Group 7 � Pupil Capacity 501-1800,MCC Schools,King Henry 3-19 School,0,I&E,Agency Staff,,28/04/2024,15/05/2024,-6.14,,New Directions Education Ltd
Schools Total,School Group 7 � Pupil Capacity 501-1800,MCC Schools,King Henry 3-19 School,0,I&E,Agency Staff,,28/04/2024,15/05/2024,-1.12,,New Directions Education Ltd
Schools Total,School Group 7 � Pupil Capacity 501-1800,MCC Schools,King Henry 3-19 School,0,I&E,Agency Staff,,28/04/2024,15/05/2024,-4.47,,New Directions Education Ltd
Schools Total,School Group 7 � Pupil Capacity 501-1800,MCC Schools,King Henry 3-19 School,0,I&E,Agency Staff,,28/04/2024,15/05/2024,143.97,,New Directions Education Ltd
Schools Total,School Group 7 � Pupil Capacity 501-1800,MCC Schools,King Henry 3-19 School,0,I&E,Agency Staff,,28/04/2024,15/05/2024,143.97,,New Directions Education Ltd
Schools Total,School Group 7 � Pupil Capacity 501-1800,MCC Schools,King Henry 3-19 School,0,I&E,Agency Staff,,28/04/2024,15/05/2024,42.32,,New Directions Education Ltd
Schools Total,School Group 7 � Pupil Capacity 501-1800,MCC Schools,King Henry 3-19 School,0,I&E,Agency Staff,,28/04/2024,15/05/2024,142.02,,New Directions Education Ltd
Schools Total,School Group 2 � Pupil Capacity 144-314,MCC Schools,Our Lady & St Michael's (OLSM) RC Primary School (VA),0,I&E,Agency Staff,,14/05/2024,22/05/2024,1049.17,,TeacherActive
Schools Total,School Group 7 � Pupil Capacity 501-1800,MCC Schools,King Henry 3-19 School,0,I&E,Agency Staff,,19/05/2024,30/05/2024,217,,New Directions Education Ltd
Schools Total,School Group 7 � Pupil Capacity 501-1800,MCC Schools,King Henry 3-19 School,0,I&E,Agency Staff,,19/05/2024,30/05/2024,217,,New Directions Education Ltd
Schools Total,School Group 7 � Pupil Capacity 501-1800,MCC Schools,King Henry 3-19 School,0,I&E,Agency Staff,,19/05/2024,30/05/2024,217,,New Directions Education Ltd
Schools Total,School Group 7 � Pupil Capacity 501-1800,MCC Schools,King Henry 3-19 School,0,I&E,Agency Staff,,19/05/2024,30/05/2024,63.48,,New Directions Education Ltd
Schools Total,School Group 7 � Pupil Capacity 501-1800,MCC Schools,King Henry 3-19 School,0,I&E,Agency Staff,,19/05/2024,30/05/2024,63.48,,New Directions Education Ltd
Schools Total,School Group 7 � Pupil Capacity 501-1800,MCC Schools,King Henry 3-19 School,0,I&E,Agency Staff,,19/05/2024,30/05/2024,240,,New Directions Education Ltd
Schools Total,School Group 7 � Pupil Capacity 501-1800,MCC Schools,King Henry 3-19 School,0,I&E,Agency Staff,,19/05/2024,30/05/2024,128.72,,New Directions Education Ltd
Schools Total,School Group 7 � Pupil Capacity 501-1800,MCC Schools,King Henry 3-19 School,0,I&E,Agency Staff,,19/05/2024,30/05/2024,-6.21,,New Directions Education Ltd
Adult Services,Community Care Team,Social Care and Health,Chepstow Adult Team,0,I&E,Personal Care.,,13/05/2024,15/05/2024,495.04,,Lougher Home Care Ltd
Adult Services,Community Care Team,Social Care and Health,Chepstow Adult Team,0,I&E,Personal Care.,,13/05/2024,15/05/2024,412.6,,Lougher Home Care Ltd
Adult Services,Community Care Team,Social Care and Health,Chepstow Adult Team,0,I&E,Personal Care.,,13/05/2024,15/05/2024,3300.64,,Lougher Home Care Ltd
Standards,Early Years,Children & Young People,Flying Start Grant,0,I&E,Equipment Purchases,,09/05/2024,15/05/2024,111.89,,Hope Education Ltd
Standards,Early Years,Children & Young People,Flying Start Grant,0,I&E,Equipment Purchases,,13/05/2024,15/05/2024,44.12,,Amazon Payments UK Limited
Adult Services,Community Care Team,Social Care and Health,Chepstow Adult Team,0,I&E,Personal Care.,,21/05/2024,22/05/2024,1004.24,,REDACTED PERSONAL DATA
Adult Services,Community Care Team,Social Care and Health,Chepstow Adult Team,0,I&E,Personal Care.,,21/05/2024,22/05/2024,2820,,REDACTED PERSONAL DATA
Adult Services,Community Care Team,Social Care and Health,Chepstow Adult Team,0,I&E,Personal Care.,,21/05/2024,22/05/2024,1087.92,,REDACTED PERSONAL DATA
Adult Services,Community Care Team,Social Care and Health,Chepstow Adult Team,0,I&E,Personal Care.,,21/05/2024,22/05/2024,124,,REDACTED PERSONAL DATA
Adult Services,Community Care Team,Social Care and Health,Chepstow Adult Team,0,I&E,Personal Care.,,21/05/2024,22/05/2024,1790.72,,REDACTED PERSONAL DATA
Adult Services,Community Care Team,Social Care and Health,Chepstow Adult Team,0,I&E,Personal Care.,,21/05/2024,22/05/2024,560.4,,REDACTED PERSONAL DATA
Adult Services,Community Care Team,Social Care and Health,Chepstow Adult Team,0,I&E,Personal Care.,,21/05/2024,22/05/2024,4920.72,,REDACTED PERSONAL DATA
Adult Services,Community Care Team,Social Care and Health,Chepstow Adult Team,0,I&E,Personal Care.,,21/05/2024,22/05/2024,240,,REDACTED PERSONAL DATA
"Facilities, Fleet & Decarbonisation",Property Services -  Cleaning,Communities & Place,Public Conveniences,0,I&E,Electricity.,,03/04/2024,14/05/2024,265.94,,EDF Energy
"Enterprise, Housing & Community Animation",General Fund Housing,Communities & Place,Lodgings Scheme,0,I&E,Electricity.,,03/04/2024,14/05/2024,268.87,,EDF Energy
"Leisure, Youth & Outdoor Adventure",Youth & Education,MonLife Directorate,Gilwern,0,I&E,Electricity.,,03/04/2024,14/05/2024,417.26,,EDF Energy
"Leisure, Youth & Outdoor Adventure",Leisure Services,MonLife Directorate,Raglan CRC,0,I&E,Electricity.,,03/04/2024,14/05/2024,131.42,,EDF Energy
"Facilities, Fleet & Decarbonisation",De-Carbonisation,Communities & Place,Sustainability,0,I&E,Software Annual,,13/05/2024,11/06/2024,-3915,,Clenergy EV Ltd
Finance & Business Devlopment,Attractions,MonLife Directorate,Old Station Tintern,0,I&E,Equipment Purchases,,29/04/2024,28/05/2024,6.24,,Amazon Payments UK Limited
"Leisure, Youth & Outdoor Adventure",Leisure Services,MonLife Directorate,Monmouth Leisure Centre,0,I&E,Equipment Purchases,,15/05/2024,28/05/2024,247.5,,M J Events Support Ltd
"Leisure, Youth & Outdoor Adventure",Leisure Services,MonLife Directorate,Monmouth Leisure Centre,0,I&E,Equipment Purchases,,02/05/2024,14/05/2024,234.5,,J P Lennard Ltd
Finance & Business Devlopment,Community Hubs,MonLife Directorate,Strategic Management,0,I&E,IT Software,,20/05/2024,22/05/2024,2048.29,,Civica UK Ltd
Schools Total,SCHGRP3 � School Group 3 � Pupil Capacity 315-500,MCC Schools,The Dell Primary School,0,I&E,IT Hardware,,19/03/2024,22/05/2024,970.09,,Societe Generale Equipment Finance Limited
"Leisure, Youth & Outdoor Adventure",Youth & Education,MonLife Directorate,Duke of Edinburgh Award,0,I&E,Equipment Purchases,,17/05/2024,22/05/2024,77,,Access Expedition Kit
Schools Total,School Group 2 � Pupil Capacity 144-314,MCC Schools,Usk CiW Primary School (VC),0,I&E,IT Hardware,,16/05/2024,28/05/2024,100,,Microsmith Electronics Ltd
Adult Services,Community Care Team,Social Care and Health,Chepstow Adult Team,0,I&E,Personal Care.,,14/05/2024,20/05/2024,2592,,Community Care Services
Capital Division,Capital Dept,Capital,Capital Programme,0,I&E,Professional And Specialist Fees,,07/03/2024,20/05/2024,1571.85,,Network Rail
"Leisure, Youth & Outdoor Adventure",Leisure Services,MonLife Directorate,Caldicot Leisure Centre,0,I&E,Electricity.,,02/04/2024,14/05/2024,15686.13,,EDF Energy
"Leisure, Youth & Outdoor Adventure",Leisure Services,MonLife Directorate,Chepstow Leisure Centre,0,I&E,Electricity.,,02/04/2024,14/05/2024,7171.14,,EDF Energy
"Leisure, Youth & Outdoor Adventure",Leisure Services,MonLife Directorate,Monmouth Leisure Centre,0,I&E,Electricity.,,02/04/2024,14/05/2024,20038.14,,EDF Energy
"Facilities, Fleet & Decarbonisation",Property Services -  Cleaning,Communities & Place,Public Conveniences,0,I&E,Electricity.,,11/03/2024,14/05/2024,0.29,,EDF Energy
"Commercial, Corporate & landlord Services",Property Services & Facilities Management,Resources,Reactive Maintenance,0,I&E,Building Improvements / Maintenance,,21/03/2024,24/05/2024,73.5,,EFS Systems (UK) Ltd
Children Services,Children Services Teams,Social Care and Health,Long Term Support Team,0,I&E,Residential.,,13/05/2024,15/05/2024,16443,,Nurtured Future Living LTD
Children Services,Children Services Teams,Social Care and Health,Long Term Support Team,0,I&E,Residential.,,07/05/2024,15/05/2024,16443,,Nurtured Future Living LTD
"Commercial, Corporate & landlord Services",Property Services & Facilities Management,Resources,Reactive Maintenance,0,I&E,Building Improvements / Maintenance,,15/05/2024,21/05/2024,50,,Ambassador Fire & Security LTD
"Commercial, Corporate & landlord Services",Property Services & Facilities Management,Resources,Reactive Maintenance,0,I&E,Building Improvements / Maintenance,,15/05/2024,21/05/2024,50,,Ambassador Fire & Security LTD
"Commercial, Corporate & landlord Services",Property Services & Facilities Management,Resources,Reactive Maintenance,0,I&E,Building Improvements / Maintenance,,15/05/2024,21/05/2024,50,,Ambassador Fire & Security LTD
"Commercial, Corporate & landlord Services",Property Services & Facilities Management,Resources,Magor Accommodation,0,I&E,Building Improvements / Maintenance,,15/05/2024,21/05/2024,50,,Ambassador Fire & Security LTD
Adult Services,Community Care Team,Social Care and Health,Mental Health Care Team,0,I&E,Personal Care.,,29/04/2024,07/05/2024,388.86,,JSJ Supported Living Ltd
"Commercial, Corporate & landlord Services",Property Services & Facilities Management,Resources,Reactive Maintenance,0,I&E,Building Improvements / Maintenance,,21/05/2024,28/05/2024,564.16,,Dale Sauna Ltd
"Commercial, Corporate & landlord Services",Property Services & Facilities Management,Resources,External Clients,0,I&E,Building Improvements / Maintenance,,14/05/2024,28/05/2024,135,,Dale Sauna Ltd
Adult Services,Community Care Team,Social Care and Health,Mental Health Care Team,0,I&E,Personal Care.,,17/05/2024,28/05/2024,2528,,Abicare Services Ltd
Adult Services,Community Care Team,Social Care and Health,Mental Health Care Team,0,I&E,Personal Care.,,26/04/2024,03/05/2024,999.14,,Allied Healthcare Services Limited
Adult Services,Community Care Team,Social Care and Health,Mental Health Care Team,0,I&E,Personal Care.,,08/05/2024,15/05/2024,319.2,,Helping Hands
Adult Services,Community Care Team,Social Care and Health,Mental Health Care Team,0,I&E,Personal Care.,,08/05/2024,15/05/2024,940.8,,Helping Hands
Adult Services,Community Care Team,Social Care and Health,Mental Health Care Team,0,I&E,Personal Care.,,17/05/2024,28/05/2024,2900,,Abicare Services Ltd
Adult Services,Community Care Team,Social Care and Health,Mental Health Care Team,0,I&E,Personal Care.,,17/05/2024,28/05/2024,3220,,Abicare Services Ltd
Adult Services,Community Care Team,Social Care and Health,Mental Health Care Team,0,I&E,Personal Care.,,17/05/2024,28/05/2024,2900,,Abicare Services Ltd
Adult Services,Community Care Team,Social Care and Health,Mental Health Care Team,0,I&E,Personal Care.,,17/05/2024,28/05/2024,2680,,Abicare Services Ltd
Adult Services,Community Care Team,Social Care and Health,Abergavenny Adult Team,0,I&E,Residential.,,28/04/2024,07/05/2024,3476,,Penpergwm House Ltd
"Commercial, Corporate & landlord Services",Property Services & Facilities Management,Resources,Reactive Maintenance,0,I&E,Building Improvements / Maintenance,,10/05/2024,14/05/2024,50,,Ambassador Fire & Security LTD
Adult Services,Community Care Team,Social Care and Health,Abergavenny Adult Team,0,I&E,Residential.,,28/04/2024,07/05/2024,2607,,Penpergwm House Ltd
Adult Services,Community Care Team,Social Care and Health,Mental Health Care Team,0,I&E,Personal Care.,,24/04/2024,07/05/2024,61.08,,New Directions Care & Support
Adult Services,Community Care Team,Social Care and Health,Mental Health Care Team,0,I&E,Personal Care.,,01/05/2024,07/05/2024,149.88,,Radis Community Care
Adult Services,Community Care Team,Social Care and Health,Abergavenny Adult Team,0,I&E,Residential.,,28/04/2024,07/05/2024,3880,,Glaslyn Retirement Home Ltd
Adult Services,Community Care Team,Social Care and Health,Mental Health Care Team,0,I&E,Personal Care.,,13/05/2024,15/05/2024,259.38,,Lougher Home Care Ltd
Adult Services,Community Care Team,Social Care and Health,Mental Health Care Team,0,I&E,Personal Care.,,13/05/2024,15/05/2024,1155.28,,Lougher Home Care Ltd
Adult Services,Community Care Team,Social Care and Health,Mental Health Care Team,0,I&E,Personal Care.,,13/05/2024,15/05/2024,4290.72,,Lougher Home Care Ltd
Adult Services,Community Care Team,Social Care and Health,Mental Health Care Team,0,I&E,Personal Care.,,14/05/2024,15/05/2024,583.44,,Lougher Home Care Ltd
"Commercial, Corporate & landlord Services",Property Services & Facilities Management,Resources,External Clients,0,I&E,Building Improvements / Maintenance,,21/05/2024,28/05/2024,1480,,Newport City Council
Adult Services,Community Care Team,Social Care and Health,Mental Health Care Team,0,I&E,Personal Care.,,07/05/2024,08/05/2024,153.37,,My Care My Home Ltd
Schools Total,School Group 7 � Pupil Capacity 501-1800,MCC Schools,King Henry 3-19 School,0,I&E,Computer Consumables,,25/04/2024,02/05/2024,2350,,Comcen Computer Supplies Ltd
Schools Total,School Group 7 � Pupil Capacity 501-1800,MCC Schools,King Henry 3-19 School,0,I&E,Computer Consumables,,25/04/2024,02/05/2024,1498,,Comcen Computer Supplies Ltd
Schools Total,School Group 7 � Pupil Capacity 501-1800,MCC Schools,King Henry 3-19 School,0,I&E,Computer Consumables,,25/04/2024,02/05/2024,500,,Comcen Computer Supplies Ltd
Adult Services,Community Care Team,Social Care and Health,Chepstow Adult Team,0,I&E,Personal Care.,,21/05/2024,22/05/2024,755.4,,REDACTED PERSONAL DATA
Finance & Business Devlopment,Attractions,MonLife Directorate,Caldicot Castle & Country Park,0,I&E,Electricity.,,16/04/2024,23/05/2024,-2.52,,EDF Energy
"Facilities, Fleet & Decarbonisation",Property Services -  Cleaning,Communities & Place,Public Conveniences,0,I&E,Electricity.,,01/05/2024,23/05/2024,173.46,,EDF Energy
"Facilities, Fleet & Decarbonisation",Property Services -  Cleaning,Communities & Place,Public Conveniences,0,I&E,Electricity.,,01/05/2024,23/05/2024,0.83,,EDF Energy
Neighbourhood Services,Highways,Communities & Place,Street Lighting,0,I&E,Electricity.,,24/04/2024,23/05/2024,55561.31,,EDF Energy
"Commercial, Corporate & landlord Services",Asset Management,Resources,Industrial Units,0,I&E,Electricity.,,09/05/2024,23/05/2024,-0.12,,EDF Energy
"Commercial, Corporate & landlord Services",Property Services & Facilities Management,Resources,Central Accommodation,0,I&E,Electricity.,,01/05/2024,23/05/2024,13.81,,EDF Energy
"Commercial, Corporate & landlord Services",Property Services & Facilities Management,Resources,Central Accommodation,0,I&E,Electricity.,,01/05/2024,23/05/2024,3701.04,,EDF Energy
"Commercial, Corporate & landlord Services",Property Services & Facilities Management,Resources,Central Accommodation,0,I&E,Electricity.,,10/05/2024,23/05/2024,6.15,,EDF Energy
"Commercial, Corporate & landlord Services",Asset Management,Resources,Investment Assets � Newport Leisure Park,0,I&E,Electricity.,,24/09/2023,23/05/2024,2928.13,,TOTAL GAS & POWER LIMITED
"Commercial, Corporate & landlord Services",Asset Management,Resources,Investment Assets � Newport Leisure Park,0,I&E,Electricity.,,24/09/2023,23/05/2024,471.7,,TOTAL GAS & POWER LIMITED
"Facilities, Fleet & Decarbonisation",De-Carbonisation,Communities & Place,Solar Farm,0,I&E,Electricity.,,05/05/2024,23/05/2024,393.5,,EDF Energy
"Leisure, Youth & Outdoor Adventure",Leisure Services,MonLife Directorate,Chepstow Leisure Centre,0,I&E,Electricity.,,01/05/2024,23/05/2024,15.56,,EDF Energy
Schools Total,School Group 2 � Pupil Capacity 144-314,MCC Schools,Llanfoist Fawr Primary School,0,I&E,Electricity.,,01/05/2024,23/05/2024,1702.59,,EDF Energy
Neighbourhood Services,Highways,Communities & Place,Street Lighting,0,I&E,Electricity.,,24/04/2024,23/05/2024,-76.22,,EDF Energy
Neighbourhood Services,Highways,Communities & Place,Street Lighting,0,I&E,Electricity.,,24/04/2024,23/05/2024,-57550.23,,EDF Energy
Adult Services,Community Care Team,Social Care and Health,Chepstow Adult Team,0,I&E,Personal Care.,,21/05/2024,22/05/2024,241.84,,REDACTED PERSONAL DATA
Adult Services,Community Care Team,Social Care and Health,Chepstow Adult Team,0,I&E,Personal Care.,,21/05/2024,22/05/2024,462,,REDACTED PERSONAL DATA
Adult Services,Community Care Team,Social Care and Health,Chepstow Adult Team,0,I&E,Personal Care.,,21/05/2024,22/05/2024,1101.04,,REDACTED PERSONAL DATA
Neighbourhood Services,Highways,Communities & Place,Overhead - Mon Highways,0,I&E,Electricity.,,14/10/2023,23/05/2024,22.57,,EDF Energy
Neighbourhood Services,Highways,Communities & Place,Overhead - Mon Highways,0,I&E,Electricity.,,14/10/2023,23/05/2024,4360.73,,EDF Energy
Schools Total,School Group 2 � Pupil Capacity 144-314,MCC Schools,Shirenewton Primary School,0,I&E,Computer Consumables,,17/05/2024,22/05/2024,115.34,,Uk Laser Suppliers
"Commercial, Corporate & landlord Services",Asset Management,Resources,Industrial Units,0,I&E,Electricity.,,09/05/2024,23/05/2024,-29.55,,EDF Energy
Finance & Business Devlopment,Attractions,MonLife Directorate,Caldicot Castle & Country Park,0,I&E,Electricity.,,16/04/2024,23/05/2024,-345.83,,EDF Energy
"Enterprise, Housing & Community Animation",General Fund Housing,Communities & Place,Melin PSL (Private Sector Leasing),0,I&E,Electricity.,,11/04/2024,23/05/2024,56.1,,EDF Energy
"Enterprise, Housing & Community Animation",General Fund Housing,Communities & Place,Melin PSL (Private Sector Leasing),0,I&E,Electricity.,,11/04/2024,23/05/2024,0.93,,EDF Energy
Schools Total,School Group 2 � Pupil Capacity 144-314,MCC Schools,Archbishop Rowan Williams CiW Primary School (VA),0,I&E,Electricity.,,02/04/2024,14/05/2024,2328.44,,EDF Energy
"Facilities, Fleet & Decarbonisation",De-Carbonisation,Communities & Place,Solar Farm,0,I&E,Electricity.,,08/04/2024,14/05/2024,724.8,,EDF Energy
Neighbourhood Services,Waste and Street Services,Communities & Place,Refuse & Cleansing Operations,0,I&E,Electricity.,,03/04/2024,14/05/2024,15.56,,EDF Energy
"Leisure, Youth & Outdoor Adventure",Leisure Services,MonLife Directorate,Monmouth Leisure Centre,0,I&E,Equipment Purchases,,02/05/2024,14/05/2024,17.65,,J P Lennard Ltd
Finance & Business Devlopment,Community Hubs,MonLife Directorate,Strategic Management,0,I&E,Software Annual,,21/05/2024,03/06/2024,4554.46,,SirsiDynix
"Commercial, Corporate & landlord Services",Asset Management,Resources,Strategic Property Management,0,I&E,Electricity.,,15/03/2024,14/05/2024,-144.82,,EDF Energy
Neighbourhood Services,Waste and Street Services,Communities & Place,Refuse & Cleansing Operations,0,I&E,Electricity.,,02/04/2024,14/05/2024,17.26,,EDF Energy
Neighbourhood Services,Waste and Street Services,Communities & Place,Refuse & Cleansing Operations,0,I&E,Electricity.,,03/04/2024,14/05/2024,87.5,,EDF Energy
"Commercial, Corporate & landlord Services",Asset Management,Resources,Cemeteries,0,I&E,Electricity.,,02/04/2024,14/05/2024,680,,EDF Energy
Finance & Business Devlopment,Attractions,MonLife Directorate,Tourist Information Centres,0,I&E,Electricity.,,02/04/2024,14/05/2024,643.95,,EDF Energy
"Commercial, Corporate & landlord Services",Property Services & Facilities Management,Resources,Central Accommodation,0,I&E,Electricity.,,02/04/2024,14/05/2024,411.88,,EDF Energy
"Leisure, Youth & Outdoor Adventure",Leisure Services,MonLife Directorate,Monmouth Leisure Centre,0,I&E,Equipment Purchases,,07/05/2024,28/05/2024,247.5,,M J Events Support Ltd
"Leisure, Youth & Outdoor Adventure",Leisure Services,MonLife Directorate,Monmouth Leisure Centre,0,I&E,Equipment Purchases,,07/05/2024,28/05/2024,82.5,,M J Events Support Ltd
Finance & Business Devlopment,Museums,MonLife Directorate,Museums Abergavenny,0,I&E,Electricity.,,02/04/2024,14/05/2024,1494.69,,EDF Energy
Neighbourhood Services,Highways,Communities & Place,Street Lighting,0,I&E,Electricity.,,24/04/2024,23/05/2024,-52006.95,,EDF Energy
Neighbourhood Services,Highways,Communities & Place,Street Lighting,0,I&E,Electricity.,,24/04/2024,23/05/2024,462.35,,EDF Energy
Neighbourhood Services,Highways,Communities & Place,Overhead - SWTRA / External,0,I&E,Stationery,,12/03/2024,10/05/2024,172.31,,Newport Printing Co Ltd
Neighbourhood Services,Highways,Communities & Place,Highways Office Services,0,I&E,Stationery,,19/04/2024,10/05/2024,161.45,,Newport Printing Co Ltd
Neighbourhood Services,Highways,Communities & Place,Highways Office Services,0,I&E,Computer Consumables,,03/04/2024,10/05/2024,1139.8,,Newport Printing Co Ltd
Children Services,Children Services Teams,Social Care and Health,Family Support and Protection Team � North,0,I&E,IT Hardware,,10/05/2024,15/05/2024,89.34,,SRS Public
Capital Division,Capital Dept,Capital,Capital Programme,0,I&E,Professional And Specialist Fees,,13/05/2024,15/05/2024,6617,,Arad Consulting
"Facilities, Fleet & Decarbonisation",Transport Planning,Communities & Place,Public Transport Subsidy Grant,0,I&E,Equipment Purchases,,07/05/2024,15/05/2024,2311.1,,Centregreat Ltd
Neighbourhood Services,Highways,Communities & Place,Street Lighting,0,I&E,Electricity.,,24/04/2024,23/05/2024,52006.95,,EDF Energy
Schools Total,School Group 2 � Pupil Capacity 144-314,MCC Schools,Kymin View Primary School,0,I&E,Electricity.,,01/05/2024,23/05/2024,8.28,,EDF Energy
Schools Total,School Group 2 � Pupil Capacity 144-314,MCC Schools,Kymin View Primary School,0,I&E,Electricity.,,01/05/2024,23/05/2024,2380.6,,EDF Energy
Adult Services,Community Care Team,Social Care and Health,Chepstow Adult Team,0,I&E,Personal Care.,,01/05/2024,07/05/2024,577.1,,Radis Community Care
Adult Services,Community Care Team,Social Care and Health,Chepstow Adult Team,0,I&E,Personal Care.,,01/05/2024,07/05/2024,1194.08,,Radis Community Care
Adult Services,Community Care Team,Social Care and Health,Chepstow Adult Team,0,I&E,Personal Care.,,01/05/2024,07/05/2024,464.6,,Radis Community Care
Schools Total,School Group 2 � Pupil Capacity 144-314,MCC Schools,Castle Park Primary School,0,I&E,Electricity.,,01/05/2024,23/05/2024,906.9,,EDF Energy
Schools Total,School Group 2 � Pupil Capacity 144-314,MCC Schools,Castle Park Primary School,0,I&E,Electricity.,,01/05/2024,23/05/2024,3.64,,EDF Energy
Finance,Systems & Exchequer,Resources,Financial Systems Support and VAT,0,I&E,IT Software,,17/05/2024,28/05/2024,12574.8,,FISCAL Technologies Ltd
"Enterprise, Housing & Community Animation",General Fund Housing,Communities & Place,Lodgings Scheme,0,I&E,Removal Costs,,17/04/2024,03/05/2024,75,,Highmore Facilities Ltd
"Enterprise, Housing & Community Animation",General Fund Housing,Communities & Place,Lodgings Scheme,0,I&E,Removal Costs,,17/04/2024,03/05/2024,225,,Highmore Facilities Ltd
Neighbourhood Services,Highways,Communities & Place,Potholing,0,I&E,Materials & Consumables.,,23/03/2024,15/05/2024,345.8,,Dragon Asphalt Ltd
Neighbourhood Services,Highways,Communities & Place,Potholing,0,I&E,Materials & Consumables.,,31/01/2024,15/05/2024,290.7,,Dragon Asphalt Ltd
Neighbourhood Services,Waste and Street Services,Communities & Place,Fitting Shop Grounds,0,I&E,Materials & Consumables.,,17/05/2024,22/05/2024,51.44,,Mon & Border Motor Factors Ltd
Neighbourhood Services,Waste and Street Services,Communities & Place,Fitting Shop Grounds,0,I&E,Materials & Consumables.,,17/05/2024,22/05/2024,46.78,,Ted Hopkins Ltd
Neighbourhood Services,Waste and Street Services,Communities & Place,Fitting Shop Grounds,0,I&E,Materials & Consumables.,,16/05/2024,22/05/2024,266.25,,Trailparts
Adult Services,Community Care Team,Social Care and Health,Mental Health Care Team,0,I&E,FNC Social Care Nursing Tasks,,09/05/2024,14/05/2024,34.48,,St Annes Nursing Home
Schools Total,School Group 2 � Pupil Capacity 144-314,MCC Schools,Llanfoist Fawr Primary School,0,I&E,Materials & Consumables.,,26/04/2024,20/05/2024,174.55,,Hope Education Ltd
Appropriations,Appropriations,Appropriations,Attributable Costs - Fixed Asset Disposal,0,I&E,Building Improvements / Maintenance,,14/05/2024,20/05/2024,1000,,JBA Consulting
Neighbourhood Services,Highways,Communities & Place,Internal others,0,I&E,Materials & Consumables.,,22/02/2024,15/05/2024,298.3,,Dragon Asphalt Ltd
Neighbourhood Services,Highways,Communities & Place,Internal others,0,I&E,Materials & Consumables.,,24/02/2024,15/05/2024,243.2,,Dragon Asphalt Ltd
Neighbourhood Services,Highways,Communities & Place,Internal others,0,I&E,Materials & Consumables.,,28/02/2024,15/05/2024,475,,Dragon Asphalt Ltd
Neighbourhood Services,Highways,Communities & Place,Internal others,0,I&E,Materials & Consumables.,,11/03/2024,15/05/2024,294.5,,Dragon Asphalt Ltd
Neighbourhood Services,Waste and Street Services,Communities & Place,Refuse & Cleansing Operations,0,I&E,Materials & Consumables.,,07/05/2024,28/05/2024,384.34,,Crownhill Topsoil
Neighbourhood Services,Waste and Street Services,Communities & Place,Fitting Shop Grounds,0,I&E,Materials & Consumables.,,17/05/2024,28/05/2024,719.8,,Cambrian Group UK
Adult Services,ADULT DISABILITY SERVICES,Social Care and Health,CLDT,0,I&E,Residential.,,01/05/2024,14/05/2024,8449.48,,The Orchard Trust
Adult Services,ADULT DISABILITY SERVICES,Social Care and Health,CLDT,0,I&E,Residential.,,01/05/2024,14/05/2024,7793.68,,The Orchard Trust
"Enterprise, Housing & Community Animation",General Fund Housing,Communities & Place,Emergency Accommodation Hostel,0,I&E,Building Improvements / Maintenance,,17/04/2024,03/05/2024,150,,Highmore Facilities Ltd
"Enterprise, Housing & Community Animation",General Fund Housing,Communities & Place,Lodgings Scheme,0,I&E,Building Improvements / Maintenance,,17/04/2024,03/05/2024,150,,Highmore Facilities Ltd
"Enterprise, Housing & Community Animation",General Fund Housing,Communities & Place,Lodgings Scheme,0,I&E,Building Improvements / Maintenance,,17/04/2024,03/05/2024,150,,Highmore Facilities Ltd
"Enterprise, Housing & Community Animation",General Fund Housing,Communities & Place,Melin PSL (Private Sector Leasing),0,I&E,Building Improvements / Maintenance,,17/04/2024,03/05/2024,1085,,Highmore Facilities Ltd
"Enterprise, Housing & Community Animation",General Fund Housing,Communities & Place,62 Chepstow Road Hostel,0,I&E,Building Improvements / Maintenance,,17/04/2024,03/05/2024,150,,Highmore Facilities Ltd
Adult Services,Community Care Team,Social Care and Health,Mental Health Care Team,0,I&E,Residential.,,25/04/2024,02/05/2024,4539.86,,Shaw healthcare (Group) Ltd
Adult Services,Community Care Team,Social Care and Health,Mental Health Care Team,0,I&E,Residential.,,25/04/2024,02/05/2024,4539.86,,Shaw healthcare (Group) Ltd
Adult Services,Community Care Team,Social Care and Health,Mental Health Care Team,0,I&E,Residential.,,25/04/2024,02/05/2024,4539.86,,Shaw healthcare (Group) Ltd
Adult Services,Community Care Team,Social Care and Health,Mental Health Care Team,0,I&E,Residential.,,25/04/2024,02/05/2024,4539.86,,Shaw healthcare (Group) Ltd
Neighbourhood Services,Waste and Street Services,Communities & Place,Fitting Shop Grounds,0,I&E,Materials & Consumables.,,20/03/2024,28/05/2024,747.52,,RS Components Ltd
Adult Services,Community Care Team,Social Care and Health,Mental Health Care Team,0,I&E,Nursing.,,25/04/2024,02/05/2024,6478.85,,Shaw healthcare (Group) Ltd
Adult Services,Community Care Team,Social Care and Health,Mental Health Care Team,0,I&E,Nursing.,,01/05/2024,02/05/2024,4714.29,,Ty Ceirios Nursing Home
Adult Services,Community Care Team,Social Care and Health,Chepstow Adult Team,0,I&E,Nursing.,,30/04/2024,02/05/2024,3402.86,,HEALTHCARE HOMES
Adult Services,ADULT DISABILITY SERVICES,Social Care and Health,CLDT,0,I&E,Residential.,,30/04/2024,02/05/2024,4830.43,,REDACTED PERSONAL DATA
Adult Services,ADULT DISABILITY SERVICES,Social Care and Health,Resettlement,0,I&E,Residential.,,30/04/2024,02/05/2024,5447.57,,REDACTED PERSONAL DATA
Schools Total,School Group 2 � Pupil Capacity 144-314,MCC Schools,Cantref Primary School,0,I&E,Materials & Consumables.,,05/05/2024,08/05/2024,90,,School Merit Stickers
Schools Total,School Group 2 � Pupil Capacity 144-314,MCC Schools,Our Lady & St Michael's (OLSM) RC Primary School (VA),0,I&E,Materials & Consumables.,,20/03/2024,14/05/2024,13.32,,Amazon Payments UK Limited
Schools Total,School Group 2 � Pupil Capacity 144-314,MCC Schools,Our Lady & St Michael's (OLSM) RC Primary School (VA),0,I&E,Materials & Consumables.,,20/03/2024,14/05/2024,6.66,,Amazon Payments UK Limited
Adult Services,INTEGRATED CARE FUND,Social Care and Health,Family Group Conferences (Monm),0,I&E,Rents/Hire Of Premises.,,29/04/2024,22/05/2024,28,,Bulwark Community Centre
Schools Total,School Group 2 � Pupil Capacity 144-314,MCC Schools,Shirenewton Primary School,0,I&E,Toilet Requisites,,07/05/2024,22/05/2024,76.14,,Newhall Janitorial Ltd
Schools Total,School Group 2 � Pupil Capacity 144-314,MCC Schools,Shirenewton Primary School,0,I&E,Toilet Requisites,,07/05/2024,22/05/2024,96.7,,Newhall Janitorial Ltd
Schools Total,School Group 2 � Pupil Capacity 144-314,MCC Schools,Shirenewton Primary School,0,I&E,Toilet Requisites,,07/05/2024,22/05/2024,170.16,,Newhall Janitorial Ltd
Adult Services,Community Care Team,Social Care and Health,Abergavenny Adult Team,0,I&E,Personal Care.,,21/05/2024,22/05/2024,1315.12,,REDACTED PERSONAL DATA
Adult Services,Community Care Team,Social Care and Health,Abergavenny Adult Team,0,I&E,Personal Care.,,21/05/2024,22/05/2024,1028.16,,REDACTED PERSONAL DATA
Adult Services,Community Care Team,Social Care and Health,Abergavenny Adult Team,0,I&E,Personal Care.,,21/05/2024,22/05/2024,173.68,,REDACTED PERSONAL DATA
Adult Services,Community Care Team,Social Care and Health,Monmouth Adult Team,0,I&E,Personal Care.,,21/05/2024,22/05/2024,1794.88,,REDACTED PERSONAL DATA
Adult Services,Community Care Team,Social Care and Health,Monmouth Adult Team,0,I&E,Personal Care.,,21/05/2024,22/05/2024,2240,,REDACTED PERSONAL DATA
Adult Services,Community Care Team,Social Care and Health,Monmouth Adult Team,0,I&E,Personal Care.,,21/05/2024,22/05/2024,2820,,REDACTED PERSONAL DATA
Adult Services,Community Care Team,Social Care and Health,Monmouth Adult Team,0,I&E,Personal Care.,,21/05/2024,22/05/2024,1718.76,,REDACTED PERSONAL DATA
Adult Services,Community Care Team,Social Care and Health,Monmouth Adult Team,0,I&E,Personal Care.,,21/05/2024,22/05/2024,9118,,REDACTED PERSONAL DATA
Adult Services,Community Care Team,Social Care and Health,Monmouth Adult Team,0,I&E,Personal Care.,,21/05/2024,22/05/2024,1802.8,,REDACTED PERSONAL DATA
Schools Total,School Group 2 � Pupil Capacity 144-314,MCC Schools,Shirenewton Primary School,0,I&E,Toilet Requisites,,07/05/2024,22/05/2024,61.98,,Newhall Janitorial Ltd
Schools Total,SCHGRP3 � School Group 3 � Pupil Capacity 315-500,MCC Schools,Undy Primary School,0,I&E,Materials & Consumables.,,14/05/2024,22/05/2024,321.76,,Amazon Payments UK Limited
Schools Total,School Group 2 � Pupil Capacity 144-314,MCC Schools,Cross Ash Primary School,0,I&E,Toilet Requisites,,12/04/2024,22/05/2024,63.46,,Initial Washrooms & Hygiene
Schools Total,School Group 2 � Pupil Capacity 144-314,MCC Schools,Cross Ash Primary School,0,I&E,Toilet Requisites,,12/04/2024,22/05/2024,14.82,,Initial Washrooms & Hygiene
Schools Total,School Group 7 � Pupil Capacity 501-1800,MCC Schools,Caldicot School,0,I&E,Contract Cleaning - Premises (Direct),,15/05/2024,22/05/2024,73.5,,Churchill Service Solutions
Adult Services,Community Care Team,Social Care and Health,Monmouth Adult Team,0,I&E,Personal Care.,,08/05/2024,14/05/2024,212.8,,Helping Hands
Adult Services,Community Care Team,Social Care and Health,Monmouth Adult Team,0,I&E,Personal Care.,,21/05/2024,22/05/2024,917.6,,REDACTED PERSONAL DATA
Adult Services,Community Care Team,Social Care and Health,Monmouth Adult Team,0,I&E,Personal Care.,,21/05/2024,22/05/2024,233.36,,REDACTED PERSONAL DATA
Adult Services,Community Care Team,Social Care and Health,Monmouth Adult Team,0,I&E,Personal Care.,,21/05/2024,22/05/2024,2820,,REDACTED PERSONAL DATA
Adult Services,Community Care Team,Social Care and Health,Monmouth Adult Team,0,I&E,Personal Care.,,21/05/2024,22/05/2024,2171.72,,REDACTED PERSONAL DATA
Adult Services,Community Care Team,Social Care and Health,Monmouth Adult Team,0,I&E,Personal Care.,,21/05/2024,22/05/2024,898.8,,REDACTED PERSONAL DATA
Adult Services,Community Care Team,Social Care and Health,Abergavenny Adult Team,0,I&E,Personal Care.,,21/05/2024,22/05/2024,656.68,,REDACTED PERSONAL DATA
Adult Services,Community Care Team,Social Care and Health,Abergavenny Adult Team,0,I&E,Personal Care.,,21/05/2024,22/05/2024,1393.4,,REDACTED PERSONAL DATA
Adult Services,Community Care Team,Social Care and Health,Abergavenny Adult Team,0,I&E,Personal Care.,,21/05/2024,22/05/2024,2820,,REDACTED PERSONAL DATA
"Enterprise, Housing & Community Animation",General Fund Housing,Communities & Place,Melin PSL (Private Sector Leasing),0,I&E,Building Improvements / Maintenance,,08/04/2024,03/05/2024,930,,Highmore Facilities Ltd
"Enterprise, Housing & Community Animation",General Fund Housing,Communities & Place,Lodgings Scheme,0,I&E,Building Improvements / Maintenance,,08/04/2024,03/05/2024,710,,Highmore Facilities Ltd
"Enterprise, Housing & Community Animation",General Fund Housing,Communities & Place,Emergency Accommodation Hostel,0,I&E,Building Improvements / Maintenance,,08/04/2024,03/05/2024,495,,Highmore Facilities Ltd
"Enterprise, Housing & Community Animation",General Fund Housing,Communities & Place,Homelessness,0,I&E,Building Improvements / Maintenance,,08/04/2024,03/05/2024,245,,Highmore Facilities Ltd
"Enterprise, Housing & Community Animation",General Fund Housing,Communities & Place,Homelessness,0,I&E,Building Improvements / Maintenance,,08/04/2024,03/05/2024,295,,Highmore Facilities Ltd
Neighbourhood Services,Waste and Street Services,Communities & Place,Refuse & Cleansing Operations,0,I&E,Materials & Consumables.,,29/05/2024,03/06/2024,7.41,,Amazon Payments UK Limited
Neighbourhood Services,Waste and Street Services,Communities & Place,Refuse & Cleansing Operations,0,I&E,Materials & Consumables.,,29/05/2024,03/06/2024,3.32,,Amazon Payments UK Limited
Neighbourhood Services,Waste and Street Services,Communities & Place,Refuse & Cleansing Operations,0,I&E,Materials & Consumables.,,29/05/2024,03/06/2024,10.82,,Amazon Payments UK Limited
Neighbourhood Services,Waste and Street Services,Communities & Place,Refuse & Cleansing Operations,0,I&E,Materials & Consumables.,,15/05/2024,28/05/2024,119.96,,Robert Price Ltd
"Enterprise, Housing & Community Animation",General Fund Housing,Communities & Place,Lodgings Scheme,0,I&E,Building Improvements / Maintenance,,10/05/2024,24/05/2024,245,,Highmore Facilities Ltd
Adult Services,Community Care Team,Social Care and Health,Mental Health Care Team,0,I&E,Nursing.,,09/05/2024,14/05/2024,3656,,St Annes Nursing Home
"Enterprise, Housing & Community Animation",General Fund Housing,Communities & Place,Melin PSL (Private Sector Leasing),0,I&E,Building Improvements / Maintenance,,10/05/2024,24/05/2024,390,,Highmore Facilities Ltd
Neighbourhood Services,Highways,Communities & Place,Potholing,0,I&E,Materials & Consumables.,,22/03/2024,14/05/2024,1406,,G D Harries & Sons Ltd
Neighbourhood Services,Waste and Street Services,Communities & Place,Refuse & Cleansing Operations,0,I&E,Materials & Consumables.,,03/05/2024,21/05/2024,60.99,,Robert Price Ltd
Neighbourhood Services,Waste and Street Services,Communities & Place,Fitting Shop Grounds,0,I&E,Materials & Consumables.,,16/04/2024,10/05/2024,179.96,,David Evans Agricultural Ltd
Neighbourhood Services,Waste and Street Services,Communities & Place,Fitting Shop Grounds,0,I&E,Materials & Consumables.,,17/04/2024,10/05/2024,80.11,,Ted Hopkins Ltd
Neighbourhood Services,Waste and Street Services,Communities & Place,Fitting Shop Grounds,0,I&E,Materials & Consumables.,,23/04/2024,10/05/2024,91.48,,David Evans Agricultural Ltd
Neighbourhood Services,Waste and Street Services,Communities & Place,Fitting Shop Grounds,0,I&E,Materials & Consumables.,,23/04/2024,10/05/2024,273.74,,David Evans Agricultural Ltd
Neighbourhood Services,Waste and Street Services,Communities & Place,Fitting Shop Grounds,0,I&E,Materials & Consumables.,,23/04/2024,10/05/2024,148.32,,David Evans Agricultural Ltd
Neighbourhood Services,Waste and Street Services,Communities & Place,Fitting Shop Grounds,0,I&E,Materials & Consumables.,,23/04/2024,10/05/2024,175.52,,RS Components Ltd
Neighbourhood Services,Waste and Street Services,Communities & Place,Fitting Shop Grounds,0,I&E,Materials & Consumables.,,24/04/2024,10/05/2024,1108.05,,Ted Hopkins Ltd
Neighbourhood Services,Waste and Street Services,Communities & Place,Fitting Shop Grounds,0,I&E,Materials & Consumables.,,19/04/2024,10/05/2024,74.84,,Fleetwheel
Neighbourhood Services,Waste and Street Services,Communities & Place,Refuse & Cleansing Operations,0,I&E,Materials & Consumables.,,17/04/2024,10/05/2024,20.05,,Fasteners & Engineering Suppliers Ltd
Neighbourhood Services,Waste and Street Services,Communities & Place,Refuse & Cleansing Operations,0,I&E,Materials & Consumables.,,26/04/2024,10/05/2024,212.72,,Robert Price Ltd
Schools Total,School Group 2 � Pupil Capacity 144-314,MCC Schools,Llanfoist Fawr Primary School,0,I&E,Materials & Consumables.,,09/05/2024,31/05/2024,14.98,,Amazon Payments UK Limited
"Enterprise, Housing & Community Animation",General Fund Housing,Communities & Place,Lodgings Scheme,0,I&E,Building Improvements / Maintenance,,17/04/2024,03/05/2024,170,,Highmore Facilities Ltd
"Enterprise, Housing & Community Animation",General Fund Housing,Communities & Place,Melin PSL (Private Sector Leasing),0,I&E,Building Improvements / Maintenance,,17/04/2024,03/05/2024,295,,Highmore Facilities Ltd
"Enterprise, Housing & Community Animation",General Fund Housing,Communities & Place,62 Chepstow Road Hostel,0,I&E,Building Improvements / Maintenance,,17/04/2024,03/05/2024,750,,Highmore Facilities Ltd
Neighbourhood Services,Waste and Street Services,Communities & Place,Fitting Shop Grounds,0,I&E,Materials & Consumables.,,18/04/2024,03/05/2024,109,,REDACTED PERSONAL DATA
Adult Services,Community Care Team,Social Care and Health,Mental Health Care Team,0,I&E,FNC Social Care Nursing Tasks,,09/05/2024,14/05/2024,34.48,,St Annes Nursing Home
Adult Services,Community Care Team,Social Care and Health,Mental Health Care Team,0,I&E,FNC Social Care Nursing Tasks,,09/05/2024,14/05/2024,34.48,,St Annes Nursing Home
Adult Services,Community Care Team,Social Care and Health,Mental Health Care Team,0,I&E,Nursing.,,09/05/2024,14/05/2024,3788,,St Annes Nursing Home
Adult Services,Community Care Team,Social Care and Health,Mental Health Care Team,0,I&E,Nursing.,,09/05/2024,14/05/2024,3788,,St Annes Nursing Home
"Facilities, Fleet & Decarbonisation",De-Carbonisation,Communities & Place,Sustainability,0,I&E,Building Improvements / Maintenance,,30/04/2024,14/05/2024,269.88,,A.J Quinn Building Contractors Ltd
Neighbourhood Services,Highways,Communities & Place,Overhead - Mon Highways,0,I&E,Materials & Consumables.,,22/01/2024,14/05/2024,385.77,,A Jones & Co (Usk) Ltd
Adult Services,ADULT DISABILITY SERVICES,Social Care and Health,CLDT,0,I&E,Residential.,,19/04/2024,14/05/2024,7958.96,,Achieve Together Limited
Adult Services,ADULT DISABILITY SERVICES,Social Care and Health,CLDT,0,I&E,Residential.,,01/05/2024,14/05/2024,7072.84,,Achieve Together Limited
Neighbourhood Services,Waste and Street Services,Communities & Place,Fitting Shop Grounds,0,I&E,Materials & Consumables.,,26/04/2024,10/05/2024,33.96,,Cambrian Group UK
Neighbourhood Services,Waste and Street Services,Communities & Place,Fitting Shop Grounds,0,I&E,Materials & Consumables.,,25/04/2024,10/05/2024,200,,Fasteners & Engineering Suppliers Ltd
Neighbourhood Services,Waste and Street Services,Communities & Place,Fitting Shop Grounds,0,I&E,Materials & Consumables.,,25/04/2024,10/05/2024,49.5,,Fasteners & Engineering Suppliers Ltd
Neighbourhood Services,Waste and Street Services,Communities & Place,Fitting Shop Grounds,0,I&E,Materials & Consumables.,,25/04/2024,10/05/2024,579.98,,Fasteners & Engineering Suppliers Ltd
Neighbourhood Services,Waste and Street Services,Communities & Place,Fitting Shop Grounds,0,I&E,Materials & Consumables.,,01/03/2024,10/05/2024,67.04,,RS Components Ltd
Neighbourhood Services,Waste and Street Services,Communities & Place,Fitting Shop Grounds,0,I&E,Materials & Consumables.,,30/04/2024,10/05/2024,124.56,,Mon & Border Motor Factors Ltd
Neighbourhood Services,Waste and Street Services,Communities & Place,Fitting Shop Grounds,0,I&E,Materials & Consumables.,,01/05/2024,10/05/2024,209.33,,Ted Hopkins Ltd
Neighbourhood Services,Waste and Street Services,Communities & Place,Fitting Shop Grounds,0,I&E,Materials & Consumables.,,30/04/2024,10/05/2024,97,,David Evans Agricultural Ltd
Neighbourhood Services,Waste and Street Services,Communities & Place,Fitting Shop Grounds,0,I&E,Materials & Consumables.,,30/04/2024,10/05/2024,999.2,,David Evans Agricultural Ltd
Neighbourhood Services,Waste and Street Services,Communities & Place,Fitting Shop Grounds,0,I&E,Materials & Consumables.,,30/04/2024,10/05/2024,20.25,,David Evans Agricultural Ltd
Neighbourhood Services,Waste and Street Services,Communities & Place,Fitting Shop Grounds,0,I&E,Materials & Consumables.,,30/04/2024,10/05/2024,102.15,,David Evans Agricultural Ltd
Neighbourhood Services,Waste and Street Services,Communities & Place,Fitting Shop Grounds,0,I&E,Materials & Consumables.,,30/04/2024,10/05/2024,240,,David Evans Agricultural Ltd
Neighbourhood Services,Waste and Street Services,Communities & Place,Fitting Shop Grounds,0,I&E,Materials & Consumables.,,30/04/2024,10/05/2024,68.34,,David Evans Agricultural Ltd
Neighbourhood Services,Waste and Street Services,Communities & Place,Fitting Shop Grounds,0,I&E,Materials & Consumables.,,30/04/2024,10/05/2024,201.63,,David Evans Agricultural Ltd
Neighbourhood Services,Waste and Street Services,Communities & Place,Fitting Shop Grounds,0,I&E,Materials & Consumables.,,02/05/2024,10/05/2024,179.98,,Mon & Border Motor Factors Ltd
Neighbourhood Services,Waste and Street Services,Communities & Place,Fitting Shop Grounds,0,I&E,Materials & Consumables.,,02/05/2024,10/05/2024,645.34,,Mon & Border Motor Factors Ltd
Neighbourhood Services,Waste and Street Services,Communities & Place,Fitting Shop Grounds,0,I&E,Materials & Consumables.,,25/04/2024,10/05/2024,123.5,,Fleetwheel
Adult Services,ADULT DISABILITY SERVICES,Social Care and Health,CLDT,0,I&E,Residential.,,01/05/2024,14/05/2024,7072.84,,Achieve Together Limited
Neighbourhood Services,Waste and Street Services,Communities & Place,Refuse & Cleansing Operations,0,I&E,Materials & Consumables.,,08/05/2024,28/05/2024,12.09,,Robert Price Ltd
Neighbourhood Services,Waste and Street Services,Communities & Place,Refuse & Cleansing Operations,0,I&E,Materials & Consumables.,,02/05/2024,28/05/2024,177.9,,Robert Price Ltd
Finance & Business Devlopment,Contact Centre,MonLife Directorate,Contact Centre,0,I&E,Materials & Consumables.,,18/03/2024,22/05/2024,592.97,,APS Group
Neighbourhood Services,Waste and Street Services,Communities & Place,Fitting Shop Grounds,0,I&E,Materials & Consumables.,,17/05/2024,22/05/2024,1650,,Riverlea
Neighbourhood Services,Waste and Street Services,Communities & Place,Fitting Shop Grounds,0,I&E,Materials & Consumables.,,07/05/2024,22/05/2024,302.5,,Trailparts
"Enterprise, Housing & Community Animation",General Fund Housing,Communities & Place,Melin PSL (Private Sector Leasing),0,I&E,Building Improvements / Maintenance,,10/05/2024,24/05/2024,685,,Highmore Facilities Ltd
"Enterprise, Housing & Community Animation",General Fund Housing,Communities & Place,Melin PSL (Private Sector Leasing),0,I&E,Building Improvements / Maintenance,,10/05/2024,24/05/2024,485,,Highmore Facilities Ltd
"Enterprise, Housing & Community Animation",General Fund Housing,Communities & Place,Homelessness,0,I&E,Building Improvements / Maintenance,,10/05/2024,24/05/2024,840,,Highmore Facilities Ltd
Schools Total,School Group 7 � Pupil Capacity 501-1800,MCC Schools,King Henry 3-19 School,0,I&E,Agency Staff,,19/05/2024,30/05/2024,-16.97,,New Directions Education Ltd
Schools Total,School Group 7 � Pupil Capacity 501-1800,MCC Schools,King Henry 3-19 School,0,I&E,Agency Staff,,19/05/2024,30/05/2024,240,,New Directions Education Ltd
Schools Total,School Group 2 � Pupil Capacity 144-314,MCC Schools,Our Lady & St Michael's (OLSM) RC Primary School (VA),0,I&E,Agency Staff,,07/05/2024,22/05/2024,1849.17,,TeacherActive
Schools Total,School Group 2 � Pupil Capacity 144-314,MCC Schools,Our Lady & St Michael's (OLSM) RC Primary School (VA),0,I&E,Agency Staff,,23/04/2024,22/05/2024,2301.1,,TeacherActive
Schools Total,School Group 2 � Pupil Capacity 144-314,MCC Schools,Our Lady & St Michael's (OLSM) RC Primary School (VA),0,I&E,Agency Staff,,15/05/2024,22/05/2024,3163.93,,Teaching Personnel
Schools Total,School Group 7 � Pupil Capacity 501-1800,MCC Schools,Chepstow School,0,I&E,Petrol,,01/05/2024,14/05/2024,83.33,,Fuelgenie Business Account
Schools Total,School Group 7 � Pupil Capacity 501-1800,MCC Schools,King Henry 3-19 School,0,I&E,Agency Staff,,19/05/2024,30/05/2024,63.48,,New Directions Education Ltd
Schools Total,School Group 2 � Pupil Capacity 144-314,MCC Schools,Pembroke Primary School,0,I&E,Agency Staff,,19/05/2024,30/05/2024,217,,New Directions Education Ltd
Schools Total,School Group 2 � Pupil Capacity 144-314,MCC Schools,Pembroke Primary School,0,I&E,Agency Staff,,19/05/2024,30/05/2024,217,,New Directions Education Ltd
Schools Total,School Group 2 � Pupil Capacity 144-314,MCC Schools,Pembroke Primary School,0,I&E,Agency Staff,,19/05/2024,30/05/2024,217,,New Directions Education Ltd
Schools Total,School Group 2 � Pupil Capacity 144-314,MCC Schools,Trellech Primary School,0,I&E,Agency Staff,,19/05/2024,30/05/2024,217,,New Directions Education Ltd
Schools Total,School Group 2 � Pupil Capacity 144-314,MCC Schools,Trellech Primary School,0,I&E,Agency Staff,,19/05/2024,30/05/2024,217,,New Directions Education Ltd
Schools Total,School Group 2 � Pupil Capacity 144-314,MCC Schools,Trellech Primary School,0,I&E,Agency Staff,,19/05/2024,30/05/2024,217,,New Directions Education Ltd
Schools Total,School Group 2 � Pupil Capacity 144-314,MCC Schools,Trellech Primary School,0,I&E,Agency Staff,,19/05/2024,30/05/2024,217,,New Directions Education Ltd
Schools Total,School Group 7 � Pupil Capacity 501-1800,MCC Schools,King Henry 3-19 School,0,I&E,Agency Staff,,28/04/2024,15/05/2024,126.96,,New Directions Education Ltd
Schools Total,School Group 7 � Pupil Capacity 501-1800,MCC Schools,King Henry 3-19 School,0,I&E,Agency Staff,,28/04/2024,15/05/2024,116.38,,New Directions Education Ltd
Schools Total,School Group 7 � Pupil Capacity 501-1800,MCC Schools,King Henry 3-19 School,0,I&E,Agency Staff,,28/04/2024,15/05/2024,126.96,,New Directions Education Ltd
Schools Total,School Group 7 � Pupil Capacity 501-1800,MCC Schools,King Henry 3-19 School,0,I&E,Agency Staff,,28/04/2024,15/05/2024,-6.7,,New Directions Education Ltd
Schools Total,School Group 7 � Pupil Capacity 501-1800,MCC Schools,King Henry 3-19 School,0,I&E,Agency Staff,,28/04/2024,15/05/2024,-16.97,,New Directions Education Ltd
Schools Total,School Group 7 � Pupil Capacity 501-1800,MCC Schools,King Henry 3-19 School,0,I&E,Agency Staff,,28/04/2024,15/05/2024,-1.12,,New Directions Education Ltd
Schools Total,School Group 7 � Pupil Capacity 501-1800,MCC Schools,King Henry 3-19 School,0,I&E,Agency Staff,,28/04/2024,15/05/2024,-5.59,,New Directions Education Ltd
Schools Total,School Group 7 � Pupil Capacity 501-1800,MCC Schools,King Henry 3-19 School,0,I&E,Agency Staff,,28/04/2024,15/05/2024,-4.47,,New Directions Education Ltd
Schools Total,School Group 7 � Pupil Capacity 501-1800,MCC Schools,King Henry 3-19 School,0,I&E,Agency Staff,,28/04/2024,15/05/2024,-6.7,,New Directions Education Ltd
Schools Total,Schools,MCC Schools,Pupil Referral Unit,0,I&E,Agency Staff,,24/04/2024,28/05/2024,208,,Back Office Support Services Ltd (Education Supply Pool)
Schools Total,School Group 7 � Pupil Capacity 501-1800,MCC Schools,King Henry 3-19 School,0,I&E,Agency Staff,,28/04/2024,15/05/2024,-6.7,,New Directions Education Ltd
Schools Total,School Group 2 � Pupil Capacity 144-314,MCC Schools,Pembroke Primary School,0,I&E,Agency Staff,,01/05/2024,03/06/2024,3183.66,,Teaching 4 Wales Ltd
Schools Total,School Group 2 � Pupil Capacity 144-314,MCC Schools,Pembroke Primary School,0,I&E,Agency Staff,,01/05/2024,03/06/2024,1023.55,,Teaching 4 Wales Ltd
Schools Total,School Group 7 � Pupil Capacity 501-1800,MCC Schools,Monmouth Comprehensive,0,I&E,Agency Staff,,30/04/2024,08/05/2024,2303.89,,TeacherActive
Schools Total,School Group 7 � Pupil Capacity 501-1800,MCC Schools,Monmouth Comprehensive,0,I&E,Agency Staff,,21/05/2024,03/06/2024,1624.53,,TeacherActive
"Placemaking, Highways & Flooding",Highways Dev & Car Parks,Communities & Place,Transport Policy,0,I&E,Repairs & Maintenance.,,28/05/2024,03/06/2024,972.25,,Metric Group Ltd
"Facilities, Fleet & Decarbonisation",Transport Department,Communities & Place,Transport,0,I&E,Spare Parts,,22/05/2024,24/05/2024,110.48,,Mon & Border Motor Factors Ltd
"Facilities, Fleet & Decarbonisation",Transport Department,Communities & Place,Transport,0,I&E,Spare Parts,,22/05/2024,24/05/2024,508.58,,Euro Commercials (South Wales) L
"Facilities, Fleet & Decarbonisation",Transport Department,Communities & Place,Transport,0,I&E,Spare Parts,,22/05/2024,24/05/2024,29.34,,Euro Commercials (South Wales) L
Schools Total,School Group 7 � Pupil Capacity 501-1800,MCC Schools,King Henry 3-19 School,0,I&E,Agency Staff,,28/04/2024,15/05/2024,-6.14,,New Directions Education Ltd
Schools Total,SCHGRP3 � School Group 3 � Pupil Capacity 315-500,MCC Schools,Overmonnow Primary School,0,I&E,Agency Staff,,14/05/2024,24/05/2024,726.37,,TeacherActive
Schools Total,SCHGRP3 � School Group 3 � Pupil Capacity 315-500,MCC Schools,Overmonnow Primary School,0,I&E,Agency Staff,,15/05/2024,24/05/2024,1579.72,,Teaching Personnel
"Facilities, Fleet & Decarbonisation",Transport Department,Communities & Place,Transport,0,I&E,Vehicle Collision Damage Costs,,14/05/2024,24/05/2024,1000,,Spot on mobile repairs
"Facilities, Fleet & Decarbonisation",Transport Department,Communities & Place,Transport,0,I&E,Spare Parts,,18/04/2024,24/05/2024,65.68,,Glenside Commercials Ltd
Schools Total,School Group 7 � Pupil Capacity 501-1800,MCC Schools,King Henry 3-19 School,0,I&E,Agency Staff,,19/05/2024,30/05/2024,63.48,,New Directions Education Ltd
Schools Total,School Group 7 � Pupil Capacity 501-1800,MCC Schools,King Henry 3-19 School,0,I&E,Agency Staff,,19/05/2024,30/05/2024,63.48,,New Directions Education Ltd
Schools Total,School Group 7 � Pupil Capacity 501-1800,MCC Schools,King Henry 3-19 School,0,I&E,Agency Staff,,19/05/2024,30/05/2024,79.35,,New Directions Education Ltd
Schools Total,School Group 7 � Pupil Capacity 501-1800,MCC Schools,King Henry 3-19 School,0,I&E,Agency Staff,,19/05/2024,30/05/2024,49.3,,New Directions Education Ltd
Schools Total,School Group 7 � Pupil Capacity 501-1800,MCC Schools,King Henry 3-19 School,0,I&E,Agency Staff,,19/05/2024,30/05/2024,51.21,,New Directions Education Ltd
Schools Total,School Group 2 � Pupil Capacity 144-314,MCC Schools,Trellech Primary School,0,I&E,Agency Staff,,19/05/2024,30/05/2024,217,,New Directions Education Ltd
Schools Total,School Group 2 � Pupil Capacity 144-314,MCC Schools,Usk CiW Primary School (VC),0,I&E,Agency Staff,,19/05/2024,30/05/2024,217,,New Directions Education Ltd
Schools Total,School Group 2 � Pupil Capacity 144-314,MCC Schools,Usk CiW Primary School (VC),0,I&E,Agency Staff,,19/05/2024,30/05/2024,217,,New Directions Education Ltd
Schools Total,School Group 2 � Pupil Capacity 144-314,MCC Schools,Usk CiW Primary School (VC),0,I&E,Agency Staff,,19/05/2024,30/05/2024,217,,New Directions Education Ltd
Schools Total,School Group 2 � Pupil Capacity 144-314,MCC Schools,Usk CiW Primary School (VC),0,I&E,Agency Staff,,19/05/2024,30/05/2024,217,,New Directions Education Ltd
Schools Total,SCHGRP3 � School Group 3 � Pupil Capacity 315-500,MCC Schools,Overmonnow Primary School,0,I&E,Agency Staff,,08/05/2024,14/05/2024,2236.87,,Prospero Teaching
Schools Total,SCHGRP3 � School Group 3 � Pupil Capacity 315-500,MCC Schools,Overmonnow Primary School,0,I&E,Agency Staff,,24/04/2024,03/05/2024,1572.84,,Teaching Personnel
Schools Total,SCHGRP3 � School Group 3 � Pupil Capacity 315-500,MCC Schools,Overmonnow Primary School,0,I&E,Agency Staff,,01/05/2024,03/05/2024,1351.62,,Teaching Personnel
Schools Total,School Group 2 � Pupil Capacity 144-314,MCC Schools,Shirenewton Primary School,0,I&E,Agency Staff,,01/05/2024,03/05/2024,1260,,Attribute Sports Development Ltd
Schools Total,SCHGRP3 � School Group 3 � Pupil Capacity 315-500,MCC Schools,Overmonnow Primary School,0,I&E,Agency Staff,,23/04/2024,03/05/2024,905.34,,TeacherActive
Schools Total,SCHGRP3 � School Group 3 � Pupil Capacity 315-500,MCC Schools,Overmonnow Primary School,0,I&E,Agency Staff,,30/04/2024,03/05/2024,1348.46,,TeacherActive
Schools Total,SCHGRP3 � School Group 3 � Pupil Capacity 315-500,MCC Schools,Overmonnow Primary School,0,I&E,Agency Staff,,01/05/2024,03/05/2024,2513.22,,Prospero Teaching
"Facilities, Fleet & Decarbonisation",Home to School Transport Dept,Communities & Place,Special Educational Needs,0,I&E,Petrol,,30/04/2024,03/05/2024,378,,REDACTED PERSONAL DATA
"Leisure, Youth & Outdoor Adventure",Leisure Services,MonLife Directorate,Chepstow Leisure Centre,0,I&E,Repairs & Maintenance.,,25/04/2024,14/05/2024,967.33,,Dale Sauna Ltd
Schools Total,School Group 7 � Pupil Capacity 501-1800,MCC Schools,Monmouth Comprehensive,0,I&E,Agency Staff,,08/05/2024,14/05/2024,623.99,,Back Office Support Services Ltd (Education Supply Pool)
Schools Total,School Group 7 � Pupil Capacity 501-1800,MCC Schools,Monmouth Comprehensive,0,I&E,Agency Staff,,08/05/2024,14/05/2024,1100,,Back Office Support Services Ltd (Education Supply Pool)
Schools Total,School Group 7 � Pupil Capacity 501-1800,MCC Schools,Monmouth Comprehensive,0,I&E,Agency Staff,,08/05/2024,14/05/2024,832.01,,Back Office Support Services Ltd (Education Supply Pool)
Schools Total,School Group 7 � Pupil Capacity 501-1800,MCC Schools,King Henry 3-19 School,0,I&E,Agency Staff,,19/05/2024,30/05/2024,143.97,,New Directions Education Ltd
Schools Total,School Group 7 � Pupil Capacity 501-1800,MCC Schools,King Henry 3-19 School,0,I&E,Agency Staff,,19/05/2024,30/05/2024,143.97,,New Directions Education Ltd
Schools Total,School Group 7 � Pupil Capacity 501-1800,MCC Schools,King Henry 3-19 School,0,I&E,Agency Staff,,19/05/2024,30/05/2024,-3.35,,New Directions Education Ltd
Schools Total,School Group 7 � Pupil Capacity 501-1800,MCC Schools,King Henry 3-19 School,0,I&E,Agency Staff,,19/05/2024,30/05/2024,-3.35,,New Directions Education Ltd
Schools Total,School Group 7 � Pupil Capacity 501-1800,MCC Schools,King Henry 3-19 School,0,I&E,Agency Staff,,19/05/2024,30/05/2024,-7.18,,New Directions Education Ltd
Schools Total,School Group 7 � Pupil Capacity 501-1800,MCC Schools,King Henry 3-19 School,0,I&E,Agency Staff,,19/05/2024,30/05/2024,143.97,,New Directions Education Ltd
Schools Total,School Group 7 � Pupil Capacity 501-1800,MCC Schools,King Henry 3-19 School,0,I&E,Agency Staff,,19/05/2024,30/05/2024,63.48,,New Directions Education Ltd
Schools Total,School Group 2 � Pupil Capacity 144-314,MCC Schools,Llanfoist Fawr Primary School,0,I&E,Electricity.,,01/05/2024,23/05/2024,6.06,,EDF Energy
Finance & Business Devlopment,Attractions,MonLife Directorate,Caldicot Castle & Country Park,0,I&E,Electricity.,,16/04/2024,23/05/2024,-369.85,,EDF Energy
Adult Services,Community Care Team,Social Care and Health,Chepstow Adult Team,0,I&E,Personal Care.,,21/05/2024,24/05/2024,2881.1,,Abicare CareMatch Services Ltd
"Leisure, Youth & Outdoor Adventure",Leisure Services,MonLife Directorate,Caldicot Leisure Centre,0,I&E,Stationery,,14/05/2024,24/05/2024,45.39,,Mr Paper Ltd
Adult Services,Community Care Team,Social Care and Health,Chepstow Adult Team,0,I&E,Personal Care.,,21/05/2024,24/05/2024,978.81,,Abicare CareMatch Services Ltd
Adult Services,Community Care Team,Social Care and Health,Chepstow Adult Team,0,I&E,Personal Care.,,21/05/2024,24/05/2024,680.19,,Abicare CareMatch Services Ltd
Adult Services,Community Care Team,Social Care and Health,Chepstow Adult Team,0,I&E,Personal Care.,,21/05/2024,24/05/2024,580.64,,Abicare CareMatch Services Ltd
Adult Services,Community Care Team,Social Care and Health,Chepstow Adult Team,0,I&E,Personal Care.,,21/05/2024,24/05/2024,558.52,,Abicare CareMatch Services Ltd
Adult Services,Community Care Team,Social Care and Health,Chepstow Adult Team,0,I&E,Personal Care.,,21/05/2024,24/05/2024,1222.13,,Abicare CareMatch Services Ltd
Adult Services,Community Care Team,Social Care and Health,Chepstow Adult Team,0,I&E,Personal Care.,,21/05/2024,24/05/2024,790.79,,Abicare CareMatch Services Ltd
Adult Services,Community Care Team,Social Care and Health,Chepstow Adult Team,0,I&E,Personal Care.,,23/05/2024,24/05/2024,3360,,Kind Tailored Care Ltd
Adult Services,Community Care Team,Social Care and Health,Chepstow Adult Team,0,I&E,Personal Care.,,13/05/2024,15/05/2024,2970.24,,Lougher Home Care Ltd
Adult Services,Direct Care Residential,Social Care and Health,Severn View Park,0,I&E,Equipment Purchases,,13/05/2024,31/05/2024,220,,Malpas Pharmacy
Adult Services,Community Care Team,Social Care and Health,Chepstow Adult Team,0,I&E,Personal Care.,,17/05/2024,31/05/2024,1561.52,,Abicare Services Ltd
Adult Services,Community Care Team,Social Care and Health,Chepstow Adult Team,0,I&E,Personal Care.,,17/05/2024,31/05/2024,2186.24,,Abicare Services Ltd
Adult Services,Community Care Team,Social Care and Health,Chepstow Adult Team,0,I&E,Personal Care.,,17/05/2024,31/05/2024,223.12,,Abicare Services Ltd
Schools Total,School Group 7 � Pupil Capacity 501-1800,MCC Schools,Monmouth Comprehensive,0,I&E,Book Purchases,,20/05/2024,24/05/2024,26,,Amazon Payments UK Limited
Schools Total,School Group 7 � Pupil Capacity 501-1800,MCC Schools,Monmouth Comprehensive,0,I&E,Book Purchases,,20/05/2024,24/05/2024,15.99,,Amazon Payments UK Limited
Schools Total,School Group 2 � Pupil Capacity 144-314,MCC Schools,Our Lady & St Michael's (OLSM) RC Primary School (VA),0,I&E,Electricity.,,30/04/2024,23/05/2024,1387.07,,EDF Energy
Schools Total,School Group 2 � Pupil Capacity 144-314,MCC Schools,Our Lady & St Michael's (OLSM) RC Primary School (VA),0,I&E,Electricity.,,30/04/2024,23/05/2024,5.27,,EDF Energy
"Facilities, Fleet & Decarbonisation",Home to School Transport Dept,Communities & Place,Home To School Transport,0,I&E,Electricity.,,01/05/2024,23/05/2024,692.27,,EDF Energy
"Facilities, Fleet & Decarbonisation",Home to School Transport Dept,Communities & Place,Home To School Transport,0,I&E,Electricity.,,01/05/2024,23/05/2024,5.27,,EDF Energy
Neighbourhood Services,Waste and Street Services,Communities & Place,Refuse & Cleansing Operations,0,I&E,Electricity.,,03/04/2024,14/05/2024,268.87,,EDF Energy
Finance & Business Devlopment,Community Hubs,MonLife Directorate,Community Hub - Monmouth,0,I&E,Electricity.,,02/04/2024,14/05/2024,873.95,,EDF Energy
Capital Division,Capital Dept,Capital,Capital Programme,0,I&E,Professional And Specialist Fees,,04/04/2024,20/05/2024,6474.73,,Network Rail
Adult Services,Community Care Team,Social Care and Health,Chepstow Adult Team,0,I&E,Personal Care.,,13/05/2024,15/05/2024,990.08,,Lougher Home Care Ltd
Adult Services,Community Care Team,Social Care and Health,Chepstow Adult Team,0,I&E,Personal Care.,,13/05/2024,15/05/2024,707.2,,Lougher Home Care Ltd
Adult Services,Community Care Team,Social Care and Health,Chepstow Adult Team,0,I&E,Personal Care.,,13/05/2024,15/05/2024,2970.24,,Lougher Home Care Ltd
Adult Services,Community Care Team,Social Care and Health,Chepstow Adult Team,0,I&E,Personal Care.,,13/05/2024,15/05/2024,707.28,,Lougher Home Care Ltd
Adult Services,Community Care Team,Social Care and Health,Chepstow Adult Team,0,I&E,Personal Care.,,13/05/2024,15/05/2024,990.08,,Lougher Home Care Ltd
Adult Services,Community Care Team,Social Care and Health,Mental Health Care Team,0,I&E,Personal Care.,,07/05/2024,08/05/2024,383.48,,My Care My Home Ltd
Adult Services,Community Care Team,Social Care and Health,Mental Health Care Team,0,I&E,Personal Care.,,07/05/2024,08/05/2024,613.76,,My Care My Home Ltd
Adult Services,Community Care Team,Social Care and Health,Mental Health Care Team,0,I&E,Personal Care.,,07/05/2024,08/05/2024,328.6,,My Care My Home Ltd
"Commercial, Corporate & landlord Services",Property Services & Facilities Management,Resources,Reactive Maintenance,0,I&E,Building Improvements / Maintenance,,10/05/2024,14/05/2024,347.5,,Ambassador Fire & Security LTD
Adult Services,Community Care Team,Social Care and Health,Abergavenny Adult Team,0,I&E,Residential.,,29/04/2024,03/05/2024,4079.28,,Sunnybank EMI Residential Home
Adult Services,Community Care Team,Social Care and Health,Mental Health Care Team,0,I&E,Personal Care.,,07/05/2024,09/05/2024,131.44,,My Care My Home Ltd
Adult Services,Community Care Team,Social Care and Health,Mental Health Care Team,0,I&E,Personal Care.,,07/05/2024,09/05/2024,569.66,,My Care My Home Ltd
"Commercial, Corporate & landlord Services",Property Services & Facilities Management,Resources,Reactive Maintenance,0,I&E,Building Improvements / Maintenance,,10/05/2024,14/05/2024,442.85,,Ambassador Fire & Security LTD
"Commercial, Corporate & landlord Services",Property Services & Facilities Management,Resources,Reactive Maintenance,0,I&E,Building Improvements / Maintenance,,10/05/2024,14/05/2024,201.75,,Ambassador Fire & Security LTD
"Commercial, Corporate & landlord Services",Property Services & Facilities Management,Resources,Reactive Maintenance,0,I&E,Building Improvements / Maintenance,,25/04/2024,22/05/2024,129,,EFS Systems (UK) Ltd
"Commercial, Corporate & landlord Services",Property Services & Facilities Management,Resources,Reactive Maintenance,0,I&E,Building Improvements / Maintenance,,25/04/2024,22/05/2024,61.5,,EFS Systems (UK) Ltd
"Commercial, Corporate & landlord Services",Property Services & Facilities Management,Resources,External Clients,0,I&E,Building Improvements / Maintenance,,10/04/2024,03/05/2024,235,,Hightech Water Services
Adult Services,Community Care Team,Social Care and Health,Mental Health Care Team,0,I&E,Personal Care.,,07/05/2024,08/05/2024,547.7,,My Care My Home Ltd
Adult Services,Community Care Team,Social Care and Health,Mental Health Care Team,0,I&E,Personal Care.,,07/05/2024,08/05/2024,821.5,,My Care My Home Ltd
Children Services,Children Services Teams,Social Care and Health,Long Term Support Team,0,I&E,Residential.,,08/05/2024,23/05/2024,1600,,Midway Transitional Solutions Ltd
Children Services,Children Services Teams,Social Care and Health,Long Term Support Team,0,I&E,Residential.,,08/05/2024,23/05/2024,18805.76,,Midway Transitional Solutions Ltd
Children Services,Children Services Teams,Social Care and Health,Long Term Support Team,0,I&E,Residential.,,08/05/2024,23/05/2024,17170.5,,Midway Transitional Solutions Ltd
Children Services,Children Services Teams,Social Care and Health,Long Term Support Team,0,I&E,Residential.,,08/05/2024,23/05/2024,14200,,Midway Transitional Solutions Ltd
Children Services,Children Services Teams,Social Care and Health,Long Term Support Team,0,I&E,Residential.,,08/05/2024,23/05/2024,-1600,,Midway Transitional Solutions Ltd
"Commercial, Corporate & landlord Services",Property Services & Facilities Management,Resources,Reactive Maintenance,0,I&E,Building Improvements / Maintenance,,08/05/2024,14/05/2024,50,,Ambassador Fire & Security LTD
"Commercial, Corporate & landlord Services",Property Services & Facilities Management,Resources,Reactive Maintenance,0,I&E,Building Improvements / Maintenance,,10/05/2024,14/05/2024,50,,Ambassador Fire & Security LTD
"Commercial, Corporate & landlord Services",Property Services & Facilities Management,Resources,Reactive Maintenance,0,I&E,Building Improvements / Maintenance,,07/05/2024,14/05/2024,375,,Structural Engineering Design Services
Adult Services,ADULT DISABILITY SERVICES,Social Care and Health,CLDT,0,I&E,Personal Care.,,01/05/2024,08/05/2024,917.14,,Sense Cymru
"Commercial, Corporate & landlord Services",Property Services & Facilities Management,Resources,Reactive Maintenance,0,I&E,Building Improvements / Maintenance,,10/05/2024,31/05/2024,180.73,,A.J Quinn Building Contractors Ltd
"Commercial, Corporate & landlord Services",Property Services & Facilities Management,Resources,Reactive Maintenance,0,I&E,Building Improvements / Maintenance,,10/05/2024,31/05/2024,251.91,,A.J Quinn Building Contractors Ltd
"Commercial, Corporate & landlord Services",Property Services & Facilities Management,Resources,Reactive Maintenance,0,I&E,Building Improvements / Maintenance,,29/05/2024,31/05/2024,565,,Structural Engineering Design Services
"Commercial, Corporate & landlord Services",Property Services & Facilities Management,Resources,External Clients,0,I&E,Building Improvements / Maintenance,,19/04/2024,03/05/2024,228.25,,REDACTED PERSONAL DATA
"Commercial, Corporate & landlord Services",Property Services & Facilities Management,Resources,External Clients,0,I&E,Building Improvements / Maintenance,,19/04/2024,03/05/2024,271.69,,REDACTED PERSONAL DATA
"Commercial, Corporate & landlord Services",Property Services & Facilities Management,Resources,External Clients,0,I&E,Building Improvements / Maintenance,,19/04/2024,03/05/2024,156.28,,REDACTED PERSONAL DATA
Adult Services,ADULT DISABILITY SERVICES,Social Care and Health,CLDT,0,I&E,Personal Care.,,08/05/2024,08/05/2024,9,,REDACTED PERSONAL DATA
Adult Services,ADULT DISABILITY SERVICES,Social Care and Health,CLDT,0,I&E,Personal Care.,,08/05/2024,08/05/2024,36,,REDACTED PERSONAL DATA
Adult Services,ADULT DISABILITY SERVICES,Social Care and Health,CLDT,0,I&E,Personal Care.,,08/05/2024,08/05/2024,350.35,,REDACTED PERSONAL DATA
Adult Services,Community Care Team,Social Care and Health,Chepstow Adult Team,0,I&E,Personal Care.,,13/05/2024,15/05/2024,1155.28,,Lougher Home Care Ltd
Adult Services,Community Care Team,Social Care and Health,Chepstow Adult Team,0,I&E,Personal Care.,,13/05/2024,15/05/2024,825.16,,Lougher Home Care Ltd
Standards,Early Years,Children & Young People,Flying Start Grant,0,I&E,Equipment Purchases,,22/05/2024,31/05/2024,415.97,,Hope Education Ltd
Capital Division,Capital Dept,Capital,Capital Programme,0,I&E,Professional And Specialist Fees,,#N/A,#N/A,37192.97,,Alliance Leisure Services Ltd
Capital Division,Capital Dept,Capital,Capital Programme,0,I&E,Professional And Specialist Fees,,21/05/2024,31/05/2024,5617.73,,WSP UK Limited
Adult Services,Community Care Team,Social Care and Health,Chepstow Adult Team,0,I&E,Personal Care.,,21/05/2024,22/05/2024,2820,,REDACTED PERSONAL DATA
Adult Services,Community Care Team,Social Care and Health,Chepstow Adult Team,0,I&E,Personal Care.,,21/05/2024,22/05/2024,524,,REDACTED PERSONAL DATA
Adult Services,Community Care Team,Social Care and Health,Chepstow Adult Team,0,I&E,Personal Care.,,21/05/2024,28/05/2024,514.29,,Abicare CareMatch Services Ltd
Capital Division,Capital Dept,Capital,Capital Programme,0,I&E,Professional And Specialist Fees,,23/04/2024,28/05/2024,103224.29,,REDACTED PERSONAL DATA
"Commercial, Corporate & landlord Services",Property Services & Facilities Management,Resources,Office Services,0,I&E,Equipment Purchases,,30/04/2024,03/05/2024,60,,Zenith Print and Packaging Ltd
Adult Services,Community Care Team,Social Care and Health,Chepstow Adult Team,0,I&E,Personal Care.,,03/05/2024,10/05/2024,2323.46,,Lougher Home Care Ltd
"Commercial, Corporate & landlord Services",Property Services & Facilities Management,Resources,Office Services,0,I&E,Equipment Purchases,,30/04/2024,03/05/2024,30,,Zenith Print and Packaging Ltd
Countryside & Culture,Countryside,MonLife Directorate,Countryside Access,0,I&E,Electricity.,,11/03/2024,14/05/2024,898.09,,EDF Energy
Finance & Business Devlopment,Community Hubs,MonLife Directorate,Community Hub - Caldicot,0,I&E,Electricity.,,02/04/2024,14/05/2024,506.02,,EDF Energy
"Commercial, Corporate & landlord Services",Asset Management,Resources,Shared Accomodation,0,I&E,Electricity.,,03/04/2024,14/05/2024,1.61,,EDF Energy
"Enterprise, Housing & Community Animation",General Fund Housing,Communities & Place,Lodgings Scheme,0,I&E,Electricity.,,03/04/2024,14/05/2024,78.68,,EDF Energy
Schools Total,School Group 2 � Pupil Capacity 144-314,MCC Schools,Ysgol Gymraeg Y Fenni,0,I&E,Electricity.,,02/04/2024,14/05/2024,4592.84,,EDF Energy
Schools Total,School Group 2 � Pupil Capacity 144-314,MCC Schools,Raglan CiW Primary School (VC),0,I&E,Licences,,30/04/2024,08/05/2024,2494.77,,GL Education Group
Finance & Business Devlopment,Museums,MonLife Directorate,Museum Grants,0,I&E,Equipment Purchases,,29/04/2024,08/05/2024,61,,Replicawarehouse
Adult Services,Community Care Team,Social Care and Health,Chepstow Adult Team,0,I&E,Personal Care.,,13/05/2024,15/05/2024,117.88,,Lougher Home Care Ltd
Adult Services,Community Care Team,Social Care and Health,Chepstow Adult Team,0,I&E,Personal Care.,,13/05/2024,15/05/2024,1113.88,,Lougher Home Care Ltd
Adult Services,Community Care Team,Social Care and Health,Chepstow Adult Team,0,I&E,Personal Care.,,13/05/2024,15/05/2024,129.66,,Lougher Home Care Ltd
Adult Services,Community Care Team,Social Care and Health,Chepstow Adult Team,0,I&E,Personal Care.,,13/05/2024,15/05/2024,4290.72,,Lougher Home Care Ltd
Adult Services,Community Care Team,Social Care and Health,Chepstow Adult Team,0,I&E,Personal Care.,,01/05/2024,07/05/2024,269.82,,Radis Community Care
Adult Services,Community Care Team,Social Care and Health,Chepstow Adult Team,0,I&E,Personal Care.,,01/05/2024,07/05/2024,379.62,,Radis Community Care
Adult Services,Community Care Team,Social Care and Health,Chepstow Adult Team,0,I&E,Personal Care.,,01/05/2024,07/05/2024,269.82,,Radis Community Care
Adult Services,Community Care Team,Social Care and Health,Chepstow Adult Team,0,I&E,Personal Care.,,01/05/2024,07/05/2024,259.74,,Radis Community Care
Adult Services,Community Care Team,Social Care and Health,Chepstow Adult Team,0,I&E,Personal Care.,,01/05/2024,07/05/2024,269.82,,Radis Community Care
"Facilities, Fleet & Decarbonisation",Property Services -  Cleaning,Communities & Place,Public Conveniences,0,I&E,Electricity.,,11/03/2024,14/05/2024,175.67,,EDF Energy
"Commercial, Corporate & landlord Services",Asset Management,Resources,Strategic Property Management,0,I&E,Electricity.,,29/02/2024,14/05/2024,467.55,,EDF Energy
"Commercial, Corporate & landlord Services",Asset Management,Resources,Strategic Property Management,0,I&E,Electricity.,,15/03/2024,14/05/2024,0.34,,EDF Energy
"Leisure, Youth & Outdoor Adventure",Leisure Services,MonLife Directorate,Abergavenny Leisure Centre,0,I&E,Electricity.,,02/04/2024,14/05/2024,15263.57,,EDF Energy
Adult Services,Direct Care Residential,Social Care and Health,Severn View Park,0,I&E,Publications,,27/04/2024,02/05/2024,507.6,,News Team
Schools Total,School Group 2 � Pupil Capacity 144-314,MCC Schools,Cross Ash Primary School,0,I&E,Computer Consumables,,29/04/2024,08/05/2024,1124,,Halo Support Ltd
Adult Services,Community Care Team,Social Care and Health,Chepstow Adult Team,0,I&E,Personal Care.,,21/05/2024,22/05/2024,4321.16,,REDACTED PERSONAL DATA
Adult Services,Community Care Team,Social Care and Health,Chepstow Adult Team,0,I&E,Personal Care.,,21/05/2024,22/05/2024,126.16,,REDACTED PERSONAL DATA
Finance & Business Devlopment,Museums,MonLife Directorate,Museums Abergavenny,0,I&E,Electricity.,,01/05/2024,23/05/2024,750.82,,EDF Energy
"Enterprise, Housing & Community Animation",General Fund Housing,Communities & Place,Lodgings Scheme,0,I&E,Electricity.,,27/02/2024,23/05/2024,102.33,,British Gas Business
Neighbourhood Services,Highways,Communities & Place,Street Lighting,0,I&E,Electricity.,,24/04/2024,23/05/2024,-55561.31,,EDF Energy
Children Services,Children Services Other,Social Care and Health,Ser Bach / Herbert Road,0,I&E,Electricity.,,12/04/2024,23/05/2024,3.72,,EDF Energy
Children Services,Children Services Other,Social Care and Health,Ser Bach / Herbert Road,0,I&E,Electricity.,,12/04/2024,23/05/2024,234.82,,EDF Energy
Adult Services,Community Care Team,Social Care and Health,Chepstow Adult Team,0,I&E,Personal Care.,,21/05/2024,28/05/2024,807.38,,Abicare CareMatch Services Ltd
Adult Services,Community Care Team,Social Care and Health,Chepstow Adult Team,0,I&E,Personal Care.,,17/05/2024,31/05/2024,936.88,,Abicare Services Ltd
Adult Services,Community Care Team,Social Care and Health,Chepstow Adult Team,0,I&E,Personal Care.,,17/05/2024,31/05/2024,557.8,,Abicare Services Ltd
Adult Services,Community Care Team,Social Care and Health,Chepstow Adult Team,0,I&E,Personal Care.,,17/05/2024,31/05/2024,2030,,Abicare Services Ltd
Schools Total,SCHGRP3 � School Group 3 � Pupil Capacity 315-500,MCC Schools,The Dell Primary School,0,I&E,IT Hardware,,18/04/2024,28/05/2024,60,,ITeach Ltd
Adult Services,Community Care Team,Social Care and Health,Chepstow Adult Team,0,I&E,Personal Care.,,21/05/2024,22/05/2024,1367.48,,REDACTED PERSONAL DATA
Schools Total,School Group 7 � Pupil Capacity 501-1800,MCC Schools,Monmouth Comprehensive,0,I&E,Book Purchases,,27/04/2024,02/05/2024,46.75,,News Team
"Commercial, Corporate & landlord Services",Asset Management,Resources,Industrial Units,0,I&E,Electricity.,,09/05/2024,23/05/2024,-0.22,,EDF Energy
"Commercial, Corporate & landlord Services",Asset Management,Resources,Industrial Units,0,I&E,Electricity.,,09/05/2024,23/05/2024,-48.74,,EDF Energy
"Leisure, Youth & Outdoor Adventure",Leisure Services,MonLife Directorate,Abergavenny Leisure Centre,0,I&E,Electricity.,,01/05/2024,23/05/2024,7644.5,,EDF Energy
Adult Services,Community Care Team,Social Care and Health,Chepstow Adult Team,0,I&E,Personal Care.,,21/05/2024,24/05/2024,1758.53,,Abicare CareMatch Services Ltd
Adult Services,Community Care Team,Social Care and Health,Chepstow Adult Team,0,I&E,Personal Care.,,21/05/2024,24/05/2024,1205.54,,Abicare CareMatch Services Ltd
Adult Services,Community Care Team,Social Care and Health,Chepstow Adult Team,0,I&E,Personal Care.,,21/05/2024,24/05/2024,1064.51,,Abicare CareMatch Services Ltd
Adult Services,Community Care Team,Social Care and Health,Chepstow Adult Team,0,I&E,Personal Care.,,21/05/2024,24/05/2024,832.25,,Abicare CareMatch Services Ltd
Schools Total,School Group 7 � Pupil Capacity 501-1800,MCC Schools,Monmouth Comprehensive,0,I&E,Book Purchases,,07/05/2024,14/05/2024,16.78,,Browns Books for Students
Schools Total,School Group 7 � Pupil Capacity 501-1800,MCC Schools,Monmouth Comprehensive,0,I&E,Book Purchases,,07/05/2024,14/05/2024,15.38,,Browns Books for Students
"Commercial, Corporate & landlord Services",Asset Management,Resources,Strategic Property Management,0,I&E,Electricity.,,03/04/2024,14/05/2024,113.69,,EDF Energy
Children Services,Supporting Children & Young People Service,Social Care and Health,Family Time Service,0,I&E,Electricity.,,03/04/2024,14/05/2024,121.48,,EDF Energy
Neighbourhood Services,Waste and Street Services,Communities & Place,Refuse & Cleansing Operations,0,I&E,Electricity.,,02/04/2024,14/05/2024,1787.47,,EDF Energy
Schools Total,School Group 7 � Pupil Capacity 501-1800,MCC Schools,King Henry 3-19 School,0,I&E,Computer Consumables,,16/04/2024,02/05/2024,70.68,,SRS Public
Adult Services,Community Care Team,Social Care and Health,Chepstow Adult Team,0,I&E,Personal Care.,,03/05/2024,10/05/2024,1722.03,,Lougher Home Care Ltd
Adult Services,ADULT DISABILITY SERVICES,Social Care and Health,CLDT,0,I&E,Personal Care.,,08/05/2024,08/05/2024,1.8,,REDACTED PERSONAL DATA
Adult Services,ADULT DISABILITY SERVICES,Social Care and Health,CLDT,0,I&E,Personal Care.,,08/05/2024,08/05/2024,1.8,,REDACTED PERSONAL DATA
Adult Services,ADULT DISABILITY SERVICES,Social Care and Health,CLDT,0,I&E,Personal Care.,,08/05/2024,08/05/2024,36,,REDACTED PERSONAL DATA
Adult Services,ADULT DISABILITY SERVICES,Social Care and Health,CLDT,0,I&E,Personal Care.,,08/05/2024,08/05/2024,36,,REDACTED PERSONAL DATA
Adult Services,ADULT DISABILITY SERVICES,Social Care and Health,CLDT,0,I&E,Personal Care.,,08/05/2024,08/05/2024,8.73,,REDACTED PERSONAL DATA
Adult Services,ADULT DISABILITY SERVICES,Social Care and Health,CLDT,0,I&E,Personal Care.,,08/05/2024,08/05/2024,8.73,,REDACTED PERSONAL DATA
Adult Services,ADULT DISABILITY SERVICES,Social Care and Health,CLDT,0,I&E,Personal Care.,,08/05/2024,08/05/2024,8.73,,REDACTED PERSONAL DATA
Adult Services,ADULT DISABILITY SERVICES,Social Care and Health,CLDT,0,I&E,Personal Care.,,08/05/2024,08/05/2024,36,,REDACTED PERSONAL DATA
Adult Services,ADULT DISABILITY SERVICES,Social Care and Health,CLDT,0,I&E,Personal Care.,,08/05/2024,08/05/2024,36,,REDACTED PERSONAL DATA
Adult Services,ADULT DISABILITY SERVICES,Social Care and Health,CLDT,0,I&E,Personal Care.,,08/05/2024,08/05/2024,36,,REDACTED PERSONAL DATA
Adult Services,ADULT DISABILITY SERVICES,Social Care and Health,CLDT,0,I&E,Personal Care.,,08/05/2024,08/05/2024,506.87,,REDACTED PERSONAL DATA
Adult Services,ADULT DISABILITY SERVICES,Social Care and Health,CLDT,0,I&E,Personal Care.,,08/05/2024,08/05/2024,350.35,,REDACTED PERSONAL DATA
Adult Services,ADULT DISABILITY SERVICES,Social Care and Health,CLDT,0,I&E,Personal Care.,,08/05/2024,08/05/2024,506.87,,REDACTED PERSONAL DATA
Adult Services,ADULT DISABILITY SERVICES,Social Care and Health,CLDT,0,I&E,Personal Care.,,08/05/2024,08/05/2024,506.87,,REDACTED PERSONAL DATA
Adult Services,ADULT DISABILITY SERVICES,Social Care and Health,CLDT,0,I&E,Personal Care.,,08/05/2024,08/05/2024,310.83,,REDACTED PERSONAL DATA
Adult Services,ADULT DISABILITY SERVICES,Social Care and Health,CLDT,0,I&E,Personal Care.,,08/05/2024,08/05/2024,506.87,,REDACTED PERSONAL DATA
Adult Services,Community Care Team,Social Care and Health,Mental Health Care Team,0,I&E,Personal Care.,,08/05/2024,08/05/2024,140.56,,REDACTED PERSONAL DATA
Adult Services,Community Care Team,Social Care and Health,Mental Health Care Team,0,I&E,Personal Care.,,08/05/2024,08/05/2024,70.28,,REDACTED PERSONAL DATA
Adult Services,Community Care Team,Social Care and Health,Mental Health Care Team,0,I&E,Personal Care.,,08/05/2024,08/05/2024,210.84,,REDACTED PERSONAL DATA
Adult Services,Community Care Team,Social Care and Health,Mental Health Care Team,0,I&E,Personal Care.,,08/05/2024,08/05/2024,1346.93,,REDACTED PERSONAL DATA
"Commercial, Corporate & landlord Services",Property Services & Facilities Management,Resources,Reactive Maintenance,0,I&E,Building Improvements / Maintenance,,21/03/2024,30/05/2024,244.71,,EFS Systems (UK) Ltd
"Commercial, Corporate & landlord Services",Property Services & Facilities Management,Resources,External Clients,0,I&E,Building Improvements / Maintenance,,31/03/2024,30/05/2024,2488.37,,EFS Systems (UK) Ltd
"Commercial, Corporate & landlord Services",Property Services & Facilities Management,Resources,External Clients,0,I&E,Building Improvements / Maintenance,,31/03/2024,30/05/2024,4257.9,,EFS Systems (UK) Ltd
"Commercial, Corporate & landlord Services",Property Services & Facilities Management,Resources,Reactive Maintenance,0,I&E,Building Improvements / Maintenance,,31/03/2024,30/05/2024,779.99,,EFS Systems (UK) Ltd
"Commercial, Corporate & landlord Services",Property Services & Facilities Management,Resources,Reactive Maintenance,0,I&E,Building Improvements / Maintenance,,31/03/2024,30/05/2024,279.27,,EFS Systems (UK) Ltd
"Commercial, Corporate & landlord Services",Property Services & Facilities Management,Resources,Reactive Maintenance,0,I&E,Building Improvements / Maintenance,,31/03/2024,30/05/2024,90.37,,EFS Systems (UK) Ltd
"Commercial, Corporate & landlord Services",Property Services & Facilities Management,Resources,Reactive Maintenance,0,I&E,Building Improvements / Maintenance,,31/03/2024,30/05/2024,41,,EFS Systems (UK) Ltd
"Enterprise, Housing & Community Animation",General Fund Housing,Communities & Place,Homelessness,0,I&E,Building Improvements / Maintenance,,10/05/2024,24/05/2024,945,,Highmore Facilities Ltd
Neighbourhood Services,Waste and Street Services,Communities & Place,Refuse & Cleansing Operations,0,I&E,Materials & Consumables.,,08/05/2024,21/05/2024,32.24,,Robert Price Ltd
Neighbourhood Services,Waste and Street Services,Communities & Place,Fitting Shop Grounds,0,I&E,Materials & Consumables.,,20/05/2024,28/05/2024,567,,Acorn Industrial Services
Finance & Business Devlopment,Contact Centre,MonLife Directorate,Contact Centre,0,I&E,Materials & Consumables.,,29/04/2024,02/05/2024,411.24,,Valltech Limited
Neighbourhood Services,Waste and Street Services,Communities & Place,Fitting Shop Grounds,0,I&E,Materials & Consumables.,,23/04/2024,07/05/2024,-48,,Spaldings (UK) Ltd
Adult Services,Community Care Team,Social Care and Health,Mental Health Care Team,0,I&E,Residential.,,#N/A,#N/A,-100.57,,Dulas Court
Neighbourhood Services,Waste and Street Services,Communities & Place,Refuse & Cleansing Operations,0,I&E,Materials & Consumables.,,08/05/2024,28/05/2024,81.98,,Crownhill Topsoil
Neighbourhood Services,Waste and Street Services,Communities & Place,Refuse & Cleansing Operations,0,I&E,Materials & Consumables.,,13/05/2024,28/05/2024,81.4,,Crownhill Topsoil
"Facilities, Fleet & Decarbonisation",De-Carbonisation,Communities & Place,Solar Farm,0,I&E,Building Improvements / Maintenance,,29/04/2024,09/05/2024,8832.86,,Saliis Limited
Neighbourhood Services,Highways,Communities & Place,Internal others,0,I&E,Materials & Consumables.,,08/02/2024,10/05/2024,577.32,,Tarmac Ltd
Neighbourhood Services,Highways,Communities & Place,Potholing,0,I&E,Materials & Consumables.,,08/02/2024,10/05/2024,572.83,,Tarmac Ltd
Neighbourhood Services,Highways,Communities & Place,Potholing,0,I&E,Materials & Consumables.,,08/02/2024,10/05/2024,247.1,,Tarmac Ltd
Neighbourhood Services,Highways,Communities & Place,Pumping stations,0,I&E,Materials & Consumables.,,01/02/2024,02/05/2024,510,,KPR Engineering (M&E) Ltd
Neighbourhood Services,Waste and Street Services,Communities & Place,Refuse & Cleansing Operations,0,I&E,Materials & Consumables.,,30/04/2024,02/05/2024,89.28,,Pontrilas Merchants
Neighbourhood Services,Waste and Street Services,Communities & Place,Refuse & Cleansing Operations,0,I&E,Materials & Consumables.,,25/04/2024,07/05/2024,-5.13,,Robert Price Ltd
Appropriations,Appropriations,Appropriations,Attributable Costs - Fixed Asset Disposal,0,I&E,Building Improvements / Maintenance,,30/04/2024,02/05/2024,10000,,Powell Dobson Architects ltd
Finance & Business Devlopment,Contact Centre,MonLife Directorate,Contact Centre,0,I&E,Materials & Consumables.,,16/05/2024,21/05/2024,5,,SRS Public
Schools Total,School Group 2 � Pupil Capacity 144-314,MCC Schools,Llanfoist Fawr Primary School,0,I&E,Materials & Consumables.,,06/05/2024,15/05/2024,5.93,,Amazon Payments UK Limited
Neighbourhood Services,Highways,Communities & Place,Internal others,0,I&E,Materials & Consumables.,,03/04/2024,15/05/2024,486.4,,Dragon Asphalt Ltd
Neighbourhood Services,Highways,Communities & Place,Internal others,0,I&E,Materials & Consumables.,,08/04/2024,15/05/2024,338.2,,Dragon Asphalt Ltd
Schools Total,School Group 2 � Pupil Capacity 144-314,MCC Schools,Llanfoist Fawr Primary School,0,I&E,Materials & Consumables.,,09/05/2024,14/05/2024,12.8,,Hope Education Ltd
Neighbourhood Services,Waste and Street Services,Communities & Place,Refuse & Cleansing Operations,0,I&E,Materials & Consumables.,,26/04/2024,21/05/2024,163.82,,Robert Price Ltd
Neighbourhood Services,Waste and Street Services,Communities & Place,Refuse & Cleansing Operations,0,I&E,Materials & Consumables.,,26/04/2024,21/05/2024,35.36,,Robert Price Ltd
Neighbourhood Services,Waste and Street Services,Communities & Place,Refuse & Cleansing Operations,0,I&E,Materials & Consumables.,,29/04/2024,21/05/2024,6.39,,Robert Price Ltd
Neighbourhood Services,Waste and Street Services,Communities & Place,Refuse & Cleansing Operations,0,I&E,Materials & Consumables.,,30/04/2024,21/05/2024,40.83,,Robert Price Ltd
Schools Total,School Group 2 � Pupil Capacity 144-314,MCC Schools,Dewstow Primary School,0,I&E,Building Improvements / Maintenance,,15/05/2024,21/05/2024,50,,Ambassador Fire & Security LTD
"Enterprise, Housing & Community Animation",General Fund Housing,Communities & Place,62 Chepstow Road Hostel,0,I&E,Building Improvements / Maintenance,,10/05/2024,24/05/2024,195,,Highmore Facilities Ltd
Adult Services,Community Care Team,Social Care and Health,Mental Health Care Team,0,I&E,Residential.,,29/04/2024,03/05/2024,3880,,Sunnybank EMI Residential Home
Adult Services,ADULT DISABILITY SERVICES,Social Care and Health,CLDT,0,I&E,Residential.,,17/05/2024,24/05/2024,10579.45,,Grove Care Partnership Limited (Consensus)
"Enterprise, Housing & Community Animation",General Fund Housing,Communities & Place,Lodgings Scheme,0,I&E,Building Improvements / Maintenance,,01/05/2024,31/05/2024,20,,REDACTED PERSONAL DATA
"Enterprise, Housing & Community Animation",General Fund Housing,Communities & Place,Homelessness,0,I&E,Building Improvements / Maintenance,,02/05/2024,31/05/2024,2947.04,,360 Ventures
Schools Total,School Group 2 � Pupil Capacity 144-314,MCC Schools,Llanfoist Fawr Primary School,0,I&E,Materials & Consumables.,,09/05/2024,31/05/2024,35.89,,Amazon Payments UK Limited
Standards,Early Years,Children & Young People,Flying Start Grant,0,I&E,Materials & Consumables.,,22/05/2024,28/05/2024,164.01,,Amazon Payments UK Limited
"Enterprise, Housing & Community Animation",General Fund Housing,Communities & Place,Lodgings Scheme,0,I&E,Building Improvements / Maintenance,,30/03/2024,28/05/2024,675,,REDACTED PERSONAL DATA
"Enterprise, Housing & Community Animation",General Fund Housing,Communities & Place,Lodgings Scheme,0,I&E,Building Improvements / Maintenance,,23/04/2024,28/05/2024,638,,REDACTED PERSONAL DATA
"Enterprise, Housing & Community Animation",General Fund Housing,Communities & Place,Lodgings Scheme,0,I&E,Building Improvements / Maintenance,,09/05/2024,28/05/2024,450,,REDACTED PERSONAL DATA
"Enterprise, Housing & Community Animation",General Fund Housing,Communities & Place,Lodgings Scheme,0,I&E,Building Improvements / Maintenance,,30/03/2024,28/05/2024,140,,REDACTED PERSONAL DATA
"Enterprise, Housing & Community Animation",General Fund Housing,Communities & Place,Lodgings Scheme,0,I&E,Building Improvements / Maintenance,,08/04/2024,28/05/2024,412,,REDACTED PERSONAL DATA
"Enterprise, Housing & Community Animation",General Fund Housing,Communities & Place,Lodgings Scheme,0,I&E,Building Improvements / Maintenance,,25/04/2024,28/05/2024,345,,REDACTED PERSONAL DATA
Neighbourhood Services,Highways,Communities & Place,Potholing,0,I&E,Materials & Consumables.,,27/03/2024,14/05/2024,1589.52,,G D Harries & Sons Ltd
Neighbourhood Services,Waste and Street Services,Communities & Place,Fitting Shop Grounds,0,I&E,Materials & Consumables.,,17/04/2024,09/05/2024,279.2,,Mon & Border Motor Factors Ltd
Neighbourhood Services,Waste and Street Services,Communities & Place,Fitting Shop Grounds,0,I&E,Materials & Consumables.,,03/04/2024,09/05/2024,280,,Fleetwheel
Neighbourhood Services,Waste and Street Services,Communities & Place,Fitting Shop Grounds,0,I&E,Materials & Consumables.,,24/04/2024,09/05/2024,48,,Spaldings (UK) Ltd
Neighbourhood Services,Waste and Street Services,Communities & Place,Refuse & Cleansing Operations,0,I&E,Materials & Consumables.,,29/04/2024,14/05/2024,35,,Fenland Leisure Products
"Commercial, Corporate & landlord Services",Asset Management,Resources,County Farms Unit,0,I&E,Building Improvements / Maintenance,,31/01/2024,08/05/2024,49,,EFS Systems (UK) Ltd
Neighbourhood Services,Highways,Communities & Place,Potholing,0,I&E,Materials & Consumables.,,31/01/2024,08/05/2024,554.86,,Tarmac Ltd
Neighbourhood Services,Highways,Communities & Place,Potholing,0,I&E,Materials & Consumables.,,12/02/2024,08/05/2024,465,,Tarmac Ltd
Neighbourhood Services,Highways,Communities & Place,Potholing,0,I&E,Materials & Consumables.,,12/02/2024,08/05/2024,222.39,,Tarmac Ltd
Neighbourhood Services,Highways,Communities & Place,Internal others,0,I&E,Materials & Consumables.,,12/02/2024,08/05/2024,781.75,,Tarmac Ltd
"Commercial, Corporate & landlord Services",Property Services & Facilities Management,Resources,Programmed Maintenance,0,I&E,Building Improvements / Maintenance,,03/05/2024,08/05/2024,59.92,,REDACTED PERSONAL DATA
Schools Total,School Group 2 � Pupil Capacity 144-314,MCC Schools,Castle Park Primary School,0,I&E,Materials & Consumables.,,03/05/2024,08/05/2024,11.23,,Amazon Payments UK Limited
Neighbourhood Services,Highways,Communities & Place,Potholing,0,I&E,Materials & Consumables.,,28/03/2024,08/05/2024,236.6,,Tarmac Ltd
Schools Total,School Group 2 � Pupil Capacity 144-314,MCC Schools,Pembroke Primary School,0,I&E,Materials & Consumables.,,10/05/2024,21/05/2024,29.58,,Amazon Payments UK Limited
Schools Total,School Group 2 � Pupil Capacity 144-314,MCC Schools,Llanfoist Fawr Primary School,0,I&E,Materials & Consumables.,,10/05/2024,28/05/2024,7.49,,Amazon Payments UK Limited
Schools Total,School Group 2 � Pupil Capacity 144-314,MCC Schools,Llanfoist Fawr Primary School,0,I&E,Materials & Consumables.,,10/05/2024,28/05/2024,8.32,,Amazon Payments UK Limited
"Enterprise, Housing & Community Animation",General Fund Housing,Communities & Place,Emergency Accommodation Hostel,0,I&E,Building Improvements / Maintenance,,17/04/2024,22/05/2024,2010,,Highmore Facilities Ltd
"Enterprise, Housing & Community Animation",General Fund Housing,Communities & Place,Lodgings Scheme,0,I&E,Building Improvements / Maintenance,,08/04/2024,22/05/2024,1480,,Highmore Facilities Ltd
"Enterprise, Housing & Community Animation",General Fund Housing,Communities & Place,Melin PSL (Private Sector Leasing),0,I&E,Building Improvements / Maintenance,,26/04/2024,22/05/2024,370,,Highmore Facilities Ltd
Neighbourhood Services,Highways,Communities & Place,Overhead - Mon Highways,0,I&E,Materials & Consumables.,,27/03/2024,15/05/2024,27.09,,A Jones & Co (Usk) Ltd
Neighbourhood Services,Waste and Street Services,Communities & Place,Refuse & Cleansing Operations,0,I&E,Materials & Consumables.,,17/05/2024,23/05/2024,29,,Blitzmedia Limited
Schools Total,School Group 2 � Pupil Capacity 144-314,MCC Schools,Dewstow Primary School,0,I&E,Building Improvements / Maintenance,,14/05/2024,23/05/2024,60,,Amlee Electrical Supplies Ltd
Neighbourhood Services,Waste and Street Services,Communities & Place,Fitting Shop Grounds,0,I&E,Materials & Consumables.,,20/05/2024,23/05/2024,1499,,Richard Griffiths Ltd
Neighbourhood Services,Waste and Street Services,Communities & Place,Refuse & Cleansing Operations,0,I&E,Materials & Consumables.,,08/05/2024,16/05/2024,29.22,,Robert Price Ltd
Neighbourhood Services,Highways,Communities & Place,Internal others,0,I&E,Materials & Consumables.,,26/02/2024,15/05/2024,241.3,,Dragon Asphalt Ltd
Neighbourhood Services,Highways,Communities & Place,Internal others,0,I&E,Materials & Consumables.,,25/03/2024,15/05/2024,397.1,,Dragon Asphalt Ltd
Neighbourhood Services,Highways,Communities & Place,Internal others,0,I&E,Materials & Consumables.,,26/03/2024,15/05/2024,380,,Dragon Asphalt Ltd
Schools Total,School Group 7 � Pupil Capacity 501-1800,MCC Schools,King Henry 3-19 School,0,I&E,Agency Staff,,19/05/2024,30/05/2024,143.97,,New Directions Education Ltd
Schools Total,School Group 7 � Pupil Capacity 501-1800,MCC Schools,King Henry 3-19 School,0,I&E,Agency Staff,,19/05/2024,30/05/2024,-17.94,,New Directions Education Ltd
Schools Total,School Group 7 � Pupil Capacity 501-1800,MCC Schools,King Henry 3-19 School,0,I&E,Agency Staff,,19/05/2024,30/05/2024,143.97,,New Directions Education Ltd
Schools Total,School Group 7 � Pupil Capacity 501-1800,MCC Schools,King Henry 3-19 School,0,I&E,Agency Staff,,19/05/2024,30/05/2024,143.97,,New Directions Education Ltd
Schools Total,School Group 7 � Pupil Capacity 501-1800,MCC Schools,King Henry 3-19 School,0,I&E,Agency Staff,,19/05/2024,30/05/2024,143.97,,New Directions Education Ltd
Schools Total,School Group 7 � Pupil Capacity 501-1800,MCC Schools,King Henry 3-19 School,0,I&E,Agency Staff,,19/05/2024,30/05/2024,167.43,,New Directions Education Ltd
Schools Total,School Group 1 � Pupil Capacity 1-143,MCC Schools,Llanvihangel Crucorney Primary School,0,I&E,Agency Staff,,19/05/2024,28/05/2024,83.77,,New Directions Education Ltd
Schools Total,School Group 1 � Pupil Capacity 1-143,MCC Schools,Llanvihangel Crucorney Primary School,0,I&E,Agency Staff,,19/05/2024,28/05/2024,83.77,,New Directions Education Ltd
Schools Total,School Group 7 � Pupil Capacity 501-1800,MCC Schools,Monmouth Comprehensive,0,I&E,Agency Staff,,08/05/2024,14/05/2024,746.99,,Back Office Support Services Ltd (Education Supply Pool)
Schools Total,SCHGRP3 � School Group 3 � Pupil Capacity 315-500,MCC Schools,Undy Primary School,0,I&E,Agency Staff,,22/05/2024,28/05/2024,3595.66,,Teaching 4 Wales Ltd
"Facilities, Fleet & Decarbonisation",Home to School Transport Dept,Communities & Place,Home To School Transport,0,I&E,Vechicles Repairs and Maintenance,,07/05/2024,14/05/2024,195,,Bulwark Bus & Coach Eng. Ltd
Schools Total,School Group 7 � Pupil Capacity 501-1800,MCC Schools,Monmouth Comprehensive,0,I&E,Agency Staff,,22/05/2024,24/05/2024,659.99,,Back Office Support Services Ltd (Education Supply Pool)
Schools Total,School Group 7 � Pupil Capacity 501-1800,MCC Schools,Monmouth Comprehensive,0,I&E,Agency Staff,,22/05/2024,24/05/2024,832.01,,Back Office Support Services Ltd (Education Supply Pool)
Schools Total,School Group 7 � Pupil Capacity 501-1800,MCC Schools,Monmouth Comprehensive,0,I&E,Agency Staff,,22/05/2024,24/05/2024,746.99,,Back Office Support Services Ltd (Education Supply Pool)
"Facilities, Fleet & Decarbonisation",Transport Department,Communities & Place,Transport,0,I&E,Tyres And Tubes,,05/02/2024,24/05/2024,151.4,,Malvern Tyres (Wholesale) Ltd
"Facilities, Fleet & Decarbonisation",Transport Department,Communities & Place,Transport,0,I&E,Tyres And Tubes,,06/02/2024,24/05/2024,354.2,,Malvern Tyres (Wholesale) Ltd
"Facilities, Fleet & Decarbonisation",Transport Department,Communities & Place,Transport,0,I&E,Spare Parts,,23/05/2024,24/05/2024,71.12,,Mon & Border Motor Factors Ltd
"Facilities, Fleet & Decarbonisation",Transport Department,Communities & Place,Transport,0,I&E,Vehicle Collision Damage Costs,,23/05/2024,24/05/2024,578.1,,Mon & Border Motor Factors Ltd
Schools Total,School Group 2 � Pupil Capacity 144-314,MCC Schools,Durand Primary School,0,I&E,Agency Staff,,04/10/2023,15/05/2024,200.48,,Teaching 4 Wales Ltd
Schools Total,School Group 7 � Pupil Capacity 501-1800,MCC Schools,King Henry 3-19 School,0,I&E,Agency Staff,,19/05/2024,30/05/2024,217,,New Directions Education Ltd
Schools Total,SCHGRP3 � School Group 3 � Pupil Capacity 315-500,MCC Schools,Magor CiW Primary School (VA),0,I&E,Agency Staff,,01/05/2024,10/05/2024,472,,Axcis Education Recruitment
Schools Total,SCHGRP3 � School Group 3 � Pupil Capacity 315-500,MCC Schools,Magor CiW Primary School (VA),0,I&E,Agency Staff,,01/05/2024,10/05/2024,1878.68,,Teaching 4 Wales Ltd
Schools Total,School Group 7 � Pupil Capacity 501-1800,MCC Schools,King Henry 3-19 School,0,I&E,Agency Staff,,19/05/2024,30/05/2024,128.55,,New Directions Education Ltd
Schools Total,School Group 2 � Pupil Capacity 144-314,MCC Schools,Durand Primary School,0,I&E,Agency Staff,,25/10/2023,15/05/2024,302.83,,Teaching 4 Wales Ltd
Schools Total,School Group 2 � Pupil Capacity 144-314,MCC Schools,Durand Primary School,0,I&E,Agency Staff,,01/11/2023,15/05/2024,409.42,,Teaching 4 Wales Ltd
Schools Total,School Group 2 � Pupil Capacity 144-314,MCC Schools,Archbishop Rowan Williams CiW Primary School (VA),0,I&E,Agency Staff,,27/09/2023,15/05/2024,294.36,,Teaching 4 Wales Ltd
Schools Total,School Group 7 � Pupil Capacity 501-1800,MCC Schools,King Henry 3-19 School,0,I&E,Agency Staff,,19/05/2024,30/05/2024,217,,New Directions Education Ltd
Schools Total,School Group 7 � Pupil Capacity 501-1800,MCC Schools,King Henry 3-19 School,0,I&E,Agency Staff,,19/05/2024,30/05/2024,217,,New Directions Education Ltd
Schools Total,School Group 2 � Pupil Capacity 144-314,MCC Schools,Dewstow Primary School,0,I&E,Agency Staff,,18/12/2023,28/05/2024,581.53,,PE Direct Teaching Agency
Schools Total,School Group 2 � Pupil Capacity 144-314,MCC Schools,Pembroke Primary School,0,I&E,Agency Staff,,17/04/2024,28/05/2024,2506.38,,Teaching 4 Wales Ltd
Schools Total,School Group 2 � Pupil Capacity 144-314,MCC Schools,Pembroke Primary School,0,I&E,Agency Staff,,17/04/2024,28/05/2024,1023.55,,Teaching 4 Wales Ltd
Schools Total,School Group 2 � Pupil Capacity 144-314,MCC Schools,Pembroke Primary School,0,I&E,Agency Staff,,23/04/2024,28/05/2024,1023.55,,Teaching 4 Wales Ltd
Schools Total,School Group 2 � Pupil Capacity 144-314,MCC Schools,Pembroke Primary School,0,I&E,Agency Staff,,23/04/2024,28/05/2024,2461.22,,Teaching 4 Wales Ltd
Schools Total,School Group 2 � Pupil Capacity 144-314,MCC Schools,Cross Ash Primary School,0,I&E,Agency Staff,,19/05/2024,30/05/2024,128.72,,New Directions Education Ltd
Schools Total,School Group 2 � Pupil Capacity 144-314,MCC Schools,Cross Ash Primary School,0,I&E,Agency Staff,,19/05/2024,30/05/2024,128.72,,New Directions Education Ltd
Schools Total,School Group 7 � Pupil Capacity 501-1800,MCC Schools,King Henry 3-19 School,0,I&E,Agency Staff,,19/05/2024,30/05/2024,125.51,,New Directions Education Ltd
"Facilities, Fleet & Decarbonisation",Transport Department,Communities & Place,Transport,0,I&E,Spare Parts,,30/04/2024,08/05/2024,12.77,,Motorcare
"Facilities, Fleet & Decarbonisation",Transport Department,Communities & Place,Transport,0,I&E,Spare Parts,,01/05/2024,08/05/2024,22.9,,Mon & Border Motor Factors Ltd
"Facilities, Fleet & Decarbonisation",Transport Department,Communities & Place,Transport,0,I&E,Spare Parts,,30/04/2024,08/05/2024,727.29,,Glenside Commercials Ltd
Schools Total,School Group 2 � Pupil Capacity 144-314,MCC Schools,Durand Primary School,0,I&E,Agency Staff,,13/09/2023,08/05/2024,294.36,,Teaching 4 Wales Ltd
Schools Total,School Group 2 � Pupil Capacity 144-314,MCC Schools,Durand Primary School,0,I&E,Agency Staff,,22/11/2023,15/05/2024,614.13,,Teaching 4 Wales Ltd
"Facilities, Fleet & Decarbonisation",Transport Department,Communities & Place,Transport,0,I&E,Spare Parts,,01/05/2024,08/05/2024,36.9,,Mon & Border Motor Factors Ltd
"Facilities, Fleet & Decarbonisation",Transport Department,Communities & Place,Transport,0,I&E,Vehicle Collision Damage Costs,,01/05/2024,08/05/2024,268,,Mon & Border Motor Factors Ltd
Schools Total,School Group 2 � Pupil Capacity 144-314,MCC Schools,Raglan CiW Primary School (VC),0,I&E,Agency Staff,,30/04/2024,08/05/2024,618.2,,TeacherActive
Schools Total,School Group 2 � Pupil Capacity 144-314,MCC Schools,Durand Primary School,0,I&E,Agency Staff,,29/11/2023,15/05/2024,204.71,,Teaching 4 Wales Ltd
Schools Total,School Group 2 � Pupil Capacity 144-314,MCC Schools,Durand Primary School,0,I&E,Agency Staff,,06/12/2023,15/05/2024,616.74,,Teaching 4 Wales Ltd
Schools Total,School Group 1 � Pupil Capacity 1-143,MCC Schools,Llanvihangel Crucorney Primary School,0,I&E,Agency Staff,,21/04/2024,08/05/2024,83.77,,New Directions Education Ltd
Schools Total,School Group 1 � Pupil Capacity 1-143,MCC Schools,Llanvihangel Crucorney Primary School,0,I&E,Agency Staff,,21/04/2024,08/05/2024,83.77,,New Directions Education Ltd
Schools Total,School Group 1 � Pupil Capacity 1-143,MCC Schools,Llanvihangel Crucorney Primary School,0,I&E,Agency Staff,,21/04/2024,08/05/2024,217,,New Directions Education Ltd
Schools Total,School Group 2 � Pupil Capacity 144-314,MCC Schools,Archbishop Rowan Williams CiW Primary School (VA),0,I&E,Agency Staff,,23/04/2024,21/05/2024,691.62,,Teaching 4 Wales Ltd
Schools Total,School Group 7 � Pupil Capacity 501-1800,MCC Schools,Chepstow School,0,I&E,Repairs & Maintenance.,,27/03/2024,07/05/2024,283.34,,Phs Group
Schools Total,School Group 2 � Pupil Capacity 144-314,MCC Schools,Rogiet Primary School,0,I&E,Agency Staff,,07/05/2024,21/05/2024,3001.43,,Teaching 4 Wales Ltd
"Facilities, Fleet & Decarbonisation",Home to School Transport Dept,Communities & Place,Home To School Transport,0,I&E,Vechicles Repairs and Maintenance,,15/05/2024,21/05/2024,325,,Bulwark Bus & Coach Eng. Ltd
Schools Total,School Group 2 � Pupil Capacity 144-314,MCC Schools,Rogiet Primary School,0,I&E,Agency Staff,,18/05/2024,24/05/2024,614.25,,Apollo Teaching Services LTD
Schools Total,School Group 2 � Pupil Capacity 144-314,MCC Schools,Goytre Fawr Primary School,0,I&E,Agency Staff,,14/05/2024,21/05/2024,493.88,,TeacherActive
Schools Total,School Group 2 � Pupil Capacity 144-314,MCC Schools,Kymin View Primary School,0,I&E,Agency Staff,,08/05/2024,21/05/2024,137.54,,Suppleo Recruitment Ltd
Schools Total,School Group 2 � Pupil Capacity 144-314,MCC Schools,Kymin View Primary School,0,I&E,Agency Staff,,08/05/2024,21/05/2024,137.54,,Suppleo Recruitment Ltd
Schools Total,School Group 2 � Pupil Capacity 144-314,MCC Schools,Kymin View Primary School,0,I&E,Agency Staff,,08/05/2024,21/05/2024,137.54,,Suppleo Recruitment Ltd
Schools Total,School Group 2 � Pupil Capacity 144-314,MCC Schools,Kymin View Primary School,0,I&E,Agency Staff,,08/05/2024,21/05/2024,137.54,,Suppleo Recruitment Ltd
Schools Total,School Group 2 � Pupil Capacity 144-314,MCC Schools,Kymin View Primary School,0,I&E,Agency Staff,,08/05/2024,21/05/2024,137.54,,Suppleo Recruitment Ltd
Schools Total,School Group 2 � Pupil Capacity 144-314,MCC Schools,Kymin View Primary School,0,I&E,Agency Staff,,08/05/2024,21/05/2024,137.54,,Suppleo Recruitment Ltd
Schools Total,School Group 2 � Pupil Capacity 144-314,MCC Schools,Kymin View Primary School,0,I&E,Agency Staff,,08/05/2024,21/05/2024,137.54,,Suppleo Recruitment Ltd
"Facilities, Fleet & Decarbonisation",Transport Department,Communities & Place,Transport,0,I&E,Vehicle Collision Damage Costs,,25/04/2024,08/05/2024,64.37,,AEBI SCHMIDT UK Ltd
Schools Total,School Group 2 � Pupil Capacity 144-314,MCC Schools,Durand Primary School,0,I&E,Agency Staff,,01/05/2024,08/05/2024,2375.37,,Teaching 4 Wales Ltd
Schools Total,School Group 2 � Pupil Capacity 144-314,MCC Schools,Goytre Fawr Primary School,0,I&E,Agency Staff,,30/04/2024,28/05/2024,125.76,,TeacherActive
Schools Total,School Group 2 � Pupil Capacity 144-314,MCC Schools,Our Lady & St Michael's (OLSM) RC Primary School (VA),0,I&E,Agency Staff,,01/05/2024,14/05/2024,3428.17,,Teaching Personnel
"Facilities, Fleet & Decarbonisation",Home to School Transport Dept,Communities & Place,Home To School Transport,0,I&E,Vechicles Repairs and Maintenance,,08/05/2024,14/05/2024,195,,Bulwark Bus & Coach Eng. Ltd
"Facilities, Fleet & Decarbonisation",Transport Department,Communities & Place,Transport,0,I&E,Spare Parts,,30/04/2024,08/05/2024,130.5,,Motorcare
Schools Total,School Group 7 � Pupil Capacity 501-1800,MCC Schools,Chepstow School,0,I&E,Repairs & Maintenance.,,25/04/2024,08/05/2024,25.44,,Amazon Payments UK Limited
"Facilities, Fleet & Decarbonisation",Transport Department,Communities & Place,Transport,0,I&E,Spare Parts,,30/04/2024,08/05/2024,24.62,,Motorcare
"Facilities, Fleet & Decarbonisation",Home to School Transport Dept,Communities & Place,Passenger Transport � Service 65,0,I&E,Vechicles Repairs and Maintenance,,03/05/2024,14/05/2024,195,,Bulwark Bus & Coach Eng. Ltd
"Facilities, Fleet & Decarbonisation",Home to School Transport Dept,Communities & Place,Home To School Transport,0,I&E,Vechicles Repairs and Maintenance,,03/05/2024,14/05/2024,195,,Bulwark Bus & Coach Eng. Ltd
"Facilities, Fleet & Decarbonisation",Transport Department,Communities & Place,Transport,0,I&E,Spare Parts,,01/05/2024,08/05/2024,515,,Wales and West Truck and Bus
"Facilities, Fleet & Decarbonisation",Transport Department,Communities & Place,Transport,0,I&E,Spare Parts,,02/05/2024,08/05/2024,69.9,,Mon & Border Motor Factors Ltd
"Facilities, Fleet & Decarbonisation",Transport Department,Communities & Place,Transport,0,I&E,Spare Parts,,02/05/2024,08/05/2024,196,,Mon & Border Motor Factors Ltd
Control Division,Control Dept,Control,Payroll Monthly 2 (Schools),0,BS,Resource Link Payments,,02/05/2024,03/05/2024,187.5,,DWP Debt Management
Control Division,Control Dept,Control,Payroll MCCL3,0,BS,Resource Link Payments,,02/05/2024,03/05/2024,309.61,,Newport City Council
Control Division,Control Dept,Control,Payroll Monthly General,0,BS,Resource Link Payments,,02/05/2024,03/05/2024,10,,DWP Debt Management
Control Division,Control Dept,Control,Payroll Monthly General,0,BS,Resource Link Payments,,02/05/2024,03/05/2024,956.53,,DWP CMS Employers
Control Division,Control Dept,Control,Payroll Monthly General,0,BS,Resource Link Payments,,02/05/2024,03/05/2024,12.5,,Caps
"Facilities, Fleet & Decarbonisation",Transport Department,Communities & Place,Transport,0,I&E,Spare Parts,,02/05/2024,08/05/2024,53.8,,Mon & Border Motor Factors Ltd
Schools Total,School Group 2 � Pupil Capacity 144-314,MCC Schools,Archbishop Rowan Williams CiW Primary School (VA),0,I&E,Agency Staff,,27/12/2023,15/05/2024,209.92,,Teaching 4 Wales Ltd
Schools Total,School Group 2 � Pupil Capacity 144-314,MCC Schools,Archbishop Rowan Williams CiW Primary School (VA),0,I&E,Agency Staff,,14/02/2024,15/05/2024,805.67,,Teaching 4 Wales Ltd
Schools Total,School Group 2 � Pupil Capacity 144-314,MCC Schools,Durand Primary School,0,I&E,Agency Staff,,20/12/2023,15/05/2024,511.78,,Teaching 4 Wales Ltd
Schools Total,School Group 2 � Pupil Capacity 144-314,MCC Schools,Cross Ash Primary School,0,I&E,Agency Staff,,19/05/2024,30/05/2024,128.72,,New Directions Education Ltd
Schools Total,School Group 2 � Pupil Capacity 144-314,MCC Schools,Cross Ash Primary School,0,I&E,Agency Staff,,19/05/2024,30/05/2024,214.43,,New Directions Education Ltd
Schools Total,School Group 2 � Pupil Capacity 144-314,MCC Schools,Dewstow Primary School,0,I&E,Agency Staff,,19/05/2024,30/05/2024,240.89,,New Directions Education Ltd
Schools Total,School Group 2 � Pupil Capacity 144-314,MCC Schools,Dewstow Primary School,0,I&E,Agency Staff,,19/05/2024,30/05/2024,240.89,,New Directions Education Ltd
Schools Total,School Group 2 � Pupil Capacity 144-314,MCC Schools,Dewstow Primary School,0,I&E,Agency Staff,,19/05/2024,30/05/2024,240.89,,New Directions Education Ltd
Schools Total,School Group 2 � Pupil Capacity 144-314,MCC Schools,Dewstow Primary School,0,I&E,Agency Staff,,19/05/2024,30/05/2024,240.89,,New Directions Education Ltd
Schools Total,School Group 2 � Pupil Capacity 144-314,MCC Schools,Dewstow Primary School,0,I&E,Agency Staff,,19/05/2024,30/05/2024,240.89,,New Directions Education Ltd
Schools Total,School Group 2 � Pupil Capacity 144-314,MCC Schools,Dewstow Primary School,0,I&E,Agency Staff,,19/05/2024,30/05/2024,128.72,,New Directions Education Ltd
Schools Total,School Group 2 � Pupil Capacity 144-314,MCC Schools,Dewstow Primary School,0,I&E,Agency Staff,,19/05/2024,30/05/2024,128.72,,New Directions Education Ltd
Schools Total,School Group 2 � Pupil Capacity 144-314,MCC Schools,Dewstow Primary School,0,I&E,Agency Staff,,19/05/2024,30/05/2024,128.72,,New Directions Education Ltd
"Facilities, Fleet & Decarbonisation",Transport Department,Communities & Place,Transport,0,I&E,Spare Parts,,29/04/2024,09/05/2024,2799.2,,WasteParts UK Ltd
"Leisure, Youth & Outdoor Adventure",Leisure Services,MonLife Directorate,Caldicot Fitness,0,I&E,Repairs & Maintenance.,,26/04/2024,02/05/2024,97.4,,Technogym UK Ltd
"Leisure, Youth & Outdoor Adventure",Leisure Services,MonLife Directorate,Caldicot Fitness,0,I&E,Repairs & Maintenance.,,26/04/2024,02/05/2024,47.53,,Technogym UK Ltd
"Leisure, Youth & Outdoor Adventure",Leisure Services,MonLife Directorate,Caldicot Fitness,0,I&E,Repairs & Maintenance.,,26/04/2024,02/05/2024,135,,Technogym UK Ltd
Neighbourhood Services,Highways,Communities & Place,Overhead - Mon Highways,0,I&E,Repairs & Maintenance.,,31/01/2024,02/05/2024,43.18,,Aquam Water Services
Neighbourhood Services,Highways,Communities & Place,Overhead - Mon Highways,0,I&E,Repairs & Maintenance.,,31/01/2024,02/05/2024,130,,Aquam Water Services
Capital Division,Capital Dept,Capital,Capital Programme,0,I&E,Materials & Consumables.,,01/05/2024,14/05/2024,79.49,,Baker Ross Ltd
"Facilities, Fleet & Decarbonisation",Transport Department,Communities & Place,Transport,0,I&E,Spare Parts,,30/04/2024,08/05/2024,48.47,,Motorcare
Schools Total,Schools,MCC Schools,Pupil Referral Unit,0,I&E,Agency Staff,,15/05/2024,23/05/2024,557.01,,Back Office Support Services Ltd (Education Supply Pool)
"Commercial, Corporate & landlord Services",Asset Management,Resources,Shared Accomodation,0,I&E,Gas.,,17/05/2024,23/05/2024,199.92,,TOTAL GAS & POWER LIMITED
"Commercial, Corporate & landlord Services",Property Services & Facilities Management,Resources,Central Accommodation,0,I&E,Gas.,,17/05/2024,23/05/2024,134.42,,TOTAL GAS & POWER LIMITED
"Commercial, Corporate & landlord Services",Property Services & Facilities Management,Resources,Central Accommodation,0,I&E,Gas.,,03/05/2024,23/05/2024,926.04,,British Gas Business
Schools Total,School Group 2 � Pupil Capacity 144-314,MCC Schools,Pembroke Primary School,0,I&E,Water Services-Metered.,,11/05/2024,23/05/2024,77.5,,Welsh Water
Adult Services,Direct Care Residential,Social Care and Health,Llantilio Pertholey CiW Primary School (VC),0,I&E,Electricity.,,02/04/2024,14/05/2024,3892.84,,EDF Energy
"Commercial, Corporate & landlord Services",Property Services & Facilities Management,Resources,Central Accommodation,0,I&E,Gas.,,16/04/2024,14/05/2024,3074.99,,TOTAL GAS & POWER LIMITED
Schools Total,SCHGRP3 � School Group 3 � Pupil Capacity 315-500,MCC Schools,Overmonnow Primary School,0,I&E,Gas.,,16/04/2024,14/05/2024,3364.32,,TOTAL GAS & POWER LIMITED
Schools Total,School Group 2 � Pupil Capacity 144-314,MCC Schools,Raglan CiW Primary School (VC),0,I&E,Gas.,,16/04/2024,14/05/2024,1563.88,,TOTAL GAS & POWER LIMITED
Schools Total,School Group 2 � Pupil Capacity 144-314,MCC Schools,Rogiet Primary School,0,I&E,Gas.,,16/04/2024,14/05/2024,1248.07,,TOTAL GAS & POWER LIMITED
Schools Total,School Group 2 � Pupil Capacity 144-314,MCC Schools,St Mary�s RC Primary School (VA),0,I&E,Rental / Hire,,01/05/2024,22/05/2024,464.1,,Wessex Products (Leasing) Ltd
"Leisure, Youth & Outdoor Adventure",Leisure Services,MonLife Directorate,Raglan CRC,0,I&E,Rental / Hire,,18/05/2024,22/05/2024,576.39,,Algeco UK Ltd
Public Protection,Public Protection,Social Care and Health,Trading Standards Wales,0,I&E,Professional And Specialist Fees,,25/04/2024,22/05/2024,3623.96,,Denbighshire County Council
Finance & Business Devlopment,Museums,MonLife Directorate,Museums Chepstow,0,I&E,Fire Safety Equipment,,24/04/2024,22/05/2024,274.53,,Chubb Electronic Security Ltd
Public Protection,Public Protection,Social Care and Health,Public Health,0,I&E,Professional And Specialist Fees,,15/05/2024,22/05/2024,192.45,,Gradko International Ltd
Schools Total,School Group 7 � Pupil Capacity 501-1800,MCC Schools,Monmouth Comprehensive,0,I&E,Gas.,,16/04/2024,14/05/2024,9172.91,,TOTAL GAS & POWER LIMITED
Schools Total,School Group 2 � Pupil Capacity 144-314,MCC Schools,Durand Primary School,0,I&E,Gas.,,16/04/2024,14/05/2024,103.16,,TOTAL GAS & POWER LIMITED
"Leisure, Youth & Outdoor Adventure",Leisure Services,MonLife Directorate,Abergavenny Leisure Centre,0,I&E,Water Services-Metered.,,11/01/2024,14/05/2024,2397.35,,Welsh Water
Schools Total,School Group 7 � Pupil Capacity 501-1800,MCC Schools,Chepstow School,0,I&E,Water Services-Metered.,,06/01/2024,14/05/2024,4252.49,,Welsh Water
Schools Total,School Group 7 � Pupil Capacity 501-1800,MCC Schools,King Henry 3-19 School,0,I&E,Water Services-Metered.,,11/01/2024,14/05/2024,2377.3,,Welsh Water
"Leisure, Youth & Outdoor Adventure",Leisure Services,MonLife Directorate,Caldicot Leisure Centre,0,I&E,Water Services-Metered.,,09/01/2024,14/05/2024,1804.47,,Welsh Water
Schools Total,School Group 2 � Pupil Capacity 144-314,MCC Schools,Ysgol Gymraeg Y Fenni,0,I&E,Gas.,,16/04/2024,14/05/2024,1473.66,,TOTAL GAS & POWER LIMITED
Schools Total,School Group 2 � Pupil Capacity 144-314,MCC Schools,Cantref Primary School,0,I&E,Gas.,,16/04/2024,14/05/2024,2981.02,,TOTAL GAS & POWER LIMITED
"Placemaking, Highways & Flooding",Development Management & Building Control,Communities & Place,Development Management,0,I&E,Professional And Specialist Fees,,22/05/2024,03/06/2024,1500,,REDACTED PERSONAL DATA
Countryside & Culture,Tourism,MonLife Directorate,Tourism,0,I&E,Professional And Specialist Fees,,29/05/2024,03/06/2024,300,,MS-Group Ltd T/A Andco Studio
Schools Total,School Group 7 � Pupil Capacity 501-1800,MCC Schools,Chepstow School,0,I&E,Gas.,,16/04/2024,14/05/2024,50.9,,TOTAL GAS & POWER LIMITED
Adult Services,Direct Care Residential,Social Care and Health,Severn View Park,0,I&E,Electricity.,,02/04/2024,14/05/2024,4035.59,,EDF Energy
Adult Services,Direct Care Residential,Social Care and Health,Severn View Park,0,I&E,Electricity.,,02/04/2024,14/05/2024,58.12,,EDF Energy
Schools Total,School Group 2 � Pupil Capacity 144-314,MCC Schools,Our Lady & St Michael's (OLSM) RC Primary School (VA),0,I&E,Gas.,,16/04/2024,14/05/2024,265.72,,TOTAL GAS & POWER LIMITED
Schools Total,School Group 2 � Pupil Capacity 144-314,MCC Schools,Llantilio Pertholey CiW Primary School (VC),0,I&E,Alarm Systems,,15/01/2024,22/05/2024,918.43,,Chubb Electronic Security Ltd
Schools Total,Schools,MCC Schools,Pupil Referral Unit,0,I&E,Professional And Specialist Fees,,07/05/2024,22/05/2024,1050,,Beat Technique
Public Protection,Public Protection,Social Care and Health,Animal Health,0,I&E,Professional And Specialist Fees,,16/05/2024,22/05/2024,1848,,Metropole Hotel
"Commercial, Corporate & landlord Services",Asset Management,Resources,Shared Accomodation,0,I&E,Electricity.,,02/04/2024,14/05/2024,326.74,,EDF Energy
"Commercial, Corporate & landlord Services",Asset Management,Resources,Strategic Property Management,0,I&E,Electricity.,,15/03/2024,14/05/2024,103.75,,EDF Energy
Schools Total,School Group 2 � Pupil Capacity 144-314,MCC Schools,Thornwell Primary School,0,I&E,Licences,,01/05/2024,28/05/2024,195.19,,CEFM
Schools Total,SCHGRP3 � School Group 3 � Pupil Capacity 315-500,MCC Schools,Overmonnow Primary School,0,I&E,Licences,,23/05/2024,28/05/2024,400.95,,Nessy Learning Limited
Adult Services,Community Care Team,Social Care and Health,Chepstow Adult Team,0,I&E,Personal Care.,,17/05/2024,28/05/2024,2528,,Abicare Services Ltd
Schools Total,School Group 7 � Pupil Capacity 501-1800,MCC Schools,Monmouth Comprehensive,0,I&E,Book Purchases,,07/05/2024,14/05/2024,15.38,,Browns Books for Students
Schools Total,School Group 7 � Pupil Capacity 501-1800,MCC Schools,Monmouth Comprehensive,0,I&E,Book Purchases,,07/05/2024,14/05/2024,15.38,,Browns Books for Students
Neighbourhood Services,Highways,Communities & Place,Wonastow Road Pumping Station,0,I&E,Electricity.,,02/04/2024,14/05/2024,3164.45,,EDF Energy
Adult Services,Community Care Team,Social Care and Health,Chepstow Adult Team,0,I&E,Personal Care.,,08/05/2024,09/05/2024,268.8,,Helping Hands
Adult Services,Community Care Team,Social Care and Health,Chepstow Adult Team,0,I&E,Personal Care.,,08/05/2024,09/05/2024,1360.8,,Helping Hands
"Facilities, Fleet & Decarbonisation",De-Carbonisation,Communities & Place,Solar Farm,0,I&E,Electricity.,,08/05/2024,23/05/2024,-724.8,,EDF Energy
"Commercial, Corporate & landlord Services",Asset Management,Resources,Industrial Units,0,I&E,Electricity.,,09/05/2024,23/05/2024,20.03,,EDF Energy
Neighbourhood Services,Waste and Street Services,Communities & Place,Refuse & Cleansing Operations,0,I&E,Electricity.,,02/04/2024,14/05/2024,717.59,,EDF Energy
Schools Total,School Group 7 � Pupil Capacity 501-1800,MCC Schools,King Henry 3-19 School,0,I&E,Computer Consumables,,18/04/2024,02/05/2024,54.6,,AV Partsmaster Ltd
"Leisure, Youth & Outdoor Adventure",Sports Development,MonLife Directorate,Local Authority Partnership Agreement,0,I&E,Equipment Purchases,,25/04/2024,02/05/2024,40.72,,Origin Fitness Ltd
"Placemaking, Highways & Flooding",Highways Dev & Car Parks,Communities & Place,Structures,0,I&E,Software Annual,,23/04/2024,02/05/2024,1736,,W.D.M. Limited
Schools Total,School Group 2 � Pupil Capacity 144-314,MCC Schools,Gilwern Primary School,0,I&E,Professional And Specialist Fees,,16/04/2024,02/05/2024,720,,REDACTED PERSONAL DATA
Information Communication Technology,Technology & Organisational Design,Resources,Mobile Telephony,0,I&E,Software Annual,,20/04/2024,02/05/2024,480.05,,Hutchison 3G UK Limited
Neighbourhood Services,Highways,Communities & Place,Street Lighting,0,I&E,Electricity.,,28/04/2024,23/05/2024,37269.24,,EDF Energy
Neighbourhood Services,Highways,Communities & Place,Street Lighting,0,I&E,Electricity.,,28/04/2024,23/05/2024,122.21,,EDF Energy
Children Services,Children Services Teams,Social Care and Health,Family Support and Protection Team (Family Support Workers),0,I&E,IT Hardware,,17/05/2024,21/05/2024,89.34,,SRS Public
Finance & Business Devlopment,Contact Centre,MonLife Directorate,Contact Centre,0,I&E,IT Hardware,,16/05/2024,21/05/2024,210,,SRS Public
Finance & Business Devlopment,Contact Centre,MonLife Directorate,Contact Centre,0,I&E,IT Hardware,,16/05/2024,21/05/2024,3.24,,SRS Public
"Enterprise, Housing & Community Animation",General Fund Housing,Communities & Place,Lodgings Scheme,0,I&E,Electricity.,,03/04/2024,14/05/2024,242.93,,EDF Energy
"Facilities, Fleet & Decarbonisation",Home to School Transport Dept,Communities & Place,Home To School Transport,0,I&E,Electricity.,,03/04/2024,14/05/2024,237.23,,EDF Energy
Adult Services,Direct Care Residential,Social Care and Health,Severn View Residential,0,I&E,Electricity.,,02/04/2024,14/05/2024,2752.68,,EDF Energy
"Commercial, Corporate & landlord Services",Asset Management,Resources,Industrial Units,0,I&E,Electricity.,,10/04/2024,14/05/2024,0.59,,EDF Energy
Children Services,Children Services Teams,Social Care and Health,Youth Offending Team,0,I&E,Electricity.,,22/05/2024,03/06/2024,0.32,,Johnsey Estates (1990) Ltd
Schools Total,School Group 2 � Pupil Capacity 144-314,MCC Schools,Shirenewton Primary School,0,I&E,Computer Consumables,,10/05/2024,14/05/2024,59.44,,Uk Laser Suppliers
Schools Total,School Group 2 � Pupil Capacity 144-314,MCC Schools,Shirenewton Primary School,0,I&E,Computer Consumables,,10/05/2024,14/05/2024,48.22,,Uk Laser Suppliers
Capital Division,Capital Dept,Capital,Capital Programme,0,I&E,Professional And Specialist Fees,,03/05/2024,15/05/2024,11471.93,,Western Power Distribution
Neighbourhood Services,Highways,Communities & Place,Potholing,0,I&E,Materials & Consumables.,,28/03/2024,14/05/2024,253.16,,Tarmac Ltd
"Commercial, Corporate & landlord Services",Property Services & Facilities Management,Resources,Programmed Maintenance,0,I&E,Building Improvements / Maintenance,,03/05/2024,09/05/2024,87.45,,REDACTED PERSONAL DATA
"Commercial, Corporate & landlord Services",Property Services & Facilities Management,Resources,Programmed Maintenance,0,I&E,Building Improvements / Maintenance,,03/05/2024,09/05/2024,87.45,,REDACTED PERSONAL DATA
Neighbourhood Services,Waste and Street Services,Communities & Place,Refuse & Cleansing Operations,0,I&E,Materials & Consumables.,,01/05/2024,09/05/2024,48.58,,Robert Price Ltd
Neighbourhood Services,Highways,Communities & Place,Pumping stations,0,I&E,Materials & Consumables.,,01/05/2024,08/05/2024,570,,KPR Engineering (M&E) Ltd
Neighbourhood Services,Waste and Street Services,Communities & Place,Refuse & Cleansing Operations,0,I&E,Materials & Consumables.,,08/05/2024,16/05/2024,-10.63,,Robert Price Ltd
Neighbourhood Services,Highways,Communities & Place,Internal others,0,I&E,Materials & Consumables.,,21/02/2024,15/05/2024,296.4,,Dragon Asphalt Ltd
Neighbourhood Services,Highways,Communities & Place,Internal others,0,I&E,Materials & Consumables.,,11/01/2024,15/05/2024,495.9,,Dragon Asphalt Ltd
Neighbourhood Services,Highways,Communities & Place,Drainage works,0,I&E,Materials & Consumables.,,13/03/2024,10/05/2024,640.36,,Hanson Quarry Products Europe Ltd
Adult Services,Community Care Team,Social Care and Health,Monmouth Adult Team,0,I&E,Nursing.,,25/04/2024,07/05/2024,3656,,Gibraltar Care Village Limited t/a PSP Healthcare Limited
Adult Services,Community Care Team,Social Care and Health,Chepstow Adult Team,0,I&E,Residential.,,30/04/2024,07/05/2024,3880,,Adriana Ltd
Adult Services,Community Care Team,Social Care and Health,Chepstow Adult Team,0,I&E,Residential.,,01/05/2024,07/05/2024,3476,,EVH Ltd t/a Castle Court Residential Home
Adult Services,Community Care Team,Social Care and Health,Chepstow Adult Team,0,I&E,Residential.,,01/05/2024,07/05/2024,3476,,EVH Ltd t/a Castle Court Residential Home
Adult Services,Community Care Team,Social Care and Health,Monmouth Adult Team,0,I&E,Nursing.,,30/04/2024,07/05/2024,3656,,Adriana Ltd
Adult Services,Community Care Team,Social Care and Health,Mental Health Care Team,0,I&E,Residential.,,01/04/2024,07/05/2024,3517.43,,Dormy Care - Foxhunters
Adult Services,Community Care Team,Social Care and Health,Abergavenny Adult Team,0,I&E,Nursing.,,25/04/2024,07/05/2024,3656,,Avenue Road Nursing Home
Adult Services,Community Care Team,Social Care and Health,Mental Health Care Team,0,I&E,Residential.,,01/05/2024,07/05/2024,3476,,EVH Ltd t/a Castle Court Residential Home
Adult Services,Community Care Team,Social Care and Health,Mental Health Care Team,0,I&E,Residential.,,28/04/2024,07/05/2024,3476,,Penpergwm House Ltd
Adult Services,Community Care Team,Social Care and Health,Monmouth Adult Team,0,I&E,Residential.,,28/04/2024,07/05/2024,3476,,Penpergwm House Ltd
Adult Services,Community Care Team,Social Care and Health,Monmouth Adult Team,0,I&E,Residential.,,28/04/2024,07/05/2024,3476,,Parade Residential Home
Adult Services,Community Care Team,Social Care and Health,Monmouth Adult Team,0,I&E,Nursing.,,25/04/2024,07/05/2024,3656,,Gibraltar Care Village Limited t/a PSP Healthcare Limited
Adult Services,Community Care Team,Social Care and Health,Monmouth Adult Team,0,I&E,FNC Social Care Nursing Tasks,,25/04/2024,07/05/2024,34.48,,Gibraltar Care Village Limited t/a PSP Healthcare Limited
Adult Services,Community Care Team,Social Care and Health,Monmouth Adult Team,0,I&E,FNC Social Care Nursing Tasks,,25/04/2024,07/05/2024,34.48,,Gibraltar Care Village Limited t/a PSP Healthcare Limited
Neighbourhood Services,Highways,Communities & Place,Internal others,0,I&E,Materials & Consumables.,,08/03/2024,15/05/2024,541.5,,Dragon Asphalt Ltd
Adult Services,Community Care Team,Social Care and Health,Monmouth Adult Team,0,I&E,FNC Social Care Nursing Tasks,,25/04/2024,07/05/2024,17.24,,Gibraltar Care Village Limited t/a PSP Healthcare Limited
Adult Services,Community Care Team,Social Care and Health,Monmouth Adult Team,0,I&E,FNC Social Care Nursing Tasks,,25/04/2024,07/05/2024,18.47,,Gibraltar Care Village Limited t/a PSP Healthcare Limited
Adult Services,Community Care Team,Social Care and Health,Monmouth Adult Team,0,I&E,FNC Social Care Nursing Tasks,,25/04/2024,07/05/2024,34.48,,Gibraltar Care Village Limited t/a PSP Healthcare Limited
Adult Services,Community Care Team,Social Care and Health,Monmouth Adult Team,0,I&E,Nursing.,,25/04/2024,07/05/2024,1958.57,,Gibraltar Care Village Limited t/a PSP Healthcare Limited
Adult Services,Community Care Team,Social Care and Health,Monmouth Adult Team,0,I&E,Nursing.,,25/04/2024,07/05/2024,3880,,Gibraltar Care Village Limited t/a PSP Healthcare Limited
Adult Services,Community Care Team,Social Care and Health,Chepstow Adult Team,0,I&E,Nursing.,,25/04/2024,07/05/2024,3788,,Gibraltar Care Village Limited t/a PSP Healthcare Limited
Neighbourhood Services,Waste and Street Services,Communities & Place,Refuse & Cleansing Operations,0,I&E,Materials & Consumables.,,30/04/2024,02/05/2024,10,,South Wales Locksmiths
Schools Total,School Group 2 � Pupil Capacity 144-314,MCC Schools,Goytre Fawr Primary School,0,I&E,Publications,,29/04/2024,08/05/2024,17.1,,Hope Education Ltd
Children Services,Children Services Teams,Social Care and Health,Placement & Support Team,0,I&E,Stationery,,09/04/2024,02/05/2024,63,,Zenith Print and Packaging Ltd
"Policy, Scrutiny & Customer Service",Customer Relations,Chief Executive's Unit,Complaints,0,I&E,Publications,,23/03/2024,09/05/2024,378.9,,Lexon Creative & Innovative Print
Schools Total,School Group 2 � Pupil Capacity 144-314,MCC Schools,Usk CiW Primary School (VC),0,I&E,IT Hardware,,26/04/2024,09/05/2024,90,,Microsmith Electronics Ltd
"Enterprise, Housing & Community Animation",General Fund Housing,Communities & Place,Homelessness,0,I&E,Removal Costs,,26/04/2024,22/05/2024,75,,Highmore Facilities Ltd
Finance & Business Devlopment,Community Hubs,MonLife Directorate,Strategic Management,0,I&E,IT Software,,30/04/2024,08/05/2024,54.12,,Bibliotheca Ltd
Capital Division,Capital Dept,Capital,Capital Programme,0,I&E,Publications,,02/05/2024,08/05/2024,37,,Zenith Print and Packaging Ltd
"Enterprise, Housing & Community Animation",Business Growth & Enterprise,Communities & Place,CELT Shared Prosperity Fund - Adult,0,I&E,Publications,,02/05/2024,08/05/2024,25,,Zenith Print and Packaging Ltd
"Commercial, Corporate & landlord Services",Property Services & Facilities Management,Resources,Central Accommodation,0,I&E,Electricity.,,10/05/2024,23/05/2024,919.31,,EDF Energy
"Enterprise, Housing & Community Animation",General Fund Housing,Communities & Place,Lodgings Scheme,0,I&E,Electricity.,,22/03/2024,23/05/2024,63.22,,British Gas Business
"Leisure, Youth & Outdoor Adventure",Leisure Services,MonLife Directorate,Abergavenny Leisure Centre,0,I&E,Electricity.,,01/05/2024,23/05/2024,33.12,,EDF Energy
Public Protection,Public Protection,Social Care and Health,Licensing,0,I&E,Equipment Purchases,,08/05/2024,21/05/2024,180.6,,ID Management Systems
"Enterprise, Housing & Community Animation",Business Growth & Enterprise,Communities & Place,Multiply SPF,0,I&E,Equipment Purchases,,12/05/2024,15/05/2024,22.4,,Amazon Payments UK Limited
Finance & Business Devlopment,Museums,MonLife Directorate,Shirehall,0,I&E,Electricity.,,01/05/2024,23/05/2024,980.51,,EDF Energy
Finance & Business Devlopment,Museums,MonLife Directorate,Shirehall,0,I&E,Electricity.,,01/05/2024,23/05/2024,3.17,,EDF Energy
"Commercial, Corporate & landlord Services",Asset Management,Resources,Industrial Units,0,I&E,Electricity.,,09/05/2024,23/05/2024,-0.43,,EDF Energy
"Commercial, Corporate & landlord Services",Asset Management,Resources,Industrial Units,0,I&E,Electricity.,,10/04/2024,14/05/2024,32.92,,EDF Energy
Countryside & Culture,Countryside,MonLife Directorate,Countryside Access,0,I&E,Electricity.,,11/03/2024,14/05/2024,14.3,,EDF Energy
"Facilities, Fleet & Decarbonisation",Home to School Transport Dept,Communities & Place,Home To School Transport,0,I&E,Electricity.,,02/04/2024,14/05/2024,1295.31,,EDF Energy
"Facilities, Fleet & Decarbonisation",Home to School Transport Dept,Communities & Place,Home To School Transport,0,I&E,Electricity.,,02/04/2024,14/05/2024,2.15,,EDF Energy
Finance & Business Devlopment,Community Education,MonLife Directorate,Llanelly Hill Community Education,0,I&E,Electricity.,,02/04/2024,14/05/2024,92.25,,EDF Energy
"Commercial, Corporate & landlord Services",Asset Management,Resources,Shared Accomodation,0,I&E,Electricity.,,13/03/2024,14/05/2024,1759.2,,EDF Energy
"Commercial, Corporate & landlord Services",Asset Management,Resources,Shared Accomodation,0,I&E,Electricity.,,13/03/2024,14/05/2024,41.32,,EDF Energy
Finance & Business Devlopment,Museums,MonLife Directorate,Museums Monmouth,0,I&E,Electricity.,,02/04/2024,14/05/2024,426.69,,EDF Energy
Schools Total,School Group 2 � Pupil Capacity 144-314,MCC Schools,Our Lady & St Michael's (OLSM) RC Primary School (VA),0,I&E,Licences,,25/10/2023,21/05/2024,368,,TES Global Ltd
Adult Services,Community Care Team,Social Care and Health,Chepstow Adult Team,0,I&E,Personal Care.,,08/05/2024,15/05/2024,201.6,,Helping Hands
Adult Services,Community Care Team,Social Care and Health,Chepstow Adult Team,0,I&E,Personal Care.,,08/05/2024,15/05/2024,627.2,,Helping Hands
Finance & Business Devlopment,Community Hubs,MonLife Directorate,Prison Libraries,0,I&E,Book Purchases,,20/05/2024,23/05/2024,37.78,,Askews & Holts Library Services Ltd
"Commercial, Corporate & landlord Services",Property Services & Facilities Management,Resources,Facilities,0,I&E,Equipment Purchases,,02/04/2024,23/05/2024,300,,J Franklin And Sons
"Commercial, Corporate & landlord Services",Property Services & Facilities Management,Resources,Facilities,0,I&E,Equipment Purchases,,02/04/2024,23/05/2024,300,,J Franklin And Sons
"Commercial, Corporate & landlord Services",Property Services & Facilities Management,Resources,Facilities,0,I&E,Equipment Purchases,,20/05/2024,23/05/2024,250,,J Franklin And Sons
Schools Total,Schools,MCC Schools,Pupil Referral Unit,0,I&E,Agency Staff,,15/05/2024,23/05/2024,857,,Back Office Support Services Ltd (Education Supply Pool)
Schools Total,School Group 2 � Pupil Capacity 144-314,MCC Schools,Shirenewton Primary School,0,I&E,Agency Staff,,07/05/2024,23/05/2024,3063.51,,Teaching 4 Wales Ltd
Schools Total,School Group 7 � Pupil Capacity 501-1800,MCC Schools,Caldicot School,0,I&E,Repairs & Maintenance.,,08/05/2024,15/05/2024,120.96,,Amazon Payments UK Limited
"Facilities, Fleet & Decarbonisation",Home to School Transport Dept,Communities & Place,Home To School Transport,0,I&E,Vechicles Repairs and Maintenance,,17/05/2024,21/05/2024,265,,Bulwark Bus & Coach Eng. Ltd
"Facilities, Fleet & Decarbonisation",Home to School Transport Dept,Communities & Place,Home To School Transport,0,I&E,Vechicles Repairs and Maintenance,,17/05/2024,21/05/2024,697.8,,Bulwark Bus & Coach Eng. Ltd
Schools Total,SCHGRP3 � School Group 3 � Pupil Capacity 315-500,MCC Schools,Undy Primary School,0,I&E,Agency Staff,,17/04/2024,23/05/2024,3725.51,,Teaching 4 Wales Ltd
Schools Total,School Group 2 � Pupil Capacity 144-314,MCC Schools,Llanfoist Fawr Primary School,0,I&E,Agency Staff,,19/05/2024,30/05/2024,-7.18,,New Directions Education Ltd
Schools Total,School Group 2 � Pupil Capacity 144-314,MCC Schools,Llanfoist Fawr Primary School,0,I&E,Agency Staff,,19/05/2024,30/05/2024,-7.18,,New Directions Education Ltd
Schools Total,School Group 2 � Pupil Capacity 144-314,MCC Schools,Llanfoist Fawr Primary School,0,I&E,Agency Staff,,19/05/2024,30/05/2024,-14.36,,New Directions Education Ltd
Schools Total,School Group 2 � Pupil Capacity 144-314,MCC Schools,Llanfoist Fawr Primary School,0,I&E,Agency Staff,,19/05/2024,30/05/2024,-7.18,,New Directions Education Ltd
Control Division,Control Dept,Control,Payroll Monthly 2 (Schools),0,BS,Resource Link Payments,,02/05/2024,03/05/2024,374.85,,Blaenau Gwent County Borough Council
Schools Total,School Group 1 � Pupil Capacity 1-143,MCC Schools,Llanvihangel Crucorney Primary School,0,I&E,Agency Staff,,21/04/2024,08/05/2024,130.76,,New Directions Education Ltd
"Facilities, Fleet & Decarbonisation",Transport Department,Communities & Place,Transport,0,I&E,Spare Parts,,01/05/2024,08/05/2024,112,,Mon & Border Motor Factors Ltd
"Leisure, Youth & Outdoor Adventure",Leisure Services,MonLife Directorate,Abergavenny Fitness,0,I&E,Repairs & Maintenance.,,19/03/2024,10/05/2024,2949.41,,Technogym UK Ltd
Schools Total,SCHGRP3 � School Group 3 � Pupil Capacity 315-500,MCC Schools,Magor CiW Primary School (VA),0,I&E,Agency Staff,,23/04/2024,22/05/2024,1849.65,,Teaching 4 Wales Ltd
Schools Total,SCHGRP3 � School Group 3 � Pupil Capacity 315-500,MCC Schools,Magor CiW Primary School (VA),0,I&E,Agency Staff,,17/04/2024,22/05/2024,2071.88,,Teaching 4 Wales Ltd
"Facilities, Fleet & Decarbonisation",Transport Department,Communities & Place,Transport,0,I&E,Vehicle Collision Damage Costs,,03/05/2024,09/05/2024,364.06,,Glenside Commercials Ltd
"Facilities, Fleet & Decarbonisation",Transport Department,Communities & Place,Transport,0,I&E,Spare Parts,,04/05/2024,09/05/2024,338,,Mon & Border Motor Factors Ltd
Schools Total,School Group 7 � Pupil Capacity 501-1800,MCC Schools,King Henry 3-19 School,0,I&E,Agency Staff,,19/05/2024,30/05/2024,217,,New Directions Education Ltd
Schools Total,School Group 7 � Pupil Capacity 501-1800,MCC Schools,King Henry 3-19 School,0,I&E,Agency Staff,,19/05/2024,30/05/2024,128.55,,New Directions Education Ltd
Schools Total,School Group 7 � Pupil Capacity 501-1800,MCC Schools,King Henry 3-19 School,0,I&E,Agency Staff,,19/05/2024,30/05/2024,217,,New Directions Education Ltd
Schools Total,School Group 2 � Pupil Capacity 144-314,MCC Schools,Dewstow Primary School,0,I&E,Agency Staff,,19/05/2024,30/05/2024,217,,New Directions Education Ltd
Schools Total,School Group 2 � Pupil Capacity 144-314,MCC Schools,Dewstow Primary School,0,I&E,Agency Staff,,19/05/2024,30/05/2024,217,,New Directions Education Ltd
Schools Total,School Group 2 � Pupil Capacity 144-314,MCC Schools,Dewstow Primary School,0,I&E,Agency Staff,,19/05/2024,30/05/2024,217,,New Directions Education Ltd
Schools Total,School Group 2 � Pupil Capacity 144-314,MCC Schools,Dewstow Primary School,0,I&E,Agency Staff,,19/05/2024,30/05/2024,217,,New Directions Education Ltd
Schools Total,School Group 2 � Pupil Capacity 144-314,MCC Schools,Dewstow Primary School,0,I&E,Agency Staff,,19/05/2024,30/05/2024,217,,New Directions Education Ltd
Schools Total,School Group 2 � Pupil Capacity 144-314,MCC Schools,Dewstow Primary School,0,I&E,Agency Staff,,19/05/2024,30/05/2024,217,,New Directions Education Ltd
Schools Total,School Group 2 � Pupil Capacity 144-314,MCC Schools,Dewstow Primary School,0,I&E,Agency Staff,,19/05/2024,30/05/2024,-16.97,,New Directions Education Ltd
Schools Total,School Group 1 � Pupil Capacity 1-143,MCC Schools,Llanvihangel Crucorney Primary School,0,I&E,Agency Staff,,12/05/2024,21/05/2024,83.77,,New Directions Education Ltd
Schools Total,School Group 1 � Pupil Capacity 1-143,MCC Schools,Llanvihangel Crucorney Primary School,0,I&E,Agency Staff,,12/05/2024,21/05/2024,83.77,,New Directions Education Ltd
"Facilities, Fleet & Decarbonisation",Home to School Transport Dept,Communities & Place,Home To School Transport,0,I&E,Vechicles Repairs and Maintenance,,16/05/2024,21/05/2024,195,,Bulwark Bus & Coach Eng. Ltd
Schools Total,School Group 2 � Pupil Capacity 144-314,MCC Schools,Goytre Fawr Primary School,0,I&E,Agency Staff,,19/05/2024,30/05/2024,217,,New Directions Education Ltd
Schools Total,School Group 2 � Pupil Capacity 144-314,MCC Schools,Llanfoist Fawr Primary School,0,I&E,Agency Staff,,19/05/2024,30/05/2024,128.72,,New Directions Education Ltd
Schools Total,School Group 2 � Pupil Capacity 144-314,MCC Schools,Llanfoist Fawr Primary School,0,I&E,Agency Staff,,19/05/2024,30/05/2024,128.72,,New Directions Education Ltd
Neighbourhood Services,Highways,Communities & Place,Potholing,0,I&E,Materials & Consumables.,,14/03/2024,15/05/2024,418.78,,Tarmac Ltd
Neighbourhood Services,Waste and Street Services,Communities & Place,Refuse & Cleansing Operations,0,I&E,Materials & Consumables.,,30/04/2024,02/05/2024,15,,South Wales Locksmiths
Neighbourhood Services,Waste and Street Services,Communities & Place,Refuse & Cleansing Operations,0,I&E,Materials & Consumables.,,30/04/2024,02/05/2024,70,,South Wales Locksmiths
"Facilities, Fleet & Decarbonisation",De-Carbonisation,Communities & Place,Sustainability,0,I&E,Building Improvements / Maintenance,,24/04/2024,22/05/2024,9957.14,,EFS Systems (UK) Ltd
"Commercial, Corporate & landlord Services",Property Services & Facilities Management,Resources,Programmed Maintenance,0,I&E,Building Improvements / Maintenance,,03/05/2024,23/05/2024,335.22,,REDACTED PERSONAL DATA
Neighbourhood Services,Waste and Street Services,Communities & Place,Refuse & Cleansing Operations,0,I&E,Materials & Consumables.,,08/05/2024,22/05/2024,31.28,,Robert Price Ltd
"Enterprise, Housing & Community Animation",General Fund Housing,Communities & Place,Lodgings Scheme,0,I&E,Building Improvements / Maintenance,,26/04/2024,22/05/2024,600,,Highmore Facilities Ltd
"Enterprise, Housing & Community Animation",General Fund Housing,Communities & Place,Lodgings Scheme,0,I&E,Building Improvements / Maintenance,,26/04/2024,22/05/2024,565,,Highmore Facilities Ltd
"Enterprise, Housing & Community Animation",General Fund Housing,Communities & Place,Lodgings Scheme,0,I&E,Building Improvements / Maintenance,,26/04/2024,22/05/2024,250,,Highmore Facilities Ltd
"Enterprise, Housing & Community Animation",General Fund Housing,Communities & Place,Lodgings Scheme,0,I&E,Building Improvements / Maintenance,,26/04/2024,22/05/2024,750,,Highmore Facilities Ltd
Neighbourhood Services,Waste and Street Services,Communities & Place,Fitting Shop Grounds,0,I&E,Materials & Consumables.,,10/05/2024,14/05/2024,407.15,,Acorn Industrial Services
Neighbourhood Services,Waste and Street Services,Communities & Place,Refuse & Cleansing Operations,0,I&E,Materials & Consumables.,,24/04/2024,14/05/2024,292.77,,Robert Price Ltd
Neighbourhood Services,Highways,Communities & Place,Potholing,0,I&E,Materials & Consumables.,,15/02/2024,14/05/2024,345.95,,Tarmac Ltd
Neighbourhood Services,Highways,Communities & Place,Potholing,0,I&E,Materials & Consumables.,,15/02/2024,14/05/2024,249.35,,Tarmac Ltd
Neighbourhood Services,Highways,Communities & Place,Potholing,0,I&E,Materials & Consumables.,,19/02/2024,14/05/2024,238.12,,Tarmac Ltd
Neighbourhood Services,Highways,Communities & Place,Potholing,0,I&E,Materials & Consumables.,,19/02/2024,14/05/2024,238.12,,Tarmac Ltd
Neighbourhood Services,Highways,Communities & Place,Internal others,0,I&E,Materials & Consumables.,,15/02/2024,14/05/2024,224.64,,Tarmac Ltd
"Enterprise, Housing & Community Animation",General Fund Housing,Communities & Place,Homelessness,0,I&E,Building Improvements / Maintenance,,26/04/2024,22/05/2024,610,,Highmore Facilities Ltd
"Enterprise, Housing & Community Animation",General Fund Housing,Communities & Place,Melin PSL (Private Sector Leasing),0,I&E,Building Improvements / Maintenance,,26/04/2024,22/05/2024,645,,Highmore Facilities Ltd
"Enterprise, Housing & Community Animation",General Fund Housing,Communities & Place,Melin PSL (Private Sector Leasing),0,I&E,Building Improvements / Maintenance,,26/04/2024,22/05/2024,835,,Highmore Facilities Ltd
"Enterprise, Housing & Community Animation",General Fund Housing,Communities & Place,Melin PSL (Private Sector Leasing),0,I&E,Building Improvements / Maintenance,,26/04/2024,22/05/2024,1090,,Highmore Facilities Ltd
Adult Services,Community Care Team,Social Care and Health,Mental Health Care Team,0,I&E,Residential.,,17/04/2024,03/05/2024,975.38,,ORCHARD HOUSE BARRY
Adult Services,Community Care Team,Social Care and Health,Mental Health Care Team,0,I&E,Residential.,,17/04/2024,03/05/2024,975.38,,ORCHARD HOUSE BARRY
"Enterprise, Housing & Community Animation",General Fund Housing,Communities & Place,Melin PSL (Private Sector Leasing),0,I&E,Building Improvements / Maintenance,,26/04/2024,22/05/2024,150,,Highmore Facilities Ltd
Adult Services,Community Care Team,Social Care and Health,Abergavenny Adult Team,0,I&E,Nursing.,,25/04/2024,07/05/2024,3656,,Avenue Road Nursing Home
Adult Services,Community Care Team,Social Care and Health,Abergavenny Adult Team,0,I&E,Nursing.,,28/04/2024,07/05/2024,3656,,Glaslyn Retirement Home Ltd
Adult Services,Community Care Team,Social Care and Health,Monmouth Adult Team,0,I&E,Nursing.,,25/04/2024,07/05/2024,3656,,Gibraltar Care Village Limited t/a PSP Healthcare Limited
Adult Services,Community Care Team,Social Care and Health,Mental Health Care Team,0,I&E,Nursing.,,28/04/2024,07/05/2024,3788,,Glaslyn Retirement Home Ltd
Adult Services,Community Care Team,Social Care and Health,Abergavenny Adult Team,0,I&E,FNC Social Care Nursing Tasks,,25/04/2024,07/05/2024,34.48,,Avenue Road Nursing Home
Adult Services,Community Care Team,Social Care and Health,Abergavenny Adult Team,0,I&E,FNC Social Care Nursing Tasks,,28/04/2024,07/05/2024,34.48,,Glaslyn Retirement Home Ltd
Adult Services,Community Care Team,Social Care and Health,Monmouth Adult Team,0,I&E,FNC Social Care Nursing Tasks,,25/04/2024,07/05/2024,34.48,,Gibraltar Care Village Limited t/a PSP Healthcare Limited
Adult Services,Community Care Team,Social Care and Health,Mental Health Care Team,0,I&E,FNC Social Care Nursing Tasks,,28/04/2024,07/05/2024,34.48,,Glaslyn Retirement Home Ltd
Schools Total,School Group 1 � Pupil Capacity 1-143,MCC Schools,Llanvihangel Crucorney Primary School,0,I&E,Materials & Consumables.,,06/05/2024,22/05/2024,9.96,,Amazon Payments UK Limited
Schools Total,School Group 7 � Pupil Capacity 501-1800,MCC Schools,Caldicot School,0,I&E,Materials & Consumables.,,03/05/2024,08/05/2024,42.6,,WF Education Group Ltd T/A Timstar
Schools Total,School Group 7 � Pupil Capacity 501-1800,MCC Schools,Caldicot School,0,I&E,Materials & Consumables.,,03/05/2024,08/05/2024,13.9,,WF Education Group Ltd T/A Timstar
Schools Total,School Group 7 � Pupil Capacity 501-1800,MCC Schools,Caldicot School,0,I&E,Materials & Consumables.,,03/05/2024,08/05/2024,64,,WF Education Group Ltd T/A Timstar
Schools Total,School Group 7 � Pupil Capacity 501-1800,MCC Schools,Caldicot School,0,I&E,Materials & Consumables.,,03/05/2024,08/05/2024,38.8,,WF Education Group Ltd T/A Timstar
Schools Total,School Group 7 � Pupil Capacity 501-1800,MCC Schools,Caldicot School,0,I&E,Materials & Consumables.,,03/05/2024,08/05/2024,20.7,,WF Education Group Ltd T/A Timstar
Schools Total,School Group 7 � Pupil Capacity 501-1800,MCC Schools,Caldicot School,0,I&E,Materials & Consumables.,,03/05/2024,08/05/2024,40.6,,WF Education Group Ltd T/A Timstar
"Facilities, Fleet & Decarbonisation",Catering Services,Communities & Place,Schools Catering,0,I&E,Materials & Consumables.,,26/04/2024,15/05/2024,2017.17,,Dole
Schools Total,School Group 7 � Pupil Capacity 501-1800,MCC Schools,Caldicot School,0,I&E,Materials & Consumables.,,16/05/2024,22/05/2024,48.67,,K & M (Wholesale Supp) Ltd
Schools Total,School Group 2 � Pupil Capacity 144-314,MCC Schools,Llantilio Pertholey CiW Primary School (VC),0,I&E,Materials & Consumables.,,16/05/2024,28/05/2024,52.02,,Amazon Payments UK Limited
Schools Total,School Group 2 � Pupil Capacity 144-314,MCC Schools,Llanfoist Fawr Primary School,0,I&E,"Course, Conference And Seminar Fees",,01/05/2024,20/05/2024,250,,International Links
Schools Total,School Group 7 � Pupil Capacity 501-1800,MCC Schools,Caldicot School,0,I&E,Materials & Consumables.,,13/05/2024,15/05/2024,328,,Binding Stores Ltd
Schools Total,School Group 7 � Pupil Capacity 501-1800,MCC Schools,Caldicot School,0,I&E,Materials & Consumables.,,13/05/2024,15/05/2024,14.95,,Binding Stores Ltd
Schools Total,School Group 2 � Pupil Capacity 144-314,MCC Schools,Goytre Fawr Primary School,0,I&E,Materials & Consumables.,,18/05/2024,28/05/2024,751,,Urdd Gobaith Cymru
Schools Total,School Group 1 � Pupil Capacity 1-143,MCC Schools,Llanvihangel Crucorney Primary School,0,I&E,Materials & Consumables.,,02/05/2024,14/05/2024,-7.26,,Hope Education Ltd
"Facilities, Fleet & Decarbonisation",Catering Services,Communities & Place,Schools Catering,0,I&E,Materials & Consumables.,,30/03/2024,03/05/2024,15.6,,REDACTED PERSONAL DATA
Schools Total,School Group 7 � Pupil Capacity 501-1800,MCC Schools,Caldicot School,0,I&E,Materials & Consumables.,,16/05/2024,28/05/2024,109.96,,Amazon Payments UK Limited
"Facilities, Fleet & Decarbonisation",Transport Department,Communities & Place,Transport,0,I&E,Materials & Consumables.,,23/05/2024,24/05/2024,66.74,,Mon & Border Motor Factors Ltd
"Facilities, Fleet & Decarbonisation",Transport Department,Communities & Place,Transport,0,I&E,Materials & Consumables.,,23/05/2024,24/05/2024,275.06,,Mon & Border Motor Factors Ltd
Schools Total,School Group 7 � Pupil Capacity 501-1800,MCC Schools,Caldicot School,0,I&E,Materials & Consumables.,,24/04/2024,08/05/2024,5.18,,Amazon Payments UK Limited
Schools Total,School Group 7 � Pupil Capacity 501-1800,MCC Schools,Caldicot School,0,I&E,Materials & Consumables.,,24/04/2024,08/05/2024,6.49,,Amazon Payments UK Limited
"Facilities, Fleet & Decarbonisation",Transport Department,Communities & Place,Transport,0,I&E,Materials & Consumables.,,30/04/2024,08/05/2024,35.45,,Fasteners & Engineering Suppliers Ltd
Schools Total,School Group 2 � Pupil Capacity 144-314,MCC Schools,Goytre Fawr Primary School,0,I&E,Materials & Consumables.,,29/04/2024,08/05/2024,52.12,,Hope Education Ltd
"Facilities, Fleet & Decarbonisation",Transport Department,Communities & Place,Transport,0,I&E,Materials & Consumables.,,02/05/2024,08/05/2024,67.2,,Mon & Border Motor Factors Ltd
Schools Total,School Group 7 � Pupil Capacity 501-1800,MCC Schools,Caldicot School,0,I&E,Materials & Consumables.,,24/04/2024,08/05/2024,12.48,,Amazon Payments UK Limited
Schools Total,School Group 2 � Pupil Capacity 144-314,MCC Schools,Ysgol Gymraeg Y Fenni,0,I&E,"Course, Conference And Seminar Fees",,25/04/2024,08/05/2024,65,,Concept Training Ltd
Schools Total,School Group 2 � Pupil Capacity 144-314,MCC Schools,Llantilio Pertholey CiW Primary School (VC),0,I&E,Materials & Consumables.,,27/04/2024,08/05/2024,72.6,,Amazon Payments UK Limited
"Facilities, Fleet & Decarbonisation",Transport Department,Communities & Place,Transport,0,I&E,Materials & Consumables.,,29/04/2024,08/05/2024,59.98,,Fast Fluid Power Ltd
"Facilities, Fleet & Decarbonisation",Transport Department,Communities & Place,Transport,0,I&E,Materials & Consumables.,,29/04/2024,08/05/2024,71.85,,Fast Fluid Power Ltd
Schools Total,School Group 2 � Pupil Capacity 144-314,MCC Schools,Goytre Fawr Primary School,0,I&E,Materials & Consumables.,,30/04/2024,08/05/2024,-49.99,,Amazon Payments UK Limited
"Facilities, Fleet & Decarbonisation",Transport Department,Communities & Place,Transport,0,I&E,Materials & Consumables.,,01/05/2024,08/05/2024,191.94,,Mon & Border Motor Factors Ltd
"Facilities, Fleet & Decarbonisation",Transport Department,Communities & Place,Transport,0,I&E,Materials & Consumables.,,23/04/2024,08/05/2024,80.49,,Fast Fluid Power Ltd
"Facilities, Fleet & Decarbonisation",Transport Department,Communities & Place,Transport,0,I&E,Materials & Consumables.,,01/05/2024,08/05/2024,42.64,,Mon & Border Motor Factors Ltd
"Facilities, Fleet & Decarbonisation",Transport Department,Communities & Place,Transport,0,I&E,Materials & Consumables.,,01/05/2024,08/05/2024,377.64,,Mon & Border Motor Factors Ltd
"Commercial, Corporate & landlord Services",Property Services & Facilities Management,Resources,Facilities,0,I&E,Equipment Purchases,,20/05/2024,23/05/2024,150,,J Franklin And Sons
"Enterprise, Housing & Community Animation",General Fund Housing,Communities & Place,Lodgings Scheme,0,I&E,Electricity.,,26/04/2024,23/05/2024,45,,British Gas Business
"Commercial, Corporate & landlord Services",Asset Management,Resources,Industrial Units,0,I&E,Electricity.,,09/05/2024,23/05/2024,-47.97,,EDF Energy
Schools Total,School Group 2 � Pupil Capacity 144-314,MCC Schools,Gilwern Primary School,0,I&E,Professional And Specialist Fees,,02/03/2024,15/05/2024,1103.72,,F R Ball Insurance Ltd
Adult Services,Community Care Team,Social Care and Health,Chepstow Adult Team,0,I&E,Personal Care.,,01/05/2024,07/05/2024,474.62,,Radis Community Care
Adult Services,Community Care Team,Social Care and Health,Chepstow Adult Team,0,I&E,Personal Care.,,01/05/2024,07/05/2024,119.92,,Radis Community Care
Adult Services,Community Care Team,Social Care and Health,Chepstow Adult Team,0,I&E,Personal Care.,,01/05/2024,07/05/2024,1094.25,,Radis Community Care
Adult Services,Community Care Team,Social Care and Health,Chepstow Adult Team,0,I&E,Personal Care.,,08/05/2024,15/05/2024,3763.2,,Helping Hands
Adult Services,Community Care Team,Social Care and Health,Chepstow Adult Team,0,I&E,Personal Care.,,08/05/2024,15/05/2024,84,,Helping Hands
Adult Services,Community Care Team,Social Care and Health,Chepstow Adult Team,0,I&E,Personal Care.,,08/05/2024,15/05/2024,112,,Helping Hands
Adult Services,Community Care Team,Social Care and Health,Chepstow Adult Team,0,I&E,Personal Care.,,20/05/2024,21/05/2024,6206.68,,Liberty Care Ltd
"Commercial, Corporate & landlord Services",Asset Management,Resources,Investment Assets � Newport Leisure Park,0,I&E,Electricity.,,24/09/2023,23/05/2024,211.43,,TOTAL GAS & POWER LIMITED
"Enterprise, Housing & Community Animation",General Fund Housing,Communities & Place,Lodgings Scheme,0,I&E,Electricity.,,26/04/2024,23/05/2024,82.61,,British Gas Business
"Enterprise, Housing & Community Animation",General Fund Housing,Communities & Place,62 Chepstow Road Hostel,0,I&E,Electricity.,,04/04/2024,14/05/2024,4.02,,EDF Energy
"Enterprise, Housing & Community Animation",General Fund Housing,Communities & Place,62 Chepstow Road Hostel,0,I&E,Electricity.,,04/04/2024,14/05/2024,422.23,,EDF Energy
Schools Total,School Group 1 � Pupil Capacity 1-143,MCC Schools,Ysgol Gymraeg Y Ffin,0,I&E,Electricity.,,02/04/2024,14/05/2024,2736.82,,EDF Energy
"Commercial, Corporate & landlord Services",Asset Management,Resources,Shared Accomodation,0,I&E,Electricity.,,03/04/2024,14/05/2024,265.1,,EDF Energy
"Facilities, Fleet & Decarbonisation",De-Carbonisation,Communities & Place,Solar Farm,0,I&E,Electricity.,,02/04/2024,14/05/2024,479.51,,EDF Energy
Neighbourhood Services,Waste and Street Services,Communities & Place,Refuse & Cleansing Operations,0,I&E,Electricity.,,11/03/2024,14/05/2024,2444.65,,EDF Energy
Finance & Business Devlopment,Attractions,MonLife Directorate,Caldicot Castle & Country Park,0,I&E,Electricity.,,03/04/2024,14/05/2024,2.17,,EDF Energy
Finance & Business Devlopment,Attractions,MonLife Directorate,Caldicot Castle & Country Park,0,I&E,Electricity.,,03/04/2024,14/05/2024,345.83,,EDF Energy
Adult Services,Community Care Team,Social Care and Health,Chepstow Adult Team,0,I&E,Personal Care.,,17/05/2024,31/05/2024,1165.93,,Abicare Services Ltd
Schools Total,School Group 2 � Pupil Capacity 144-314,MCC Schools,Castle Park Primary School,0,I&E,Electricity.,,02/04/2024,14/05/2024,1678.47,,EDF Energy
Schools Total,School Group 2 � Pupil Capacity 144-314,MCC Schools,Kymin View Primary School,0,I&E,Computer Consumables,,05/04/2024,09/05/2024,10.09,,Sharp Business Systems UK plc
Schools Total,School Group 2 � Pupil Capacity 144-314,MCC Schools,Kymin View Primary School,0,I&E,Computer Consumables,,05/04/2024,09/05/2024,71.21,,Sharp Business Systems UK plc
Children Services,Children Services Teams,Social Care and Health,Children's Services Man/Support,0,I&E,Removal Costs,,30/04/2024,14/05/2024,206.09,,The Maltings Document Storage SolutionsLtd
Communications,Communications,MonLife Directorate,Communications,0,I&E,IT Software,,01/05/2024,08/05/2024,200,,Paulund Ltd
Adult Services,Community Care Team,Social Care and Health,Chepstow Adult Team,0,I&E,Personal Care.,,01/05/2024,08/05/2024,664.43,,Radis Community Care
"Leisure, Youth & Outdoor Adventure",Sports Development,MonLife Directorate,Local Authority Partnership Agreement,0,I&E,Equipment Purchases,,25/04/2024,02/05/2024,38.28,,Origin Fitness Ltd
Adult Services,Direct Care,Social Care and Health,Care at Home,0,I&E,Equipment Purchases,,27/03/2024,08/05/2024,41.66,,REDACTED DATA
Adult Services,Direct Care Residential,Social Care and Health,Llantilio Pertholey CiW Primary School (VC),0,I&E,Equipment Purchases,,27/03/2024,08/05/2024,677.26,,REDACTED DATA
Finance & Business Devlopment,Community Hubs,MonLife Directorate,Community Hub - Monmouth,0,I&E,Clothing And Uniforms,,13/05/2024,22/05/2024,181.69,,Evolve Corporate Ltd T/A PK Safety
Finance & Business Devlopment,Community Hubs,MonLife Directorate,Community Hub - Abergavenny,0,I&E,Clothing And Uniforms,,13/05/2024,22/05/2024,603.28,,Evolve Corporate Ltd T/A PK Safety
Schools Total,SCHGRP3 � School Group 3 � Pupil Capacity 315-500,MCC Schools,Magor CiW Primary School (VA),0,I&E,Training Charges,,07/05/2024,22/05/2024,750,,NJ Educational Services Limited
Neighbourhood Services,Highways,Communities & Place,Drainage works,0,I&E,Plant Hire Charge,,21/05/2024,22/05/2024,700,,Wales Environmental Ltd (formerly Cardiff Drain Cleaning)
Schools Total,School Group 2 � Pupil Capacity 144-314,MCC Schools,Gilwern Primary School,0,I&E,Building Improvements / Maintenance,,30/04/2024,14/05/2024,192.69,,A.J Quinn Building Contractors Ltd
Schools Total,School Group 2 � Pupil Capacity 144-314,MCC Schools,Dewstow Primary School,0,I&E,Training Charges,,07/05/2024,28/05/2024,700,,REDACTED PERSONAL DATA
Schools Total,School Group 1 � Pupil Capacity 1-143,MCC Schools,Llandogo Primary School,0,I&E,Building Improvements / Maintenance,,08/05/2024,14/05/2024,50,,Ambassador Fire & Security LTD
Schools Total,School Group 7 � Pupil Capacity 501-1800,MCC Schools,Monmouth Comprehensive,0,I&E,Building Improvements / Maintenance,,23/02/2024,20/05/2024,600,,Hoval Ltd
Neighbourhood Services,Highways,Communities & Place,Overhead - SWTRA / External,0,I&E,Training Charges,,16/05/2024,20/05/2024,250,,Forest Park and Garden
Neighbourhood Services,Highways,Communities & Place,Overhead - SWTRA / External,0,I&E,Training Charges,,16/05/2024,20/05/2024,400,,Heads Of The Valley Training Con
Neighbourhood Services,Highways,Communities & Place,Overhead - SWTRA / External,0,I&E,Training Charges,,16/05/2024,20/05/2024,400,,Heads Of The Valley Training Con
"Leisure, Youth & Outdoor Adventure",Youth & Education,MonLife Directorate,Community Education Youth General,0,I&E,Training Charges,,30/04/2024,28/05/2024,1134,,Agored Cymru
People,Training,Chief Executive's Unit,Corporate Training,0,I&E,Training Charges,,15/05/2024,28/05/2024,1001,,Lantra
Capital Division,Capital Dept,Capital,Capital Programme,0,I&E,Building Improvements / Maintenance,,27/03/2024,03/05/2024,74028.59,,LCB Construction Limited
"Facilities, Fleet & Decarbonisation",Home to School Transport Dept,Communities & Place,School Transport � External,0,I&E,PTU Vehicle Contracts,,02/03/2024,03/05/2024,1474,,C and P Transport
"Facilities, Fleet & Decarbonisation",Home to School Transport Dept,Communities & Place,School Transport � External,0,I&E,PTU Vehicle Contracts,,23/03/2024,03/05/2024,1300,,C and P Transport
"Facilities, Fleet & Decarbonisation",Home to School Transport Dept,Communities & Place,School Transport � External,0,I&E,PTU Vehicle Contracts,,23/03/2024,03/05/2024,1474,,C and P Transport
Neighbourhood Services,Highways,Communities & Place,Overhead - SWTRA / External,0,I&E,Training Charges,,16/05/2024,20/05/2024,80,,Heads Of The Valley Training Con
Neighbourhood Services,Waste and Street Services,Communities & Place,Refuse & Cleansing Operations,0,I&E,Training Charges,,16/05/2024,20/05/2024,400,,Heads Of The Valley Training Con
Neighbourhood Services,Highways,Communities & Place,Overhead - Mon Highways,0,I&E,Training Charges,,16/05/2024,20/05/2024,400,,Heads Of The Valley Training Con
Neighbourhood Services,Highways,Communities & Place,Overhead - Mon Highways,0,I&E,Training Charges,,16/05/2024,20/05/2024,400,,Heads Of The Valley Training Con
Neighbourhood Services,Highways,Communities & Place,Overhead - Mon Highways,0,I&E,Plant Hire Charge,,15/03/2024,02/05/2024,20000,,Cambrian Group UK
Schools Total,School Group 2 � Pupil Capacity 144-314,MCC Schools,Gilwern Primary School,0,I&E,Waste Disposal,,23/02/2024,02/05/2024,48.29,,Restore Datashred
Neighbourhood Services,Highways,Communities & Place,Overhead - Mon Highways,0,I&E,Plant Hire Charge,,01/09/2023,02/05/2024,250,,South Wales Fork Trucks Hire Ltd
SCH Support,Grant Schemes SHS,Social Care and Health,Training,0,I&E,Training Charges,,25/04/2024,02/05/2024,1100,,Cardiff Metropolitan University
"Facilities, Fleet & Decarbonisation",Home to School Transport Dept,Communities & Place,School Transport � External,0,I&E,PTU Vehicle Contracts,,28/05/2024,28/05/2024,1431.6,,REDACTED PERSONAL DATA
"Facilities, Fleet & Decarbonisation",Home to School Transport Dept,Communities & Place,School Transport � External,0,I&E,PTU Vehicle Contracts,,28/05/2024,28/05/2024,553.6,,REDACTED PERSONAL DATA
"Facilities, Fleet & Decarbonisation",Home to School Transport Dept,Communities & Place,School Transport � External,0,I&E,PTU Vehicle Contracts,,28/05/2024,28/05/2024,395.01,,REDACTED PERSONAL DATA
"Facilities, Fleet & Decarbonisation",Home to School Transport Dept,Communities & Place,School Transport � External,0,I&E,PTU Vehicle Contracts,,28/05/2024,28/05/2024,260.8,,REDACTED PERSONAL DATA
"Facilities, Fleet & Decarbonisation",Home to School Transport Dept,Communities & Place,School Transport � External,0,I&E,PTU Vehicle Contracts,,28/05/2024,28/05/2024,294,,REDACTED PERSONAL DATA
"Facilities, Fleet & Decarbonisation",Home to School Transport Dept,Communities & Place,School Transport � External,0,I&E,PTU Vehicle Contracts,,28/05/2024,28/05/2024,1146,,REDACTED PERSONAL DATA
